Organisation Name,Organisation Code,Effective Date,Directorate  Where Expenditure Incurred,Supplier Name,Payment Date,Transaction Number,Gross Amount,Purpose of Spend,Merchant Category,Card Transaction
WALSALL COUNCIL,HTTP://OPENDATACOMMUNITIES.ORG/ID/METROPOLITAN-DISTRICT-COUNCIL/WALSALL,31/12/2018,CHILDRENS SERVICES-SCHOOLS,WWW.TUFFERMAN.CO.UK,01/10/2018,H59620181003PCTARFLWI-1,129.55,FURNITURE-NEW ITEMS OF FURNITURE,OTHER INDUSTRIAL SUPPLIES,GPC
WALSALL COUNCIL,HTTP://OPENDATACOMMUNITIES.ORG/ID/METROPOLITAN-DISTRICT-COUNCIL/WALSALL,31/12/2018,CHILDRENS SERVICES-SCHOOLS,WWW.ICO.GOV.UK,01/10/2018,H59620181003SYMGRMUWC-1,40.00,ADMINISTRATIVE SUPPLIES-PUBLICATIONS/ORGANISATIONS-SUB,GOVERNMENT SERVICES,GPC
WALSALL COUNCIL,HTTP://OPENDATACOMMUNITIES.ORG/ID/METROPOLITAN-DISTRICT-COUNCIL/WALSALL,31/12/2018,CHILDRENS SERVICES-SCHOOLS,ASDA GROCERIES ONLINE,01/10/2018,H59620181003FYMFMPEQQ-1,2.30,PELSALL VILLAGE SCHOOL-FOOD AND BEVERAGES-PROVISIONS,GROCERY STORES AND SUPERMARKETS,GPC
WALSALL COUNCIL,HTTP://OPENDATACOMMUNITIES.ORG/ID/METROPOLITAN-DISTRICT-COUNCIL/WALSALL,31/12/2018,CHILDRENS SERVICES-SCHOOLS,ASDA GROCERIES ONLINE,01/10/2018,H59620181003FYMFMPEQQ-2,57.72,PELSALL VILLAGE SCHOOL-FOOD AND BEVERAGES-PROVISIONS,GROCERY STORES AND SUPERMARKETS,GPC
WALSALL COUNCIL,HTTP://OPENDATACOMMUNITIES.ORG/ID/METROPOLITAN-DISTRICT-COUNCIL/WALSALL,31/12/2018,CHILDRENS SERVICES-SCHOOLS,THE HANNAY PARTNERSHIP,01/10/2018,H59620181003OTUIZMNDB-1,165.30,ADMINISTRATIVE SUPPLIES-GENERAL MATERIALS,ADVERTISING SERVICES,GPC
WALSALL COUNCIL,HTTP://OPENDATACOMMUNITIES.ORG/ID/METROPOLITAN-DISTRICT-COUNCIL/WALSALL,31/12/2018,CHILDRENS SERVICES-SCHOOLS,HTTP://WWW.FORWARDPRODUC,01/10/2018,H59620181003YVRTKUXQW-1,158.42,ADMINISTRATIVE SUPPLIES-GENERAL MATERIALS,"STATIONERY, OFFICE SUPPLIES AND WRITING PAPER",GPC
WALSALL COUNCIL,HTTP://OPENDATACOMMUNITIES.ORG/ID/METROPOLITAN-DISTRICT-COUNCIL/WALSALL,31/12/2018,CHILDRENS SERVICES-SCHOOLS,HP INC UK LIMITED,01/10/2018,H59620181003QJLRNQDZM-1,7.99,ADMINISTRATIVE SUPPLIES-GENERAL MATERIALS,"COMPUTERS, COMPUTER PERIPHERAL EQUIPMENT, SOFTWARE",GPC
WALSALL COUNCIL,HTTP://OPENDATACOMMUNITIES.ORG/ID/METROPOLITAN-DISTRICT-COUNCIL/WALSALL,31/12/2018,CHILDRENS SERVICES-SCHOOLS,AMAZON.CO.UK,01/10/2018,H59620181003BRXOWWJDQ-1,35.88,E19-LIBRARY BOOKS,OTHER DIRECT MARKETING-OTHER DIRECT MARKETERS,GPC
WALSALL COUNCIL,HTTP://OPENDATACOMMUNITIES.ORG/ID/METROPOLITAN-DISTRICT-COUNCIL/WALSALL,31/12/2018,CHILDRENS SERVICES-SCHOOLS,AMAZON.CO.UK,01/10/2018,H59620181003QMDEVJDKM-1,18.74,E19-LIBRARY BOOKS,OTHER DIRECT MARKETING-OTHER DIRECT MARKETERS,GPC
WALSALL COUNCIL,HTTP://OPENDATACOMMUNITIES.ORG/ID/METROPOLITAN-DISTRICT-COUNCIL/WALSALL,31/12/2018,CHILDRENS SERVICES-SCHOOLS,AMAZON.CO.UK,01/10/2018,H59620181003RJSGIQWUP-1,18.74,E19-LIBRARY BOOKS,OTHER DIRECT MARKETING-OTHER DIRECT MARKETERS,GPC
WALSALL COUNCIL,HTTP://OPENDATACOMMUNITIES.ORG/ID/METROPOLITAN-DISTRICT-COUNCIL/WALSALL,31/12/2018,CHILDRENS SERVICES-SCHOOLS,WALSALL COUNCIL,01/10/2018,H59620181003QEQWUYRVC-1,46.34,ST FRANCIS OF ASSISI CATHOLIC -MISC FEES AND EXPENSES,GOVERNMENT SERVICES,GPC
WALSALL COUNCIL,HTTP://OPENDATACOMMUNITIES.ORG/ID/METROPOLITAN-DISTRICT-COUNCIL/WALSALL,31/12/2018,CHILDRENS SERVICES-SCHOOLS,WALSALL COUNCIL,01/10/2018,H59620181003UXQAEVUGF-1,46.34,ST FRANCIS OF ASSISI CATHOLIC -MISC FEES AND EXPENSES,GOVERNMENT SERVICES,GPC
WALSALL COUNCIL,HTTP://OPENDATACOMMUNITIES.ORG/ID/METROPOLITAN-DISTRICT-COUNCIL/WALSALL,31/12/2018,CHILDRENS SERVICES-SCHOOLS,AMZN MKTP UK AMAZON.CO.UK,01/10/2018,H59620181003LIAQIWZYC-1,9.38,GEOGRAPHY-GENERAL MATERIALS,BOOK STORES,GPC
WALSALL COUNCIL,HTTP://OPENDATACOMMUNITIES.ORG/ID/METROPOLITAN-DISTRICT-COUNCIL/WALSALL,31/12/2018,CHILDRENS SERVICES-SCHOOLS,TESCO STORES 6161,01/10/2018,H59620181003ERTXBSXWV-1,5.00,FOOD TECHNOLOGY-GENERAL MATERIALS,GROCERY STORES AND SUPERMARKETS,GPC
WALSALL COUNCIL,HTTP://OPENDATACOMMUNITIES.ORG/ID/METROPOLITAN-DISTRICT-COUNCIL/WALSALL,31/12/2018,CHILDRENS SERVICES-SCHOOLS,ASDA,01/10/2018,H59620181003JPTXDGKIY-1,1.72,FOOD TECHNOLOGY-GENERAL MATERIALS,GROCERY STORES AND SUPERMARKETS,GPC
WALSALL COUNCIL,HTTP://OPENDATACOMMUNITIES.ORG/ID/METROPOLITAN-DISTRICT-COUNCIL/WALSALL,31/12/2018,CHILDRENS SERVICES-SCHOOLS,ASDA,01/10/2018,H59620181003JPTXDGKIY-2,18.06,FOOD TECHNOLOGY-GENERAL MATERIALS,GROCERY STORES AND SUPERMARKETS,GPC
WALSALL COUNCIL,HTTP://OPENDATACOMMUNITIES.ORG/ID/METROPOLITAN-DISTRICT-COUNCIL/WALSALL,31/12/2018,CHILDRENS SERVICES-SCHOOLS,ASDA SUPERSTORE,01/10/2018,H59620181003DORDDZQJM-1,13.48,MARY ELLIOTT SCHOOL-BREAD-GENERAL-PROVISIONS,GROCERY STORES AND SUPERMARKETS,GPC
WALSALL COUNCIL,HTTP://OPENDATACOMMUNITIES.ORG/ID/METROPOLITAN-DISTRICT-COUNCIL/WALSALL,31/12/2018,CHILDRENS SERVICES,ASDA STORES,01/10/2018,H59620181003ZXPLGBWER-1,2.50,LOCALITY FAMILY SUPPORT-WEST-MISCELLANEOUS SUPPLIES,GROCERY STORES AND SUPERMARKETS,GPC
WALSALL COUNCIL,HTTP://OPENDATACOMMUNITIES.ORG/ID/METROPOLITAN-DISTRICT-COUNCIL/WALSALL,31/12/2018,CHILDRENS SERVICES,ASDA STORES,01/10/2018,H59620181003ZXPLGBWER-2,11.26,LOCALITY FAMILY SUPPORT-WEST-FOOD AND BEVERAGES-PROVISIONS,GROCERY STORES AND SUPERMARKETS,GPC
WALSALL COUNCIL,HTTP://OPENDATACOMMUNITIES.ORG/ID/METROPOLITAN-DISTRICT-COUNCIL/WALSALL,31/12/2018,CHILDRENS SERVICES,BANNER GROUP LTD,01/10/2018,H59620181003BUKOOWKSL-1,16.08,BIRCHILLS CHILDCARE SERVICES-STATIONERY & GENERAL SUPPLIES-,"OFFICE, SCHOOL SUPPLY, AND STATIONERY STORES",GPC
WALSALL COUNCIL,HTTP://OPENDATACOMMUNITIES.ORG/ID/METROPOLITAN-DISTRICT-COUNCIL/WALSALL,31/12/2018,CHILDRENS SERVICES,BANNER GROUP LTD,01/10/2018,H59620181003BUKOOWKSL-2,45.93,BIRCHILLS CHILDCARE SERVICES-CLEANING MATERIALS,"OFFICE, SCHOOL SUPPLY, AND STATIONERY STORES",GPC
WALSALL COUNCIL,HTTP://OPENDATACOMMUNITIES.ORG/ID/METROPOLITAN-DISTRICT-COUNCIL/WALSALL,31/12/2018,CHILDRENS SERVICES,BANNER GROUP LTD,01/10/2018,H59620181003JEPQFUFDQ-1,105.74,BIRCHILLS CHILDCARE SERVICES-MISCELLANEOUS SUPPLIES,"OFFICE, SCHOOL SUPPLY, AND STATIONERY STORES",GPC
WALSALL COUNCIL,HTTP://OPENDATACOMMUNITIES.ORG/ID/METROPOLITAN-DISTRICT-COUNCIL/WALSALL,31/12/2018,CHILDRENS SERVICES,AMAZON.CO.UK,01/10/2018,H59620181003TIODDQNNL-1,11.24,CHILDRENS ADMIN-MISC FEES AND EXPENSES,OTHER DIRECT MARKETING-OTHER DIRECT MARKETERS,GPC
WALSALL COUNCIL,HTTP://OPENDATACOMMUNITIES.ORG/ID/METROPOLITAN-DISTRICT-COUNCIL/WALSALL,31/12/2018,CHILDRENS SERVICES,HOTEL IBIS,01/10/2018,H59620181003GYPTVPARV-1,65.00,SAFEGUARDING & FAMILY SUPPORT-HOTEL ACCOMMODATION-EMPLOYEES,HOTEL IBIS,GPC
WALSALL COUNCIL,HTTP://OPENDATACOMMUNITIES.ORG/ID/METROPOLITAN-DISTRICT-COUNCIL/WALSALL,31/12/2018,CHILDRENS SERVICES,LEVINES,01/10/2018,H59620181003QEOJVJOHR-1,69.00,SAFEGUARDING & FAMILY SUPPORT-FURNITURE & EQUIPMENT,"EQUIPMENT, FURNITURE, AND HOME FURNISHINGS STORES ",GPC
WALSALL COUNCIL,HTTP://OPENDATACOMMUNITIES.ORG/ID/METROPOLITAN-DISTRICT-COUNCIL/WALSALL,31/12/2018,CHILDRENS SERVICES,REGISTRATION SERVICES,01/10/2018,H59620181003YJWPUUYIW-1,10.00,SAFEGUARDING & FAMILY SUPPORT-MISC FEES AND EXPENSES,OTHER RECREATION SERVICES,GPC
WALSALL COUNCIL,HTTP://OPENDATACOMMUNITIES.ORG/ID/METROPOLITAN-DISTRICT-COUNCIL/WALSALL,31/12/2018,CHILDRENS SERVICES,AMZN MKTP UK,01/10/2018,H59620181003DNBDBTRNP-1,69.44,FAMILY PLACEMENTS-LIBRARY BOOKS,BOOK STORES,GPC
WALSALL COUNCIL,HTTP://OPENDATACOMMUNITIES.ORG/ID/METROPOLITAN-DISTRICT-COUNCIL/WALSALL,31/12/2018,CHILDRENS SERVICES,WWW.ARGOS.CO.UK,01/10/2018,H59620181003TWIHUMKCK-1,123.94,FAMILY PLACEMENTS-MISCELLANEOUS ALLOWANCES-FOSTE,DISCOUNT STORES,GPC
WALSALL COUNCIL,HTTP://OPENDATACOMMUNITIES.ORG/ID/METROPOLITAN-DISTRICT-COUNCIL/WALSALL,31/12/2018,CHILDRENS SERVICES,WELCOME BREAK,01/10/2018,H59620181003CCIZGGMLT-1,95.00,LOOKED AFTER CHILDRENS SOCIAL -HOTEL ACCOMMODATION-EMPLOYEES,"HOTELS, MOTELS, RESORTS",GPC
WALSALL COUNCIL,HTTP://OPENDATACOMMUNITIES.ORG/ID/METROPOLITAN-DISTRICT-COUNCIL/WALSALL,31/12/2018,CHILDRENS SERVICES,REGISTRATION SERVICES,01/10/2018,H59620181003FUTIVJLIE-1,30.00,LOOKED AFTER CHILDRENS SOCIAL -MISC FEES AND EXPENSES,OTHER RECREATION SERVICES,GPC
WALSALL COUNCIL,HTTP://OPENDATACOMMUNITIES.ORG/ID/METROPOLITAN-DISTRICT-COUNCIL/WALSALL,31/12/2018,CHILDRENS SERVICES,TRAVEL WEST MIDLAN,01/10/2018,H59620181003KDVJLUPTS-1,220.00,LOOKED AFTER CHILDRENS SOCIAL -SUPPORT UNDER SECTION 23 OF TH,BUS LINES,GPC
WALSALL COUNCIL,HTTP://OPENDATACOMMUNITIES.ORG/ID/METROPOLITAN-DISTRICT-COUNCIL/WALSALL,31/12/2018,CHILDRENS SERVICES,WALSALL STN T/O,01/10/2018,H59620181003XORRFZIQV-1,30.95,LOOKED AFTER CHILDRENS SOCIAL -SUPPORT UNDER SECTION 23 OF TH,PASSENGER RAILWAYS,GPC
WALSALL COUNCIL,HTTP://OPENDATACOMMUNITIES.ORG/ID/METROPOLITAN-DISTRICT-COUNCIL/WALSALL,31/12/2018,CHILDRENS SERVICES,W M MORRISONS.COM,01/10/2018,H59620181003JJGEIVECJ-1,30.90,57 LICHFIELD ROAD-FOOD AND BEVERAGES-PROVISIONS,GROCERY STORES AND SUPERMARKETS,GPC
WALSALL COUNCIL,HTTP://OPENDATACOMMUNITIES.ORG/ID/METROPOLITAN-DISTRICT-COUNCIL/WALSALL,31/12/2018,CHILDRENS SERVICES,W M MORRISONS.COM,01/10/2018,H59620181003JJGEIVECJ-2,126.87,57 LICHFIELD ROAD-FOOD AND BEVERAGES-PROVISIONS,GROCERY STORES AND SUPERMARKETS,GPC
WALSALL COUNCIL,HTTP://OPENDATACOMMUNITIES.ORG/ID/METROPOLITAN-DISTRICT-COUNCIL/WALSALL,31/12/2018,CHILDRENS SERVICES,TESCO STORES 6161,01/10/2018,H59620181003LYOSIVMBR-1,2.30,57 LICHFIELD ROAD-FOOD AND BEVERAGES-PROVISIONS,GROCERY STORES AND SUPERMARKETS,GPC
WALSALL COUNCIL,HTTP://OPENDATACOMMUNITIES.ORG/ID/METROPOLITAN-DISTRICT-COUNCIL/WALSALL,31/12/2018,CHILDRENS SERVICES,TESCO STORES 6161,01/10/2018,H59620181003LYOSIVMBR-2,8.80,57 LICHFIELD ROAD-FOOD AND BEVERAGES-PROVISIONS,GROCERY STORES AND SUPERMARKETS,GPC
WALSALL COUNCIL,HTTP://OPENDATACOMMUNITIES.ORG/ID/METROPOLITAN-DISTRICT-COUNCIL/WALSALL,31/12/2018,CHILDRENS SERVICES,ARGOS WALSALL CROW,01/10/2018,H59620181003TURGRSCWQ-1,29.99,57 LICHFIELD ROAD-NEW-FURNITURE & EQUIPMENT,DISCOUNT STORES,GPC
WALSALL COUNCIL,HTTP://OPENDATACOMMUNITIES.ORG/ID/METROPOLITAN-DISTRICT-COUNCIL/WALSALL,31/12/2018,CHILDRENS SERVICES,BANNER GROUP LTD,01/10/2018,H59620181003XBHAXLUML-1,33.66,BLUEBELLS-STATIONERY & GENERAL SUPPLIES-,"OFFICE, SCHOOL SUPPLY, AND STATIONERY STORES",GPC
WALSALL COUNCIL,HTTP://OPENDATACOMMUNITIES.ORG/ID/METROPOLITAN-DISTRICT-COUNCIL/WALSALL,31/12/2018,CHILDRENS SERVICES,NISA LOCAL,01/10/2018,H59620181003NUYVBULGK-1,2.00,REDRUTH ROAD-FOOD AND BEVERAGES-PROVISIONS,MISCELLANEOUS FOOD STORES & CONVENIENCE STORES,GPC
WALSALL COUNCIL,HTTP://OPENDATACOMMUNITIES.ORG/ID/METROPOLITAN-DISTRICT-COUNCIL/WALSALL,31/12/2018,CHILDRENS SERVICES,W M MORRISONS.COM,01/10/2018,H59620181003TKDIHEYYD-1,12.18,REDRUTH ROAD-FOOD AND BEVERAGES-PROVISIONS,GROCERY STORES AND SUPERMARKETS,GPC
WALSALL COUNCIL,HTTP://OPENDATACOMMUNITIES.ORG/ID/METROPOLITAN-DISTRICT-COUNCIL/WALSALL,31/12/2018,CHILDRENS SERVICES,W M MORRISONS.COM,01/10/2018,H59620181003TKDIHEYYD-2,123.84,REDRUTH ROAD-FOOD AND BEVERAGES-PROVISIONS,GROCERY STORES AND SUPERMARKETS,GPC
WALSALL COUNCIL,HTTP://OPENDATACOMMUNITIES.ORG/ID/METROPOLITAN-DISTRICT-COUNCIL/WALSALL,31/12/2018,CHILDRENS SERVICES,BANNER GROUP LTD,01/10/2018,H59620181003MNJFKZRBS-1,45.39,SCHOOL IMPROVEMENT-ACCESS TEAM-STATIONERY & GENERAL SUPPLIES-,"OFFICE, SCHOOL SUPPLY, AND STATIONERY STORES",GPC
WALSALL COUNCIL,HTTP://OPENDATACOMMUNITIES.ORG/ID/METROPOLITAN-DISTRICT-COUNCIL/WALSALL,31/12/2018,CHILDRENS SERVICES,WEST MIDLANDS TRAV,01/10/2018,H59620181003JJLXJSXSJ-1,62.50,SCHOOL IMPROVEMENT - VIRTUAL S-OFFICER/STAFF-PUBLIC TRANSPORT,BUS LINES,GPC
WALSALL COUNCIL,HTTP://OPENDATACOMMUNITIES.ORG/ID/METROPOLITAN-DISTRICT-COUNCIL/WALSALL,31/12/2018,RESOURCES & TRANSFORMATION,WWW.TOOLSTATION.COM,01/10/2018,H59620181003GCXJEYWTL-1,14.86,"CENTRAL OFFICE ACCOMMODATION-REPAIRS,ALTERATIONS & MAINTENA",HARDWARE STORES,GPC
WALSALL COUNCIL,HTTP://OPENDATACOMMUNITIES.ORG/ID/METROPOLITAN-DISTRICT-COUNCIL/WALSALL,31/12/2018,RESOURCES & TRANSFORMATION,ERIKS IND SERVICES,01/10/2018,H59620181003VZWENFEVE-1,1120.14,"CENTRAL OFFICE ACCOMMODATION-REPAIRS,ALTERATIONS & MAINTENA",OTHER INDUSTRIAL SUPPLIES,GPC
WALSALL COUNCIL,HTTP://OPENDATACOMMUNITIES.ORG/ID/METROPOLITAN-DISTRICT-COUNCIL/WALSALL,31/12/2018,ECONOMY & ENVIRONMENT,BANNER GROUP LTD,01/10/2018,H59620181003OPBNGOXNU-1,56.87,CENTRALISED STATIONARY-STATIONERY & GENERAL SUPPLIES-,"OFFICE, SCHOOL SUPPLY, AND STATIONERY STORES",GPC
WALSALL COUNCIL,HTTP://OPENDATACOMMUNITIES.ORG/ID/METROPOLITAN-DISTRICT-COUNCIL/WALSALL,31/12/2018,ECONOMY & ENVIRONMENT,TRAVEL WEST MIDLAN,01/10/2018,H59620181003AUVOYTIYF-2,110.00,YEI (IMPACT) PROGRAMME-PROFESSIONAL FEES AND SERVICES,BUS LINES,GPC
WALSALL COUNCIL,HTTP://OPENDATACOMMUNITIES.ORG/ID/METROPOLITAN-DISTRICT-COUNCIL/WALSALL,31/12/2018,ECONOMY & ENVIRONMENT,TRAVEL WEST MIDLAN,01/10/2018,H59620181003BLQZUMXXX-2,110.00,YEI (IMPACT) PROGRAMME-PROFESSIONAL FEES AND SERVICES,BUS LINES,GPC
WALSALL COUNCIL,HTTP://OPENDATACOMMUNITIES.ORG/ID/METROPOLITAN-DISTRICT-COUNCIL/WALSALL,31/12/2018,ECONOMY & ENVIRONMENT,TRAVEL WEST MIDLAN,01/10/2018,H59620181003DIXGMELHE-2,110.00,YEI (IMPACT) PROGRAMME-PROFESSIONAL FEES AND SERVICES,BUS LINES,GPC
WALSALL COUNCIL,HTTP://OPENDATACOMMUNITIES.ORG/ID/METROPOLITAN-DISTRICT-COUNCIL/WALSALL,31/12/2018,ECONOMY & ENVIRONMENT,TRAVEL WEST MIDLAN,01/10/2018,H59620181003NSMYGPYFF-2,110.00,YEI (IMPACT) PROGRAMME-PROFESSIONAL FEES AND SERVICES,BUS LINES,GPC
WALSALL COUNCIL,HTTP://OPENDATACOMMUNITIES.ORG/ID/METROPOLITAN-DISTRICT-COUNCIL/WALSALL,31/12/2018,ECONOMY & ENVIRONMENT,TRAVEL WEST MIDLAN,01/10/2018,H59620181003AUVOYTIYF-1,110.00,YEI ESF FUNDING-PROFESSIONAL FEES AND SERVICES,BUS LINES,GPC
WALSALL COUNCIL,HTTP://OPENDATACOMMUNITIES.ORG/ID/METROPOLITAN-DISTRICT-COUNCIL/WALSALL,31/12/2018,ECONOMY & ENVIRONMENT,TRAVEL WEST MIDLAN,01/10/2018,H59620181003BLQZUMXXX-1,110.00,YEI ESF FUNDING-PROFESSIONAL FEES AND SERVICES,BUS LINES,GPC
WALSALL COUNCIL,HTTP://OPENDATACOMMUNITIES.ORG/ID/METROPOLITAN-DISTRICT-COUNCIL/WALSALL,31/12/2018,ECONOMY & ENVIRONMENT,TRAVEL WEST MIDLAN,01/10/2018,H59620181003DIXGMELHE-1,110.00,YEI ESF FUNDING-PROFESSIONAL FEES AND SERVICES,BUS LINES,GPC
WALSALL COUNCIL,HTTP://OPENDATACOMMUNITIES.ORG/ID/METROPOLITAN-DISTRICT-COUNCIL/WALSALL,31/12/2018,ECONOMY & ENVIRONMENT,TRAVEL WEST MIDLAN,01/10/2018,H59620181003NSMYGPYFF-1,110.00,YEI ESF FUNDING-PROFESSIONAL FEES AND SERVICES,BUS LINES,GPC
WALSALL COUNCIL,HTTP://OPENDATACOMMUNITIES.ORG/ID/METROPOLITAN-DISTRICT-COUNCIL/WALSALL,31/12/2018,RESOURCES & TRANSFORMATION,THEMANAGEMENTCENTR,01/10/2018,H59620181003OTSOTNOQU-1,332.00,YOUNG PERSONS HOMELESS SERVICE-HOTEL ACCOMMODATION-EMPLOYEES,"COLLEGES, UNIVERSITIES, PROFESSIONAL SCHOOLS",GPC
WALSALL COUNCIL,HTTP://OPENDATACOMMUNITIES.ORG/ID/METROPOLITAN-DISTRICT-COUNCIL/WALSALL,31/12/2018,ECONOMY & ENVIRONMENT,BANNER GROUP LTD,01/10/2018,H59620181003TWNBSVKTF-1,12.17,MARKETS SECTION-STATIONERY & GENERAL SUPPLIES-,"OFFICE, SCHOOL SUPPLY, AND STATIONERY STORES",GPC
WALSALL COUNCIL,HTTP://OPENDATACOMMUNITIES.ORG/ID/METROPOLITAN-DISTRICT-COUNCIL/WALSALL,31/12/2018,RESOURCES & TRANSFORMATION,BLAKEMORE FOODSERVICE,01/10/2018,H59620181003LEUFSGKCN-1,180.21,CA KINGSHILL SCHOOL-FROZEN FOODS-PROVISIONS,CATERERS,GPC
WALSALL COUNCIL,HTTP://OPENDATACOMMUNITIES.ORG/ID/METROPOLITAN-DISTRICT-COUNCIL/WALSALL,31/12/2018,RESOURCES & TRANSFORMATION,BLAKEMORE FOODSERVICE,01/10/2018,H59620181003TLKUFHSIP-1,115.57,CA JANE LANE SPECIAL SCHOOL-FROZEN FOODS-PROVISIONS,CATERERS,GPC
WALSALL COUNCIL,HTTP://OPENDATACOMMUNITIES.ORG/ID/METROPOLITAN-DISTRICT-COUNCIL/WALSALL,31/12/2018,RESOURCES & TRANSFORMATION,BLAKEMORE FOODSERVICE,01/10/2018,H59620181003TLKUFHSIP-2,8.33,CA JANE LANE SPECIAL SCHOOL-FROZEN FOODS-PROVISIONS,CATERERS,GPC
WALSALL COUNCIL,HTTP://OPENDATACOMMUNITIES.ORG/ID/METROPOLITAN-DISTRICT-COUNCIL/WALSALL,31/12/2018,RESOURCES & TRANSFORMATION,BLAKEMORE FOODSERVICE,01/10/2018,H59620181003RDSGPYYHW-1,175.76,CA OAKWOOD SPECIAL SCHOOL-DRY FOODS-PROVISIONS,CATERERS,GPC
WALSALL COUNCIL,HTTP://OPENDATACOMMUNITIES.ORG/ID/METROPOLITAN-DISTRICT-COUNCIL/WALSALL,31/12/2018,RESOURCES & TRANSFORMATION,BLAKEMORE FOODSERVICE,01/10/2018,H59620181003JGVFEMFRV-1,65.43,CA OLD HALL SPECIAL SCHOOL-FROZEN FOODS-PROVISIONS,CATERERS,GPC
WALSALL COUNCIL,HTTP://OPENDATACOMMUNITIES.ORG/ID/METROPOLITAN-DISTRICT-COUNCIL/WALSALL,31/12/2018,RESOURCES & TRANSFORMATION,ARTHUR BRETT CATER,01/10/2018,H59620181124HNGBCDOKI-1,-22.61,CA BIRCHILLS CE PRIMARY COMMUN-FRUIT & VEGETABLES OTHER-PROVI,MISCELLANEOUS FOOD STORES & CONVENIENCE STORES,GPC
WALSALL COUNCIL,HTTP://OPENDATACOMMUNITIES.ORG/ID/METROPOLITAN-DISTRICT-COUNCIL/WALSALL,31/12/2018,RESOURCES & TRANSFORMATION,ARTHUR BRETT CATER,01/10/2018,H59620181124JMBPLSGCZ-1,-137.16,CA BIRCHILLS CE PRIMARY COMMUN-FOOD AND BEVERAGES-PROVISIONS,MISCELLANEOUS FOOD STORES & CONVENIENCE STORES,GPC
WALSALL COUNCIL,HTTP://OPENDATACOMMUNITIES.ORG/ID/METROPOLITAN-DISTRICT-COUNCIL/WALSALL,31/12/2018,RESOURCES & TRANSFORMATION,ARTHUR BRETT CATER,01/10/2018,H59620181124LIWGSNQVU-1,-27.26,CA BIRCHILLS CE PRIMARY COMMUN-FRUIT & VEGETABLES OTHER-PROVI,MISCELLANEOUS FOOD STORES & CONVENIENCE STORES,GPC
WALSALL COUNCIL,HTTP://OPENDATACOMMUNITIES.ORG/ID/METROPOLITAN-DISTRICT-COUNCIL/WALSALL,31/12/2018,RESOURCES & TRANSFORMATION,ARTHUR BRETT CATER,01/10/2018,H59620181124NTKYJKSIJ-1,-99.19,CA BIRCHILLS CE PRIMARY COMMUN-FRUIT & VEGETABLES OTHER-PROVI,MISCELLANEOUS FOOD STORES & CONVENIENCE STORES,GPC
WALSALL COUNCIL,HTTP://OPENDATACOMMUNITIES.ORG/ID/METROPOLITAN-DISTRICT-COUNCIL/WALSALL,31/12/2018,RESOURCES & TRANSFORMATION,ARTHUR BRETT CATER,01/10/2018,H59620181124NXWPYDVMI-1,-4.49,CA BIRCHILLS CE PRIMARY COMMUN-FRUIT & VEGETABLES OTHER-PROVI,MISCELLANEOUS FOOD STORES & CONVENIENCE STORES,GPC
WALSALL COUNCIL,HTTP://OPENDATACOMMUNITIES.ORG/ID/METROPOLITAN-DISTRICT-COUNCIL/WALSALL,31/12/2018,RESOURCES & TRANSFORMATION,ARTHUR BRETT CATER,01/10/2018,H59620181124QURZTCEJD-1,-94.62,CA BIRCHILLS CE PRIMARY COMMUN-FRUIT & VEGETABLES OTHER-PROVI,MISCELLANEOUS FOOD STORES & CONVENIENCE STORES,GPC
WALSALL COUNCIL,HTTP://OPENDATACOMMUNITIES.ORG/ID/METROPOLITAN-DISTRICT-COUNCIL/WALSALL,31/12/2018,RESOURCES & TRANSFORMATION,ARTHUR BRETT CATER,01/10/2018,H59620181124YKCTBVTBC-1,-107.12,CA BIRCHILLS CE PRIMARY COMMUN-FRUIT & VEGETABLES OTHER-PROVI,MISCELLANEOUS FOOD STORES & CONVENIENCE STORES,GPC
WALSALL COUNCIL,HTTP://OPENDATACOMMUNITIES.ORG/ID/METROPOLITAN-DISTRICT-COUNCIL/WALSALL,31/12/2018,RESOURCES & TRANSFORMATION,BLAKEMORE FOODSERVICE,01/10/2018,H59620181003GZPMUUBSG-1,43.88,CA BROWNHILLS WEST PRIMARY SCH-FROZEN FOODS-PROVISIONS,CATERERS,GPC
WALSALL COUNCIL,HTTP://OPENDATACOMMUNITIES.ORG/ID/METROPOLITAN-DISTRICT-COUNCIL/WALSALL,31/12/2018,RESOURCES & TRANSFORMATION,BLAKEMORE FOODSERVICE,01/10/2018,H59620181003IFOLGBLCN-1,-402.72,CA BROWNHILLS WEST PRIMARY SCH-DRY FOODS-PROVISIONS,CATERERS,GPC
WALSALL COUNCIL,HTTP://OPENDATACOMMUNITIES.ORG/ID/METROPOLITAN-DISTRICT-COUNCIL/WALSALL,31/12/2018,RESOURCES & TRANSFORMATION,BLAKEMORE FOODSERVICE,01/10/2018,H59620181003MCMQTCMOU-1,-43.88,CA BROWNHILLS WEST PRIMARY SCH-FROZEN FOODS-PROVISIONS,CATERERS,GPC
WALSALL COUNCIL,HTTP://OPENDATACOMMUNITIES.ORG/ID/METROPOLITAN-DISTRICT-COUNCIL/WALSALL,31/12/2018,RESOURCES & TRANSFORMATION,BLAKEMORE FOODSERVICE,01/10/2018,H59620181003PVXJRKQST-1,230.40,CA BROWNHILLS WEST PRIMARY SCH-DRY FOODS-PROVISIONS,CATERERS,GPC
WALSALL COUNCIL,HTTP://OPENDATACOMMUNITIES.ORG/ID/METROPOLITAN-DISTRICT-COUNCIL/WALSALL,31/12/2018,RESOURCES & TRANSFORMATION,BLAKEMORE FOODSERVICE,01/10/2018,H59620181003VUIGFRRNL-1,246.20,CA BROWNHILLS WEST PRIMARY SCH-DRY FOODS-PROVISIONS,CATERERS,GPC
WALSALL COUNCIL,HTTP://OPENDATACOMMUNITIES.ORG/ID/METROPOLITAN-DISTRICT-COUNCIL/WALSALL,31/12/2018,RESOURCES & TRANSFORMATION,BLAKEMORE FOODSERVICE,01/10/2018,H59620181003VUIGFRRNL-2,402.72,CA BROWNHILLS WEST PRIMARY SCH-DRY FOODS-PROVISIONS,CATERERS,GPC
WALSALL COUNCIL,HTTP://OPENDATACOMMUNITIES.ORG/ID/METROPOLITAN-DISTRICT-COUNCIL/WALSALL,31/12/2018,RESOURCES & TRANSFORMATION,BLAKEMORE FOODSERVICE,01/10/2018,H59620181003ESNQXKHYS-1,152.65,CA BUSILL JONES PRIMARY SCHOOL-FROZEN FOODS-PROVISIONS,CATERERS,GPC
WALSALL COUNCIL,HTTP://OPENDATACOMMUNITIES.ORG/ID/METROPOLITAN-DISTRICT-COUNCIL/WALSALL,31/12/2018,RESOURCES & TRANSFORMATION,BLAKEMORE FOODSERVICE,01/10/2018,H59620181003ESNQXKHYS-2,49.97,CA BUSILL JONES PRIMARY SCHOOL-FROZEN FOODS-PROVISIONS,CATERERS,GPC
WALSALL COUNCIL,HTTP://OPENDATACOMMUNITIES.ORG/ID/METROPOLITAN-DISTRICT-COUNCIL/WALSALL,31/12/2018,RESOURCES & TRANSFORMATION,BLAKEMORE FOODSERVICE,01/10/2018,H59620181003JTOCLBVSP-1,218.27,CA BUSILL JONES PRIMARY SCHOOL-FROZEN FOODS-PROVISIONS,CATERERS,GPC
WALSALL COUNCIL,HTTP://OPENDATACOMMUNITIES.ORG/ID/METROPOLITAN-DISTRICT-COUNCIL/WALSALL,31/12/2018,RESOURCES & TRANSFORMATION,BLAKEMORE FOODSERVICE,01/10/2018,H59620181003JTOCLBVSP-2,33.31,CA BUSILL JONES PRIMARY SCHOOL-FROZEN FOODS-PROVISIONS,CATERERS,GPC
WALSALL COUNCIL,HTTP://OPENDATACOMMUNITIES.ORG/ID/METROPOLITAN-DISTRICT-COUNCIL/WALSALL,31/12/2018,RESOURCES & TRANSFORMATION,BLAKEMORE FOODSERVICE,01/10/2018,H59620181003QUJSIGLPQ-1,334.52,CA BUSILL JONES PRIMARY SCHOOL-FROZEN FOODS-PROVISIONS,CATERERS,GPC
WALSALL COUNCIL,HTTP://OPENDATACOMMUNITIES.ORG/ID/METROPOLITAN-DISTRICT-COUNCIL/WALSALL,31/12/2018,RESOURCES & TRANSFORMATION,BLAKEMORE FOODSERVICE,01/10/2018,H59620181003BSSKJDCYE-1,101.93,CA CASTLEFORT JMI SCHOOL-DRY FOODS-PROVISIONS,CATERERS,GPC
WALSALL COUNCIL,HTTP://OPENDATACOMMUNITIES.ORG/ID/METROPOLITAN-DISTRICT-COUNCIL/WALSALL,31/12/2018,RESOURCES & TRANSFORMATION,BLAKEMORE FOODSERVICE,01/10/2018,H59620181003YEIXHXHVX-1,177.13,CA CASTLEFORT JMI SCHOOL-FROZEN FOODS-PROVISIONS,CATERERS,GPC
WALSALL COUNCIL,HTTP://OPENDATACOMMUNITIES.ORG/ID/METROPOLITAN-DISTRICT-COUNCIL/WALSALL,31/12/2018,RESOURCES & TRANSFORMATION,BLAKEMORE FOODSERVICE,01/10/2018,H59620181003YEIXHXHVX-2,8.33,CA CASTLEFORT JMI SCHOOL-FROZEN FOODS-PROVISIONS,CATERERS,GPC
WALSALL COUNCIL,HTTP://OPENDATACOMMUNITIES.ORG/ID/METROPOLITAN-DISTRICT-COUNCIL/WALSALL,31/12/2018,RESOURCES & TRANSFORMATION,BLAKEMORE FOODSERVICE,01/10/2018,H59620181003ACSSWIIYR-1,92.04,CA COOPER JORDAN CE PRIMARY SC-FROZEN FOODS-PROVISIONS,CATERERS,GPC
WALSALL COUNCIL,HTTP://OPENDATACOMMUNITIES.ORG/ID/METROPOLITAN-DISTRICT-COUNCIL/WALSALL,31/12/2018,RESOURCES & TRANSFORMATION,BLAKEMORE FOODSERVICE,01/10/2018,H59620181003PHOVVINKQ-1,435.80,CA COOPER JORDAN CE PRIMARY SC-FROZEN FOODS-PROVISIONS,CATERERS,GPC
WALSALL COUNCIL,HTTP://OPENDATACOMMUNITIES.ORG/ID/METROPOLITAN-DISTRICT-COUNCIL/WALSALL,31/12/2018,RESOURCES & TRANSFORMATION,BLAKEMORE FOODSERVICE,01/10/2018,H59620181003PHOVVINKQ-2,41.64,CA COOPER JORDAN CE PRIMARY SC-FROZEN FOODS-PROVISIONS,CATERERS,GPC
WALSALL COUNCIL,HTTP://OPENDATACOMMUNITIES.ORG/ID/METROPOLITAN-DISTRICT-COUNCIL/WALSALL,31/12/2018,RESOURCES & TRANSFORMATION,BLAKEMORE FOODSERVICE,01/10/2018,H59620181003WFYIHKEEA-1,295.46,CA COOPER JORDAN CE PRIMARY SC-DRY FOODS-PROVISIONS,CATERERS,GPC
WALSALL COUNCIL,HTTP://OPENDATACOMMUNITIES.ORG/ID/METROPOLITAN-DISTRICT-COUNCIL/WALSALL,31/12/2018,RESOURCES & TRANSFORMATION,BLAKEMORE FOODSERVICE,01/10/2018,H59620181003WFYIHKEEA-2,69.12,CA COOPER JORDAN CE PRIMARY SC-DRY FOODS-PROVISIONS,CATERERS,GPC
WALSALL COUNCIL,HTTP://OPENDATACOMMUNITIES.ORG/ID/METROPOLITAN-DISTRICT-COUNCIL/WALSALL,31/12/2018,RESOURCES & TRANSFORMATION,BLAKEMORE FOODSERVICE,01/10/2018,H59620181003SFCEFENWP-1,230.70,CA CROFT COMMUNITY PRIMARY SCH-FROZEN FOODS-PROVISIONS,CATERERS,GPC
WALSALL COUNCIL,HTTP://OPENDATACOMMUNITIES.ORG/ID/METROPOLITAN-DISTRICT-COUNCIL/WALSALL,31/12/2018,RESOURCES & TRANSFORMATION,BLAKEMORE FOODSERVICE,01/10/2018,H59620181003SFCEFENWP-2,8.33,CA CROFT COMMUNITY PRIMARY SCH-FROZEN FOODS-PROVISIONS,CATERERS,GPC
WALSALL COUNCIL,HTTP://OPENDATACOMMUNITIES.ORG/ID/METROPOLITAN-DISTRICT-COUNCIL/WALSALL,31/12/2018,RESOURCES & TRANSFORMATION,BLAKEMORE FOODSERVICE,01/10/2018,H59620181003XOFMUYGLF-1,305.35,CA BARCROFT D/C-FROZEN FOODS-PROVISIONS,CATERERS,GPC
WALSALL COUNCIL,HTTP://OPENDATACOMMUNITIES.ORG/ID/METROPOLITAN-DISTRICT-COUNCIL/WALSALL,31/12/2018,RESOURCES & TRANSFORMATION,BLAKEMORE FOODSERVICE,01/10/2018,H59620181003XOFMUYGLF-2,24.98,CA BARCROFT D/C-FROZEN FOODS-PROVISIONS,CATERERS,GPC
WALSALL COUNCIL,HTTP://OPENDATACOMMUNITIES.ORG/ID/METROPOLITAN-DISTRICT-COUNCIL/WALSALL,31/12/2018,RESOURCES & TRANSFORMATION,BLAKEMORE FOODSERVICE,01/10/2018,H59620181003CFWIUFOQY-1,91.44,CA MOORCROFT WOOD-FROZEN FOODS-PROVISIONS,CATERERS,GPC
WALSALL COUNCIL,HTTP://OPENDATACOMMUNITIES.ORG/ID/METROPOLITAN-DISTRICT-COUNCIL/WALSALL,31/12/2018,RESOURCES & TRANSFORMATION,BLAKEMORE FOODSERVICE,01/10/2018,H59620181003LDISASBCR-1,11.98,CA MOORCROFT WOOD-CATERING,CATERERS,GPC
WALSALL COUNCIL,HTTP://OPENDATACOMMUNITIES.ORG/ID/METROPOLITAN-DISTRICT-COUNCIL/WALSALL,31/12/2018,RESOURCES & TRANSFORMATION,BLAKEMORE FOODSERVICE,01/10/2018,H59620181003GPCAVMBXM-1,155.94,CA LEIGHSWOOD PRIMARY SCHOOL-DRY FOODS-PROVISIONS,CATERERS,GPC
WALSALL COUNCIL,HTTP://OPENDATACOMMUNITIES.ORG/ID/METROPOLITAN-DISTRICT-COUNCIL/WALSALL,31/12/2018,RESOURCES & TRANSFORMATION,BLAKEMORE FOODSERVICE,01/10/2018,H59620181003GPCAVMBXM-2,149.76,CA LEIGHSWOOD PRIMARY SCHOOL-DRY FOODS-PROVISIONS,CATERERS,GPC
WALSALL COUNCIL,HTTP://OPENDATACOMMUNITIES.ORG/ID/METROPOLITAN-DISTRICT-COUNCIL/WALSALL,31/12/2018,RESOURCES & TRANSFORMATION,BLAKEMORE FOODSERVICE,01/10/2018,H59620181003WKMUXYFHH-1,108.97,CA LEIGHSWOOD PRIMARY SCHOOL-FROZEN FOODS-PROVISIONS,CATERERS,GPC
WALSALL COUNCIL,HTTP://OPENDATACOMMUNITIES.ORG/ID/METROPOLITAN-DISTRICT-COUNCIL/WALSALL,31/12/2018,RESOURCES & TRANSFORMATION,BLAKEMORE FOODSERVICE,01/10/2018,H59620181003KAQFBDANR-1,153.82,CA LINDENS PRIMARY SCHOOL-DRY FOODS-PROVISIONS,CATERERS,GPC
WALSALL COUNCIL,HTTP://OPENDATACOMMUNITIES.ORG/ID/METROPOLITAN-DISTRICT-COUNCIL/WALSALL,31/12/2018,RESOURCES & TRANSFORMATION,BLAKEMORE FOODSERVICE,01/10/2018,H59620181003KAQFBDANR-2,120.82,CA LINDENS PRIMARY SCHOOL-DRY FOODS-PROVISIONS,CATERERS,GPC
WALSALL COUNCIL,HTTP://OPENDATACOMMUNITIES.ORG/ID/METROPOLITAN-DISTRICT-COUNCIL/WALSALL,31/12/2018,RESOURCES & TRANSFORMATION,ARTHUR BRETT CATER,01/10/2018,H59620181111BCPRCJJIS-1,-0.65,CA LITTLE BLOXWICH CE PRIMARY -FRUIT & VEGETABLES OTHER-PROVI,MISCELLANEOUS FOOD STORES & CONVENIENCE STORES,GPC
WALSALL COUNCIL,HTTP://OPENDATACOMMUNITIES.ORG/ID/METROPOLITAN-DISTRICT-COUNCIL/WALSALL,31/12/2018,RESOURCES & TRANSFORMATION,SAINSBURYS S/MKT,01/10/2018,H59620181003JHDTKVWCU-1,8.94,TOWN HALL RESTAURANT BISTRO-FRUIT & VEGETABLES OTHER-PROVI,GROCERY STORES AND SUPERMARKETS,GPC
WALSALL COUNCIL,HTTP://OPENDATACOMMUNITIES.ORG/ID/METROPOLITAN-DISTRICT-COUNCIL/WALSALL,31/12/2018,RESOURCES & TRANSFORMATION,SAINSBURYS S/MKT,01/10/2018,H59620181003JHDTKVWCU-2,0.05,TOWN HALL RESTAURANT BISTRO-STATIONERY & GENERAL SUPPLIES-,GROCERY STORES AND SUPERMARKETS,GPC
WALSALL COUNCIL,HTTP://OPENDATACOMMUNITIES.ORG/ID/METROPOLITAN-DISTRICT-COUNCIL/WALSALL,31/12/2018,RESOURCES & TRANSFORMATION,BLAKEMORE FOODSERVICE,01/10/2018,H59620181003WNDALQQMI-1,-76.13,TOWN HALL RESTAURANT BISTRO-DRY FOODS-PROVISIONS,CATERERS,GPC
WALSALL COUNCIL,HTTP://OPENDATACOMMUNITIES.ORG/ID/METROPOLITAN-DISTRICT-COUNCIL/WALSALL,31/12/2018,RESOURCES & TRANSFORMATION,BLAKEMORE FOODSERVICE,01/10/2018,H59620181003RWYFSCRGO-1,408.46,CA MEADOW VIEW JMI PRIMARY SCH-DRY FOODS-PROVISIONS,CATERERS,GPC
WALSALL COUNCIL,HTTP://OPENDATACOMMUNITIES.ORG/ID/METROPOLITAN-DISTRICT-COUNCIL/WALSALL,31/12/2018,RESOURCES & TRANSFORMATION,BLAKEMORE FOODSERVICE,01/10/2018,H59620181003RWYFSCRGO-2,11.23,CA MEADOW VIEW JMI PRIMARY SCH-DRY FOODS-PROVISIONS,CATERERS,GPC
WALSALL COUNCIL,HTTP://OPENDATACOMMUNITIES.ORG/ID/METROPOLITAN-DISTRICT-COUNCIL/WALSALL,31/12/2018,RESOURCES & TRANSFORMATION,BLAKEMORE FOODSERVICE,01/10/2018,H59620181003MHJXYIAKH-1,435.71,CA RADLEYS PRIMARY SCHOOL-DRY FOODS-PROVISIONS,CATERERS,GPC
WALSALL COUNCIL,HTTP://OPENDATACOMMUNITIES.ORG/ID/METROPOLITAN-DISTRICT-COUNCIL/WALSALL,31/12/2018,RESOURCES & TRANSFORMATION,BLAKEMORE FOODSERVICE,01/10/2018,H59620181003MJWWNDLUQ-1,309.79,CA RADLEYS PRIMARY SCHOOL-FROZEN FOODS-PROVISIONS,CATERERS,GPC
WALSALL COUNCIL,HTTP://OPENDATACOMMUNITIES.ORG/ID/METROPOLITAN-DISTRICT-COUNCIL/WALSALL,31/12/2018,RESOURCES & TRANSFORMATION,BLAKEMORE FOODSERVICE,01/10/2018,H59620181003MJWWNDLUQ-2,33.31,CA RADLEYS PRIMARY SCHOOL-FROZEN FOODS-PROVISIONS,CATERERS,GPC
WALSALL COUNCIL,HTTP://OPENDATACOMMUNITIES.ORG/ID/METROPOLITAN-DISTRICT-COUNCIL/WALSALL,31/12/2018,RESOURCES & TRANSFORMATION,BLAKEMORE FOODSERVICE,01/10/2018,H59620181003DBMJEVNES-1,187.89,CA RUSHALL JMI SCHOOL-DRY FOODS-PROVISIONS,CATERERS,GPC
WALSALL COUNCIL,HTTP://OPENDATACOMMUNITIES.ORG/ID/METROPOLITAN-DISTRICT-COUNCIL/WALSALL,31/12/2018,RESOURCES & TRANSFORMATION,BLAKEMORE FOODSERVICE,01/10/2018,H59620181003DBMJEVNES-2,2.81,CA RUSHALL JMI SCHOOL-DRY FOODS-PROVISIONS,CATERERS,GPC
WALSALL COUNCIL,HTTP://OPENDATACOMMUNITIES.ORG/ID/METROPOLITAN-DISTRICT-COUNCIL/WALSALL,31/12/2018,RESOURCES & TRANSFORMATION,BLAKEMORE FOODSERVICE,01/10/2018,H59620181003KFVWSOQMP-1,307.11,CA RUSHALL JMI SCHOOL-CATERING,CATERERS,GPC
WALSALL COUNCIL,HTTP://OPENDATACOMMUNITIES.ORG/ID/METROPOLITAN-DISTRICT-COUNCIL/WALSALL,31/12/2018,RESOURCES & TRANSFORMATION,BLAKEMORE FOODSERVICE,01/10/2018,H59620181003UOOCMGOYS-1,230.98,CA RUSHALL JMI SCHOOL-FROZEN FOODS-PROVISIONS,CATERERS,GPC
WALSALL COUNCIL,HTTP://OPENDATACOMMUNITIES.ORG/ID/METROPOLITAN-DISTRICT-COUNCIL/WALSALL,31/12/2018,RESOURCES & TRANSFORMATION,BLAKEMORE FOODSERVICE,01/10/2018,H59620181003UOOCMGOYS-2,16.66,CA RUSHALL JMI SCHOOL-FROZEN FOODS-PROVISIONS,CATERERS,GPC
WALSALL COUNCIL,HTTP://OPENDATACOMMUNITIES.ORG/ID/METROPOLITAN-DISTRICT-COUNCIL/WALSALL,31/12/2018,RESOURCES & TRANSFORMATION,BLAKEMORE FOODSERVICE,01/10/2018,H59620181003PIRKOKTAM-1,267.16,CA ST GILES C.E. PRIMARY SCHOO-FROZEN FOODS-PROVISIONS,CATERERS,GPC
WALSALL COUNCIL,HTTP://OPENDATACOMMUNITIES.ORG/ID/METROPOLITAN-DISTRICT-COUNCIL/WALSALL,31/12/2018,RESOURCES & TRANSFORMATION,BLAKEMORE FOODSERVICE,01/10/2018,H59620181003PIRKOKTAM-2,24.98,CA ST GILES C.E. PRIMARY SCHOO-FROZEN FOODS-PROVISIONS,CATERERS,GPC
WALSALL COUNCIL,HTTP://OPENDATACOMMUNITIES.ORG/ID/METROPOLITAN-DISTRICT-COUNCIL/WALSALL,31/12/2018,RESOURCES & TRANSFORMATION,BLAKEMORE FOODSERVICE,01/10/2018,H59620181003QVAVPGUHR-1,62.75,CA ST GILES C.E. PRIMARY SCHOO-DRY FOODS-PROVISIONS,CATERERS,GPC
WALSALL COUNCIL,HTTP://OPENDATACOMMUNITIES.ORG/ID/METROPOLITAN-DISTRICT-COUNCIL/WALSALL,31/12/2018,RESOURCES & TRANSFORMATION,BLAKEMORE FOODSERVICE,01/10/2018,H59620181003QVAVPGUHR-2,46.31,CA ST GILES C.E. PRIMARY SCHOO-DRY FOODS-PROVISIONS,CATERERS,GPC
WALSALL COUNCIL,HTTP://OPENDATACOMMUNITIES.ORG/ID/METROPOLITAN-DISTRICT-COUNCIL/WALSALL,31/12/2018,RESOURCES & TRANSFORMATION,BLAKEMORE FOODSERVICE,01/10/2018,H59620181003GKMDWMNUF-1,292.73,CA ST JOHNS C.E. PRIMARY SCHOO-FROZEN FOODS-PROVISIONS,CATERERS,GPC
WALSALL COUNCIL,HTTP://OPENDATACOMMUNITIES.ORG/ID/METROPOLITAN-DISTRICT-COUNCIL/WALSALL,31/12/2018,RESOURCES & TRANSFORMATION,BLAKEMORE FOODSERVICE,01/10/2018,H59620181003VZPORFBBA-1,329.76,CA ST JOHNS C.E. PRIMARY SCHOO-DRY FOODS-PROVISIONS,CATERERS,GPC
WALSALL COUNCIL,HTTP://OPENDATACOMMUNITIES.ORG/ID/METROPOLITAN-DISTRICT-COUNCIL/WALSALL,31/12/2018,RESOURCES & TRANSFORMATION,BLAKEMORE FOODSERVICE,01/10/2018,H59620181003KQQLFQANP-1,227.06,CA ST MICHAELS C.E. PRIMARY SC-FROZEN FOODS-PROVISIONS,CATERERS,GPC
WALSALL COUNCIL,HTTP://OPENDATACOMMUNITIES.ORG/ID/METROPOLITAN-DISTRICT-COUNCIL/WALSALL,31/12/2018,RESOURCES & TRANSFORMATION,BLAKEMORE FOODSERVICE,01/10/2018,H59620181003KQQLFQANP-2,16.02,CA ST MICHAELS C.E. PRIMARY SC-FROZEN FOODS-PROVISIONS,CATERERS,GPC
WALSALL COUNCIL,HTTP://OPENDATACOMMUNITIES.ORG/ID/METROPOLITAN-DISTRICT-COUNCIL/WALSALL,31/12/2018,RESOURCES & TRANSFORMATION,BLAKEMORE FOODSERVICE,01/10/2018,H59620181003NTBIPWRTM-1,20.01,CA ST MICHAELS C.E. PRIMARY SC-DRY FOODS-PROVISIONS,CATERERS,GPC
WALSALL COUNCIL,HTTP://OPENDATACOMMUNITIES.ORG/ID/METROPOLITAN-DISTRICT-COUNCIL/WALSALL,31/12/2018,RESOURCES & TRANSFORMATION,BLAKEMORE FOODSERVICE,01/10/2018,H59620181003PPSUSGHSP-1,194.67,CA ST MICHAELS C.E. PRIMARY SC-DRY FOODS-PROVISIONS,CATERERS,GPC
WALSALL COUNCIL,HTTP://OPENDATACOMMUNITIES.ORG/ID/METROPOLITAN-DISTRICT-COUNCIL/WALSALL,31/12/2018,RESOURCES & TRANSFORMATION,BLAKEMORE FOODSERVICE,01/10/2018,H59620181003PPSUSGHSP-2,138.24,CA ST MICHAELS C.E. PRIMARY SC-DRY FOODS-PROVISIONS,CATERERS,GPC
WALSALL COUNCIL,HTTP://OPENDATACOMMUNITIES.ORG/ID/METROPOLITAN-DISTRICT-COUNCIL/WALSALL,31/12/2018,RESOURCES & TRANSFORMATION,BLAKEMORE FOODSERVICE,01/10/2018,H59620181003YLRHXTYQN-1,6.52,CA ST MICHAELS C.E. PRIMARY SC-FROZEN FOODS-PROVISIONS,CATERERS,GPC
WALSALL COUNCIL,HTTP://OPENDATACOMMUNITIES.ORG/ID/METROPOLITAN-DISTRICT-COUNCIL/WALSALL,31/12/2018,RESOURCES & TRANSFORMATION,BLAKEMORE FOODSERVICE,01/10/2018,H59620181003YZYQCQERI-1,235.00,CA WATLING STREET PRIMARY SCHO-DRY FOODS-PROVISIONS,CATERERS,GPC
WALSALL COUNCIL,HTTP://OPENDATACOMMUNITIES.ORG/ID/METROPOLITAN-DISTRICT-COUNCIL/WALSALL,31/12/2018,RESOURCES & TRANSFORMATION,BLAKEMORE FOODSERVICE,01/10/2018,H59620181003YZYQCQERI-2,46.08,CA WATLING STREET PRIMARY SCHO-DRY FOODS-PROVISIONS,CATERERS,GPC
WALSALL COUNCIL,HTTP://OPENDATACOMMUNITIES.ORG/ID/METROPOLITAN-DISTRICT-COUNCIL/WALSALL,31/12/2018,ECONOMY & ENVIRONMENT,ALDRIDGE FISH BAR,01/10/2018,H59620181004HHSNLWYIX-1,34.83,WALSALL OUTDOOR ADVENTURE CENT-FOOD AND BEVERAGES-PROVISIONS,QUICK PAYMENT SERVICE-FAST-FOOD RESTAURANTS,GPC
WALSALL COUNCIL,HTTP://OPENDATACOMMUNITIES.ORG/ID/METROPOLITAN-DISTRICT-COUNCIL/WALSALL,31/12/2018,ECONOMY & ENVIRONMENT,FACEBK WMEC3HEQX2,01/10/2018,H59620181003HLDZDBEMX-1,20.00,MARKETING AND PROMOTION-MISC FEES AND EXPENSES,ADVERTISING SERVICES,GPC
WALSALL COUNCIL,HTTP://OPENDATACOMMUNITIES.ORG/ID/METROPOLITAN-DISTRICT-COUNCIL/WALSALL,31/12/2018,ECONOMY & ENVIRONMENT,SWIMMING TEACHERS ASSO,01/10/2018,H59620181003SCUMNKQXD-1,5.00,DARLASTON LEISURE CENTRE-FEES & LICENCES-SERVICES,OTHER RECREATION SERVICES,GPC
WALSALL COUNCIL,HTTP://OPENDATACOMMUNITIES.ORG/ID/METROPOLITAN-DISTRICT-COUNCIL/WALSALL,31/12/2018,ECONOMY & ENVIRONMENT,AMAZON.CO.UK AMAZON.CO.UK,01/10/2018,H59620181003EBDNWJAIL-1,21.88,OAK PARK-MISCELLANEOUS SUPPLIES,MISCELLANEOUS AND SPECIALTY RETAIL STORES,GPC
WALSALL COUNCIL,HTTP://OPENDATACOMMUNITIES.ORG/ID/METROPOLITAN-DISTRICT-COUNCIL/WALSALL,31/12/2018,ECONOMY & ENVIRONMENT,SWIMMING TEACHERS ASSO,01/10/2018,H59620181003SCUMNKQXD-2,5.00,OAK PARK-FEES & LICENCES-SERVICES,OTHER RECREATION SERVICES,GPC
WALSALL COUNCIL,HTTP://OPENDATACOMMUNITIES.ORG/ID/METROPOLITAN-DISTRICT-COUNCIL/WALSALL,31/12/2018,ECONOMY & ENVIRONMENT,SWIMMING TEACHERS ASSO,01/10/2018,H59620181003SCUMNKQXD-3,5.00,BLOXWICH LEISURE CENTRE-FEES & LICENCES-SERVICES,OTHER RECREATION SERVICES,GPC
WALSALL COUNCIL,HTTP://OPENDATACOMMUNITIES.ORG/ID/METROPOLITAN-DISTRICT-COUNCIL/WALSALL,31/12/2018,ECONOMY & ENVIRONMENT,SWIMMING TEACHERS ASSO,01/10/2018,H59620181003SCUMNKQXD-4,5.00,WALSALL GALA CENTRE-FEES & LICENCES-SERVICES,OTHER RECREATION SERVICES,GPC
WALSALL COUNCIL,HTTP://OPENDATACOMMUNITIES.ORG/ID/METROPOLITAN-DISTRICT-COUNCIL/WALSALL,31/12/2018,ECONOMY & ENVIRONMENT,BANNER GROUP LTD,01/10/2018,H59620181003AWKXOYUUV-1,16.05,CEMETERIES CENTRAL ADMINISTRAT-STATIONERY & GENERAL SUPPLIES-,"OFFICE, SCHOOL SUPPLY, AND STATIONERY STORES",GPC
WALSALL COUNCIL,HTTP://OPENDATACOMMUNITIES.ORG/ID/METROPOLITAN-DISTRICT-COUNCIL/WALSALL,31/12/2018,ECONOMY & ENVIRONMENT,WILKO RETAIL LIMIT,01/10/2018,H59620181003BFDHWQRNY-1,6.20,LEATHER MUSEUM-GENERAL MATERIALS,HOUSEHOLD APPLIANCE STORES,GPC
WALSALL COUNCIL,HTTP://OPENDATACOMMUNITIES.ORG/ID/METROPOLITAN-DISTRICT-COUNCIL/WALSALL,31/12/2018,ECONOMY & ENVIRONMENT,LUL TICKET MACHINE,01/10/2018,H59620181003COUHTPDJD-1,12.70,NEW ART GALLERY - ADMIN-OFFICER/STAFF-PUBLIC TRANSPORT,PASSENGER RAILWAYS,GPC
WALSALL COUNCIL,HTTP://OPENDATACOMMUNITIES.ORG/ID/METROPOLITAN-DISTRICT-COUNCIL/WALSALL,31/12/2018,ECONOMY & ENVIRONMENT,WEST COAST TRAINS,01/10/2018,H59620181003UDCPFEMGO-1,86.40,NEW ART GALLERY - ADMIN-OFFICER/STAFF-PUBLIC TRANSPORT,PASSENGER RAILWAYS,GPC
WALSALL COUNCIL,HTTP://OPENDATACOMMUNITIES.ORG/ID/METROPOLITAN-DISTRICT-COUNCIL/WALSALL,31/12/2018,ECONOMY & ENVIRONMENT,TRAINLINE,01/10/2018,H59620181003YYSPQRJRC-1,35.85,NEW ART GALLERY - ADMIN-OFFICER/STAFF-PUBLIC TRANSPORT,PASSENGER RAILWAYS,GPC
WALSALL COUNCIL,HTTP://OPENDATACOMMUNITIES.ORG/ID/METROPOLITAN-DISTRICT-COUNCIL/WALSALL,31/12/2018,ECONOMY & ENVIRONMENT,TRAINLINE,01/10/2018,H59620181003GLTRHWPKX-1,113.40,NAG - TEMPORARY EXHIBITIONS-OTHER/VOLUNTEERS-PUBLIC TRANSP,PASSENGER RAILWAYS,GPC
WALSALL COUNCIL,HTTP://OPENDATACOMMUNITIES.ORG/ID/METROPOLITAN-DISTRICT-COUNCIL/WALSALL,31/12/2018,ECONOMY & ENVIRONMENT,PREMIER INN44533745,01/10/2018,H59620181004ELYLYVJTW-1,145.00,NAG - TEMPORARY EXHIBITIONS-OTHER EXPENSES-EXPENSES,PREMIER INN,GPC
WALSALL COUNCIL,HTTP://OPENDATACOMMUNITIES.ORG/ID/METROPOLITAN-DISTRICT-COUNCIL/WALSALL,31/12/2018,ECONOMY & ENVIRONMENT,PREMIER INN44533745,01/10/2018,H59620181004XUHCNUYCC-1,97.00,NAG - TEMPORARY EXHIBITIONS-OTHER EXPENSES-EXPENSES,PREMIER INN,GPC
WALSALL COUNCIL,HTTP://OPENDATACOMMUNITIES.ORG/ID/METROPOLITAN-DISTRICT-COUNCIL/WALSALL,31/12/2018,ADULT SOCIAL CARE,THEMANAGEMENTCENTR,01/10/2018,H59620181003FRTJFCRLI-1,166.00,ASC PARTNERSHIPS-HOTEL ACCOMMODATION-EMPLOYEES,"COLLEGES, UNIVERSITIES, PROFESSIONAL SCHOOLS",GPC
WALSALL COUNCIL,HTTP://OPENDATACOMMUNITIES.ORG/ID/METROPOLITAN-DISTRICT-COUNCIL/WALSALL,31/12/2018,ADULT SOCIAL CARE,THEMANAGEMENTCENTR,01/10/2018,H59620181003HPNKKGWXY-1,166.00,ASC PARTNERSHIPS-HOTEL ACCOMMODATION-EMPLOYEES,"COLLEGES, UNIVERSITIES, PROFESSIONAL SCHOOLS",GPC
WALSALL COUNCIL,HTTP://OPENDATACOMMUNITIES.ORG/ID/METROPOLITAN-DISTRICT-COUNCIL/WALSALL,31/12/2018,ADULT SOCIAL CARE,TRAINLINE,01/10/2018,H59620181003JAPTUKCHF-1,68.65,ASC PARTNERSHIPS-OFFICER/STAFF-PUBLIC TRANSPORT,PASSENGER RAILWAYS,GPC
WALSALL COUNCIL,HTTP://OPENDATACOMMUNITIES.ORG/ID/METROPOLITAN-DISTRICT-COUNCIL/WALSALL,31/12/2018,ADULT SOCIAL CARE,THEMANAGEMENTCENTR,01/10/2018,H59620181003ZLGEHVKBC-1,166.00,ASC PARTNERSHIPS-HOTEL ACCOMMODATION-EMPLOYEES,"COLLEGES, UNIVERSITIES, PROFESSIONAL SCHOOLS",GPC
WALSALL COUNCIL,HTTP://OPENDATACOMMUNITIES.ORG/ID/METROPOLITAN-DISTRICT-COUNCIL/WALSALL,31/12/2018,ADULT SOCIAL CARE,SHARED LIVES PLUS LIMI,01/10/2018,H59620181005TJEKMREDS-1,510.00,SHARED LIVES-EXTERNAL TRAINING,"ORGANIZATIONS, CHARITABLE AND SOCIAL SERVICE",GPC
WALSALL COUNCIL,HTTP://OPENDATACOMMUNITIES.ORG/ID/METROPOLITAN-DISTRICT-COUNCIL/WALSALL,31/12/2018,RESOURCES & TRANSFORMATION,WWW.SCC.COM,01/10/2018,H59620181004BKGQNFQIV-1,172.20,RECHARGEABLE EQUIPMENT-COMPUTER EQUIPMENT AND SUPPLIE,"COMPUTERS, COMPUTER PERIPHERAL EQUIPMENT, SOFTWARE",GPC
WALSALL COUNCIL,HTTP://OPENDATACOMMUNITIES.ORG/ID/METROPOLITAN-DISTRICT-COUNCIL/WALSALL,31/12/2018,RESOURCES & TRANSFORMATION,WWW.SCC.COM,01/10/2018,H59620181010FQVGJWFKY-1,116.37,RECHARGEABLE EQUIPMENT-COMPUTER EQUIPMENT AND SUPPLIE,"COMPUTERS, COMPUTER PERIPHERAL EQUIPMENT, SOFTWARE",GPC
WALSALL COUNCIL,HTTP://OPENDATACOMMUNITIES.ORG/ID/METROPOLITAN-DISTRICT-COUNCIL/WALSALL,31/12/2018,RESOURCES & TRANSFORMATION,WWW.SCC.COM,01/10/2018,H59620181011CRNLEDROC-1,324.50,RECHARGEABLE EQUIPMENT-COMPUTER EQUIPMENT AND SUPPLIE,"COMPUTERS, COMPUTER PERIPHERAL EQUIPMENT, SOFTWARE",GPC
WALSALL COUNCIL,HTTP://OPENDATACOMMUNITIES.ORG/ID/METROPOLITAN-DISTRICT-COUNCIL/WALSALL,31/12/2018,RESOURCES & TRANSFORMATION,WWW.SCC.COM,01/10/2018,H59620181018QQNURAFCT-1,1174.34,RECHARGEABLE EQUIPMENT-COMPUTER EQUIPMENT AND SUPPLIE,"COMPUTERS, COMPUTER PERIPHERAL EQUIPMENT, SOFTWARE",GPC
WALSALL COUNCIL,HTTP://OPENDATACOMMUNITIES.ORG/ID/METROPOLITAN-DISTRICT-COUNCIL/WALSALL,31/12/2018,CHILDRENS SERVICES-SCHOOLS,POUNDLAND,02/10/2018,H59620181004QGKBSFIKC-1,10.00,PELSALL VILLAGE SCHOOL-BREAD-GENERAL-PROVISIONS,DISCOUNT STORES,GPC
WALSALL COUNCIL,HTTP://OPENDATACOMMUNITIES.ORG/ID/METROPOLITAN-DISTRICT-COUNCIL/WALSALL,31/12/2018,CHILDRENS SERVICES-SCHOOLS,WWW.BADGESPLUS.CO.UK,02/10/2018,H59620181004AQIVKITUN-1,205.80,AWARDS-GENERAL MATERIALS,MISCELLANEOUS AND SPECIALTY RETAIL STORES,GPC
WALSALL COUNCIL,HTTP://OPENDATACOMMUNITIES.ORG/ID/METROPOLITAN-DISTRICT-COUNCIL/WALSALL,31/12/2018,CHILDRENS SERVICES-SCHOOLS,AMAZON.CO.UK,02/10/2018,H59620181004KPKVVEIRY-1,43.00,CURRICULUM STOCK-GENERAL MATERIALS,OTHER DIRECT MARKETING-OTHER DIRECT MARKETERS,GPC
WALSALL COUNCIL,HTTP://OPENDATACOMMUNITIES.ORG/ID/METROPOLITAN-DISTRICT-COUNCIL/WALSALL,31/12/2018,CHILDRENS SERVICES-SCHOOLS,WALSALL COUNCIL,02/10/2018,H59620181005WGOWFIVTT-1,46.34,ADMINISTRATIVE SUPPLIES-GENERAL MATERIALS,GOVERNMENT SERVICES,GPC
WALSALL COUNCIL,HTTP://OPENDATACOMMUNITIES.ORG/ID/METROPOLITAN-DISTRICT-COUNCIL/WALSALL,31/12/2018,CHILDRENS SERVICES-SCHOOLS,AMZN MKTP UK,02/10/2018,H59620181004BKBQSOEVV-1,29.85,E19-GENERAL MATERIALS,BOOK STORES,GPC
WALSALL COUNCIL,HTTP://OPENDATACOMMUNITIES.ORG/ID/METROPOLITAN-DISTRICT-COUNCIL/WALSALL,31/12/2018,CHILDRENS SERVICES-SCHOOLS,ASDA GROCERIES ONLINE,02/10/2018,H59620181004NFAFSXWQN-1,-3.45,ROSEDALE C.E. PRIMARY SCHOOL-FOOD AND BEVERAGES-PROVISIONS,GROCERY STORES AND SUPERMARKETS,GPC
WALSALL COUNCIL,HTTP://OPENDATACOMMUNITIES.ORG/ID/METROPOLITAN-DISTRICT-COUNCIL/WALSALL,31/12/2018,CHILDRENS SERVICES-SCHOOLS,ASDA GROCERIES ONLINE,02/10/2018,H59620181004UEWZDJEOY-1,47.75,ROSEDALE C.E. PRIMARY SCHOOL-BREAD-GENERAL-PROVISIONS,GROCERY STORES AND SUPERMARKETS,GPC
WALSALL COUNCIL,HTTP://OPENDATACOMMUNITIES.ORG/ID/METROPOLITAN-DISTRICT-COUNCIL/WALSALL,31/12/2018,CHILDRENS SERVICES,WM MORRISON FOOD.COM,02/10/2018,H59620181004HDYYCNDPM-1,10.86,BIRCHILLS CHILDCARE SERVICES-FOOD AND BEVERAGES-PROVISIONS,GROCERY STORES AND SUPERMARKETS,GPC
WALSALL COUNCIL,HTTP://OPENDATACOMMUNITIES.ORG/ID/METROPOLITAN-DISTRICT-COUNCIL/WALSALL,31/12/2018,CHILDRENS SERVICES,WM MORRISON FOOD.COM,02/10/2018,H59620181004HDYYCNDPM-2,113.07,BIRCHILLS CHILDCARE SERVICES-FOOD AND BEVERAGES-PROVISIONS,GROCERY STORES AND SUPERMARKETS,GPC
WALSALL COUNCIL,HTTP://OPENDATACOMMUNITIES.ORG/ID/METROPOLITAN-DISTRICT-COUNCIL/WALSALL,31/12/2018,CHILDRENS SERVICES,TRAINLINE,02/10/2018,H59620181004GTRRGBBFH-1,223.10,DIRECTLY COMMISSIONED NURSING -OTHER-TRAVEL ALLOWANCES,PASSENGER RAILWAYS,GPC
WALSALL COUNCIL,HTTP://OPENDATACOMMUNITIES.ORG/ID/METROPOLITAN-DISTRICT-COUNCIL/WALSALL,31/12/2018,CHILDRENS SERVICES,WEST MID TRAVEL,02/10/2018,H59620181004XDPNXMSRB-1,250.00,SAFEGUARDING & FAMILY SUPPORT-OTHER/VOLUNTEERS-PUBLIC TRANSP,BUS LINES,GPC
WALSALL COUNCIL,HTTP://OPENDATACOMMUNITIES.ORG/ID/METROPOLITAN-DISTRICT-COUNCIL/WALSALL,31/12/2018,CHILDRENS SERVICES,WEST MID TRAVEL,02/10/2018,H59620181004XDPNXMSRB-2,6.25,SAFEGUARDING & FAMILY SUPPORT-POSTAGES AND COURIER SERVICES,BUS LINES,GPC
WALSALL COUNCIL,HTTP://OPENDATACOMMUNITIES.ORG/ID/METROPOLITAN-DISTRICT-COUNCIL/WALSALL,31/12/2018,CHILDRENS SERVICES,TRAVEL WEST MIDLAN,02/10/2018,H59620181004LGWNLYIGY-1,16.20,LOOKED AFTER CHILDRENS SOCIAL -SUPPORT UNDER SECTION 23 OF TH,BUS LINES,GPC
WALSALL COUNCIL,HTTP://OPENDATACOMMUNITIES.ORG/ID/METROPOLITAN-DISTRICT-COUNCIL/WALSALL,31/12/2018,CHILDRENS SERVICES,WM MORRISONS STORE,02/10/2018,H59620181004DHSLVKOHM-1,19.50,"43A HILTON ROAD, WILLENHALL-FOOD AND BEVERAGES-PROVISIONS",GROCERY STORES AND SUPERMARKETS,GPC
WALSALL COUNCIL,HTTP://OPENDATACOMMUNITIES.ORG/ID/METROPOLITAN-DISTRICT-COUNCIL/WALSALL,31/12/2018,CHILDRENS SERVICES,WM MORRISONS STORE,02/10/2018,H59620181004DHSLVKOHM-2,54.21,"43A HILTON ROAD, WILLENHALL-FOOD AND BEVERAGES-PROVISIONS",GROCERY STORES AND SUPERMARKETS,GPC
WALSALL COUNCIL,HTTP://OPENDATACOMMUNITIES.ORG/ID/METROPOLITAN-DISTRICT-COUNCIL/WALSALL,31/12/2018,CHILDRENS SERVICES,FARMFOODS- KINGSTA,02/10/2018,H59620181004RYOOCPQJD-1,3.16,REDRUTH ROAD-EQUIP NEW-CLEANING,GROCERY STORES AND SUPERMARKETS,GPC
WALSALL COUNCIL,HTTP://OPENDATACOMMUNITIES.ORG/ID/METROPOLITAN-DISTRICT-COUNCIL/WALSALL,31/12/2018,CHILDRENS SERVICES,FARMFOODS- KINGSTA,02/10/2018,H59620181004TJGYNQXVP-1,18.19,REDRUTH ROAD-FOOD AND BEVERAGES-PROVISIONS,GROCERY STORES AND SUPERMARKETS,GPC
WALSALL COUNCIL,HTTP://OPENDATACOMMUNITIES.ORG/ID/METROPOLITAN-DISTRICT-COUNCIL/WALSALL,31/12/2018,ECONOMY & ENVIRONMENT,TRAINLINE,02/10/2018,H59620181004UHTUGIUXM-1,262.30,DEVELOPMENT TEAM-OFFICER/STAFF-PUBLIC TRANSPORT,PASSENGER RAILWAYS,GPC
WALSALL COUNCIL,HTTP://OPENDATACOMMUNITIES.ORG/ID/METROPOLITAN-DISTRICT-COUNCIL/WALSALL,31/12/2018,RESOURCES & TRANSFORMATION,TESCO STORES 6161,02/10/2018,H59620181004TKJFYOWQX-1,40.00,ACCOMMODATION SERVICES MANAGEM-FOOD AND BEVERAGES-PROVISIONS,GROCERY STORES AND SUPERMARKETS,GPC
WALSALL COUNCIL,HTTP://OPENDATACOMMUNITIES.ORG/ID/METROPOLITAN-DISTRICT-COUNCIL/WALSALL,31/12/2018,RESOURCES & TRANSFORMATION,TESCO STORES 6161,02/10/2018,H59620181004YTICYOHEA-1,9.31,ACCOMMODATION SERVICES MANAGEM-FOOD AND BEVERAGES-PROVISIONS,GROCERY STORES AND SUPERMARKETS,GPC
WALSALL COUNCIL,HTTP://OPENDATACOMMUNITIES.ORG/ID/METROPOLITAN-DISTRICT-COUNCIL/WALSALL,31/12/2018,RESOURCES & TRANSFORMATION,TESCO STORES 6161,02/10/2018,H59620181004YTICYOHEA-2,31.60,ACCOMMODATION SERVICES MANAGEM-FOOD AND BEVERAGES-PROVISIONS,GROCERY STORES AND SUPERMARKETS,GPC
WALSALL COUNCIL,HTTP://OPENDATACOMMUNITIES.ORG/ID/METROPOLITAN-DISTRICT-COUNCIL/WALSALL,31/12/2018,RESOURCES & TRANSFORMATION,JOHAL CONV STORE 71872,02/10/2018,H59620181004IZQVKFFBO-1,10.00,TENANCY SERVICE-ELECTRICITY-ENERGY COSTS,GROCERY STORES AND SUPERMARKETS,GPC
WALSALL COUNCIL,HTTP://OPENDATACOMMUNITIES.ORG/ID/METROPOLITAN-DISTRICT-COUNCIL/WALSALL,31/12/2018,RESOURCES & TRANSFORMATION,JOHAL CONV STORE 71872,02/10/2018,H59620181004QTSSLQRYW-1,10.00,TENANCY SERVICE-ELECTRICITY-ENERGY COSTS,GROCERY STORES AND SUPERMARKETS,GPC
WALSALL COUNCIL,HTTP://OPENDATACOMMUNITIES.ORG/ID/METROPOLITAN-DISTRICT-COUNCIL/WALSALL,31/12/2018,RESOURCES & TRANSFORMATION,UTILITA ENERGY LIMITED,02/10/2018,H59620181005KRJVUTBMF-1,10.00,TENANCY SERVICE-ELECTRICITY-ENERGY COSTS,"UTILITIES - ELECTRIC, GAS, SANITARY & WATER",GPC
WALSALL COUNCIL,HTTP://OPENDATACOMMUNITIES.ORG/ID/METROPOLITAN-DISTRICT-COUNCIL/WALSALL,31/12/2018,RESOURCES & TRANSFORMATION,ASDA SUPERSTORE,02/10/2018,H59620181004NTYLFHLDV-1,4.83,YOUNG PERSONS HOMELESS SERVICE-FOOD AND BEVERAGES-PROVISIONS,GROCERY STORES AND SUPERMARKETS,GPC
WALSALL COUNCIL,HTTP://OPENDATACOMMUNITIES.ORG/ID/METROPOLITAN-DISTRICT-COUNCIL/WALSALL,31/12/2018,RESOURCES & TRANSFORMATION,ASDA SUPERSTORE,02/10/2018,H59620181004NTYLFHLDV-2,2.99,YOUNG PERSONS HOMELESS SERVICE-FOOD AND BEVERAGES-PROVISIONS,GROCERY STORES AND SUPERMARKETS,GPC
WALSALL COUNCIL,HTTP://OPENDATACOMMUNITIES.ORG/ID/METROPOLITAN-DISTRICT-COUNCIL/WALSALL,31/12/2018,RESOURCES & TRANSFORMATION,ASDA SUPERSTORE,02/10/2018,H59620181004TGNLLIKSY-1,0.90,YOUNG PERSONS HOMELESS SERVICE-FOOD AND BEVERAGES-PROVISIONS,GROCERY STORES AND SUPERMARKETS,GPC
WALSALL COUNCIL,HTTP://OPENDATACOMMUNITIES.ORG/ID/METROPOLITAN-DISTRICT-COUNCIL/WALSALL,31/12/2018,ECONOMY & ENVIRONMENT,AO RETAIL LIMITED,02/10/2018,H59620181004BCNRBVCZU-1,119.00,SMARTER WORKPLACES PM-FURNITURE & EQUIPMENT,HOUSEHOLD APPLIANCE STORES,GPC
WALSALL COUNCIL,HTTP://OPENDATACOMMUNITIES.ORG/ID/METROPOLITAN-DISTRICT-COUNCIL/WALSALL,31/12/2018,ECONOMY & ENVIRONMENT,B & Q 1276,02/10/2018,H59620181004DJXXECPGJ-1,66.12,INFRASTRUCTURE MAINTENANCE-GENERAL MATERIALS,LUMBER & BUILDING MATERIALS STORES,GPC
WALSALL COUNCIL,HTTP://OPENDATACOMMUNITIES.ORG/ID/METROPOLITAN-DISTRICT-COUNCIL/WALSALL,31/12/2018,ECONOMY & ENVIRONMENT,UNWINS,02/10/2018,H59620181004CBTNZKTDJ-1,76.90,COUNTRYSIDE MANAGEMENT - OTHER-GENERAL MATERIALS,"NURSERIES, LAWN AND GARDEN SUPPLY STORES",GPC
WALSALL COUNCIL,HTTP://OPENDATACOMMUNITIES.ORG/ID/METROPOLITAN-DISTRICT-COUNCIL/WALSALL,31/12/2018,ECONOMY & ENVIRONMENT,PARK PLACE SHOE REPAIRS,02/10/2018,H59620181004GNIBXOFOK-1,17.00,POLLUTION DIVISION-MAINTENANCE-FURNITURE & EQUIPM,"HAT CLEANING SHOPS, SHOE REPAIR SHOPS, SHOE SHINE ",GPC
WALSALL COUNCIL,HTTP://OPENDATACOMMUNITIES.ORG/ID/METROPOLITAN-DISTRICT-COUNCIL/WALSALL,31/12/2018,RESOURCES & TRANSFORMATION,ARTHUR BRETT CATER,02/10/2018,H59620181004NUTGTCGDV-1,77.93,CA KINGSHILL SCHOOL-FOOD AND BEVERAGES-PROVISIONS,MISCELLANEOUS FOOD STORES & CONVENIENCE STORES,GPC
WALSALL COUNCIL,HTTP://OPENDATACOMMUNITIES.ORG/ID/METROPOLITAN-DISTRICT-COUNCIL/WALSALL,31/12/2018,RESOURCES & TRANSFORMATION,ARTHUR BRETT CATER,02/10/2018,H59620181004RXYKUMMKK-1,42.84,CA JANE LANE SPECIAL SCHOOL-FRUIT & VEGETABLES OTHER-PROVI,MISCELLANEOUS FOOD STORES & CONVENIENCE STORES,GPC
WALSALL COUNCIL,HTTP://OPENDATACOMMUNITIES.ORG/ID/METROPOLITAN-DISTRICT-COUNCIL/WALSALL,31/12/2018,RESOURCES & TRANSFORMATION,ARTHUR BRETT CATER,02/10/2018,H59620181004TEMMABWIB-1,37.23,CA OAKWOOD SPECIAL SCHOOL-FRUIT & VEGETABLES OTHER-PROVI,MISCELLANEOUS FOOD STORES & CONVENIENCE STORES,GPC
WALSALL COUNCIL,HTTP://OPENDATACOMMUNITIES.ORG/ID/METROPOLITAN-DISTRICT-COUNCIL/WALSALL,31/12/2018,RESOURCES & TRANSFORMATION,ARTHUR BRETT CATER,02/10/2018,H59620181004HXPDILIZH-1,49.45,CA OLD HALL SPECIAL SCHOOL-FRUIT & VEGETABLES OTHER-PROVI,MISCELLANEOUS FOOD STORES & CONVENIENCE STORES,GPC
WALSALL COUNCIL,HTTP://OPENDATACOMMUNITIES.ORG/ID/METROPOLITAN-DISTRICT-COUNCIL/WALSALL,31/12/2018,RESOURCES & TRANSFORMATION,CHICKEN JOES LTD,02/10/2018,H59620181004TILJGXRDX-1,37.89,CA OLD HALL SPECIAL SCHOOL-FROZEN FOODS-PROVISIONS,CATERERS,GPC
WALSALL COUNCIL,HTTP://OPENDATACOMMUNITIES.ORG/ID/METROPOLITAN-DISTRICT-COUNCIL/WALSALL,31/12/2018,RESOURCES & TRANSFORMATION,ARTHUR BRETT CATER,02/10/2018,H59620181004TFCHAPHJT-1,39.50,CA ABBEY PRIMARY SCHOOL-FRUIT & VEGETABLES OTHER-PROVI,MISCELLANEOUS FOOD STORES & CONVENIENCE STORES,GPC
WALSALL COUNCIL,HTTP://OPENDATACOMMUNITIES.ORG/ID/METROPOLITAN-DISTRICT-COUNCIL/WALSALL,31/12/2018,RESOURCES & TRANSFORMATION,ARTHUR BRETT CATER,02/10/2018,H59620181004RUFPIQPOJ-1,42.63,CA ALUMWELL INFANT SCHOOL-FRUIT & VEGETABLES OTHER-PROVI,MISCELLANEOUS FOOD STORES & CONVENIENCE STORES,GPC
WALSALL COUNCIL,HTTP://OPENDATACOMMUNITIES.ORG/ID/METROPOLITAN-DISTRICT-COUNCIL/WALSALL,31/12/2018,RESOURCES & TRANSFORMATION,CHICKEN JOES LTD,02/10/2018,H59620181004ADTDLSVSH-1,44.69,CA BEACON PRIMARY SCHOOL-FROZEN FOODS-PROVISIONS,CATERERS,GPC
WALSALL COUNCIL,HTTP://OPENDATACOMMUNITIES.ORG/ID/METROPOLITAN-DISTRICT-COUNCIL/WALSALL,31/12/2018,RESOURCES & TRANSFORMATION,ARTHUR BRETT CATER,02/10/2018,H59620181004JQSNLWPTD-1,106.63,CA BEACON PRIMARY SCHOOL-FRUIT & VEGETABLES OTHER-PROVI,MISCELLANEOUS FOOD STORES & CONVENIENCE STORES,GPC
WALSALL COUNCIL,HTTP://OPENDATACOMMUNITIES.ORG/ID/METROPOLITAN-DISTRICT-COUNCIL/WALSALL,31/12/2018,RESOURCES & TRANSFORMATION,ARTHUR BRETT CATER,02/10/2018,H59620181004VXNJNCLYD-1,147.17,CA BIRCHILLS CE PRIMARY COMMUN-FOOD AND BEVERAGES-PROVISIONS,MISCELLANEOUS FOOD STORES & CONVENIENCE STORES,GPC
WALSALL COUNCIL,HTTP://OPENDATACOMMUNITIES.ORG/ID/METROPOLITAN-DISTRICT-COUNCIL/WALSALL,31/12/2018,RESOURCES & TRANSFORMATION,ARTHUR BRETT CATER,02/10/2018,H59620181004YNQHFEIOY-1,40.04,CA BLOXWICH C.E. JMI PRIMARY S-FRUIT & VEGETABLES OTHER-PROVI,MISCELLANEOUS FOOD STORES & CONVENIENCE STORES,GPC
WALSALL COUNCIL,HTTP://OPENDATACOMMUNITIES.ORG/ID/METROPOLITAN-DISTRICT-COUNCIL/WALSALL,31/12/2018,RESOURCES & TRANSFORMATION,ARTHUR BRETT CATER,02/10/2018,H59620181004LDGNFHUZI-1,36.57,CA BROWNHILLS WEST PRIMARY SCH-MISC DAIRY PRODUCTS-PROVISIONS,MISCELLANEOUS FOOD STORES & CONVENIENCE STORES,GPC
WALSALL COUNCIL,HTTP://OPENDATACOMMUNITIES.ORG/ID/METROPOLITAN-DISTRICT-COUNCIL/WALSALL,31/12/2018,RESOURCES & TRANSFORMATION,CHICKEN JOES LTD,02/10/2018,H59620181004FIHTSECGP-1,40.17,CA BUSILL JONES PRIMARY SCHOOL-FROZEN FOODS-PROVISIONS,CATERERS,GPC
WALSALL COUNCIL,HTTP://OPENDATACOMMUNITIES.ORG/ID/METROPOLITAN-DISTRICT-COUNCIL/WALSALL,31/12/2018,RESOURCES & TRANSFORMATION,ARTHUR BRETT CATER,02/10/2018,H59620181004MQHKLGBQH-1,68.11,CA BUSILL JONES PRIMARY SCHOOL-FRUIT & VEGETABLES OTHER-PROVI,MISCELLANEOUS FOOD STORES & CONVENIENCE STORES,GPC
WALSALL COUNCIL,HTTP://OPENDATACOMMUNITIES.ORG/ID/METROPOLITAN-DISTRICT-COUNCIL/WALSALL,31/12/2018,RESOURCES & TRANSFORMATION,ARTHUR BRETT CATER,02/10/2018,H59620181004YGUGWWOOC-1,46.02,CA CASTLEFORT JMI SCHOOL-FRUIT & VEGETABLES OTHER-PROVI,MISCELLANEOUS FOOD STORES & CONVENIENCE STORES,GPC
WALSALL COUNCIL,HTTP://OPENDATACOMMUNITIES.ORG/ID/METROPOLITAN-DISTRICT-COUNCIL/WALSALL,31/12/2018,RESOURCES & TRANSFORMATION,ARTHUR BRETT CATER,02/10/2018,H59620181004YPDASPGWC-1,189.02,CA COOPER JORDAN CE PRIMARY SC-FRUIT & VEGETABLES OTHER-PROVI,MISCELLANEOUS FOOD STORES & CONVENIENCE STORES,GPC
WALSALL COUNCIL,HTTP://OPENDATACOMMUNITIES.ORG/ID/METROPOLITAN-DISTRICT-COUNCIL/WALSALL,31/12/2018,RESOURCES & TRANSFORMATION,ARTHUR BRETT CATER,02/10/2018,H59620181004FCDEQPKNT-1,64.70,CA CROFT COMMUNITY PRIMARY SCH-FRUIT & VEGETABLES OTHER-PROVI,MISCELLANEOUS FOOD STORES & CONVENIENCE STORES,GPC
WALSALL COUNCIL,HTTP://OPENDATACOMMUNITIES.ORG/ID/METROPOLITAN-DISTRICT-COUNCIL/WALSALL,31/12/2018,RESOURCES & TRANSFORMATION,ARTHUR BRETT CATER,02/10/2018,H59620181004MAKEWSVTJ-1,78.71,CA ELMORE GREEN PRIMARY SCHOOL-FRUIT & VEGETABLES OTHER-PROVI,MISCELLANEOUS FOOD STORES & CONVENIENCE STORES,GPC
WALSALL COUNCIL,HTTP://OPENDATACOMMUNITIES.ORG/ID/METROPOLITAN-DISTRICT-COUNCIL/WALSALL,31/12/2018,RESOURCES & TRANSFORMATION,CHICKEN JOES LTD,02/10/2018,H59620181004JTNPBOHXM-1,41.17,CA BARCROFT D/C-FROZEN FOODS-PROVISIONS,CATERERS,GPC
WALSALL COUNCIL,HTTP://OPENDATACOMMUNITIES.ORG/ID/METROPOLITAN-DISTRICT-COUNCIL/WALSALL,31/12/2018,RESOURCES & TRANSFORMATION,ARTHUR BRETT CATER,02/10/2018,H59620181004UGPOLJJFQ-1,94.49,CA BARCROFT D/C-FRUIT & VEGETABLES OTHER-PROVI,MISCELLANEOUS FOOD STORES & CONVENIENCE STORES,GPC
WALSALL COUNCIL,HTTP://OPENDATACOMMUNITIES.ORG/ID/METROPOLITAN-DISTRICT-COUNCIL/WALSALL,31/12/2018,RESOURCES & TRANSFORMATION,ARTHUR BRETT CATER,02/10/2018,H59620181004SJBPHVBVT-1,103.71,CA MOORCROFT WOOD-FRUIT & VEGETABLES OTHER-PROVI,MISCELLANEOUS FOOD STORES & CONVENIENCE STORES,GPC
WALSALL COUNCIL,HTTP://OPENDATACOMMUNITIES.ORG/ID/METROPOLITAN-DISTRICT-COUNCIL/WALSALL,31/12/2018,RESOURCES & TRANSFORMATION,ARTHUR BRETT CATER,02/10/2018,H59620181004YPLFBUIBJ-1,42.91,CA LEAMORE PRIMARY SCHOOL-FRUIT & VEGETABLES OTHER-PROVI,MISCELLANEOUS FOOD STORES & CONVENIENCE STORES,GPC
WALSALL COUNCIL,HTTP://OPENDATACOMMUNITIES.ORG/ID/METROPOLITAN-DISTRICT-COUNCIL/WALSALL,31/12/2018,RESOURCES & TRANSFORMATION,CHICKEN JOES LTD,02/10/2018,H59620181004KSCKXUDYL-1,56.58,CA LINDENS PRIMARY SCHOOL-FROZEN FOODS-PROVISIONS,CATERERS,GPC
WALSALL COUNCIL,HTTP://OPENDATACOMMUNITIES.ORG/ID/METROPOLITAN-DISTRICT-COUNCIL/WALSALL,31/12/2018,RESOURCES & TRANSFORMATION,ARTHUR BRETT CATER,02/10/2018,H59620181004VRQJYQBQB-1,98.48,CA LINDENS PRIMARY SCHOOL-FRUIT & VEGETABLES OTHER-PROVI,MISCELLANEOUS FOOD STORES & CONVENIENCE STORES,GPC
WALSALL COUNCIL,HTTP://OPENDATACOMMUNITIES.ORG/ID/METROPOLITAN-DISTRICT-COUNCIL/WALSALL,31/12/2018,RESOURCES & TRANSFORMATION,ARTHUR BRETT CATER,02/10/2018,H59620181004CDAWEWGVI-1,41.20,CA LITTLE BLOXWICH CE PRIMARY -FRUIT & VEGETABLES OTHER-PROVI,MISCELLANEOUS FOOD STORES & CONVENIENCE STORES,GPC
WALSALL COUNCIL,HTTP://OPENDATACOMMUNITIES.ORG/ID/METROPOLITAN-DISTRICT-COUNCIL/WALSALL,31/12/2018,RESOURCES & TRANSFORMATION,TESCO STORES 6161,02/10/2018,H59620181004YCJUIENLT-1,5.62,TOWN HALL RESTAURANT BISTRO-FRUIT & VEGETABLES OTHER-PROVI,GROCERY STORES AND SUPERMARKETS,GPC
WALSALL COUNCIL,HTTP://OPENDATACOMMUNITIES.ORG/ID/METROPOLITAN-DISTRICT-COUNCIL/WALSALL,31/12/2018,RESOURCES & TRANSFORMATION,ARTHUR BRETT CATER,02/10/2018,H59620181004ORLOHJKQJ-1,53.78,CA MEADOW VIEW JMI PRIMARY SCH-FRUIT & VEGETABLES OTHER-PROVI,MISCELLANEOUS FOOD STORES & CONVENIENCE STORES,GPC
WALSALL COUNCIL,HTTP://OPENDATACOMMUNITIES.ORG/ID/METROPOLITAN-DISTRICT-COUNCIL/WALSALL,31/12/2018,RESOURCES & TRANSFORMATION,ARTHUR BRETT CATER,02/10/2018,H59620181004XOGMKNCXN-1,84.11,CA RADLEYS PRIMARY SCHOOL-FRUIT & VEGETABLES OTHER-PROVI,MISCELLANEOUS FOOD STORES & CONVENIENCE STORES,GPC
WALSALL COUNCIL,HTTP://OPENDATACOMMUNITIES.ORG/ID/METROPOLITAN-DISTRICT-COUNCIL/WALSALL,31/12/2018,RESOURCES & TRANSFORMATION,ARTHUR BRETT CATER,02/10/2018,H59620181004AJDIABIBR-1,12.90,CA RUSHALL JMI SCHOOL-FRUIT & VEGETABLES OTHER-PROVI,MISCELLANEOUS FOOD STORES & CONVENIENCE STORES,GPC
WALSALL COUNCIL,HTTP://OPENDATACOMMUNITIES.ORG/ID/METROPOLITAN-DISTRICT-COUNCIL/WALSALL,31/12/2018,RESOURCES & TRANSFORMATION,ARTHUR BRETT CATER,02/10/2018,H59620181004DDIRRITBN-1,7.53,CA ST BERNADETTES CATHOLIC PRI-FRUIT & VEGETABLES OTHER-PROVI,MISCELLANEOUS FOOD STORES & CONVENIENCE STORES,GPC
WALSALL COUNCIL,HTTP://OPENDATACOMMUNITIES.ORG/ID/METROPOLITAN-DISTRICT-COUNCIL/WALSALL,31/12/2018,RESOURCES & TRANSFORMATION,CHICKEN JOES LTD,02/10/2018,H59620181004IEEZMNNOQ-1,93.16,CA ST GILES C.E. PRIMARY SCHOO-FROZEN FOODS-PROVISIONS,CATERERS,GPC
WALSALL COUNCIL,HTTP://OPENDATACOMMUNITIES.ORG/ID/METROPOLITAN-DISTRICT-COUNCIL/WALSALL,31/12/2018,RESOURCES & TRANSFORMATION,ARTHUR BRETT CATER,02/10/2018,H59620181004MEDPMTXVP-1,70.12,CA ST GILES C.E. PRIMARY SCHOO-FRUIT & VEGETABLES OTHER-PROVI,MISCELLANEOUS FOOD STORES & CONVENIENCE STORES,GPC
WALSALL COUNCIL,HTTP://OPENDATACOMMUNITIES.ORG/ID/METROPOLITAN-DISTRICT-COUNCIL/WALSALL,31/12/2018,RESOURCES & TRANSFORMATION,CHICKEN JOES LTD,02/10/2018,H59620181004AVDZRKHEG-1,122.59,CA ST JOHNS C.E. PRIMARY SCHOO-FROZEN FOODS-PROVISIONS,CATERERS,GPC
WALSALL COUNCIL,HTTP://OPENDATACOMMUNITIES.ORG/ID/METROPOLITAN-DISTRICT-COUNCIL/WALSALL,31/12/2018,RESOURCES & TRANSFORMATION,ARTHUR BRETT CATER,02/10/2018,H59620181004PGDRIXYWP-1,153.29,CA ST JOHNS C.E. PRIMARY SCHOO-FOOD AND BEVERAGES-PROVISIONS,MISCELLANEOUS FOOD STORES & CONVENIENCE STORES,GPC
WALSALL COUNCIL,HTTP://OPENDATACOMMUNITIES.ORG/ID/METROPOLITAN-DISTRICT-COUNCIL/WALSALL,31/12/2018,RESOURCES & TRANSFORMATION,ARTHUR BRETT CATER,02/10/2018,H59620181004EXWKHXPDP-1,45.69,CA ST MICHAELS C.E. PRIMARY SC-FRUIT & VEGETABLES OTHER-PROVI,MISCELLANEOUS FOOD STORES & CONVENIENCE STORES,GPC
WALSALL COUNCIL,HTTP://OPENDATACOMMUNITIES.ORG/ID/METROPOLITAN-DISTRICT-COUNCIL/WALSALL,31/12/2018,RESOURCES & TRANSFORMATION,ARTHUR BRETT CATER,02/10/2018,H59620181004LOLKXZCHB-1,8.40,CA ST MICHAELS C.E. PRIMARY SC-FRUIT & VEGETABLES OTHER-PROVI,MISCELLANEOUS FOOD STORES & CONVENIENCE STORES,GPC
WALSALL COUNCIL,HTTP://OPENDATACOMMUNITIES.ORG/ID/METROPOLITAN-DISTRICT-COUNCIL/WALSALL,31/12/2018,RESOURCES & TRANSFORMATION,ARTHUR BRETT CATER,02/10/2018,H59620181004VGKQEKHZR-1,44.50,CA WALSALL WOOD PRIMARY SCHOOL-FRUIT & VEGETABLES OTHER-PROVI,MISCELLANEOUS FOOD STORES & CONVENIENCE STORES,GPC
WALSALL COUNCIL,HTTP://OPENDATACOMMUNITIES.ORG/ID/METROPOLITAN-DISTRICT-COUNCIL/WALSALL,31/12/2018,RESOURCES & TRANSFORMATION,ARTHUR BRETT CATER,02/10/2018,H59620181004RBDTKIQIU-1,105.55,CA WATLING STREET PRIMARY SCHO-FRUIT & VEGETABLES OTHER-PROVI,MISCELLANEOUS FOOD STORES & CONVENIENCE STORES,GPC
WALSALL COUNCIL,HTTP://OPENDATACOMMUNITIES.ORG/ID/METROPOLITAN-DISTRICT-COUNCIL/WALSALL,31/12/2018,RESOURCES & TRANSFORMATION,ARTHUR BRETT CATER,02/10/2018,H59620181004GUXBSMZVB-1,49.65,CA ELMWOOD SPECIAL SCHOOL-FRUIT & VEGETABLES OTHER-PROVI,MISCELLANEOUS FOOD STORES & CONVENIENCE STORES,GPC
WALSALL COUNCIL,HTTP://OPENDATACOMMUNITIES.ORG/ID/METROPOLITAN-DISTRICT-COUNCIL/WALSALL,31/12/2018,ECONOMY & ENVIRONMENT,SCREWFIX DIRECT,02/10/2018,H59620181004LQYOISXJK-1,24.99,BLOXWICH LEISURE CENTRE-GENERAL MATERIALS,LUMBER & BUILDING MATERIALS STORES,GPC
WALSALL COUNCIL,HTTP://OPENDATACOMMUNITIES.ORG/ID/METROPOLITAN-DISTRICT-COUNCIL/WALSALL,31/12/2018,ECONOMY & ENVIRONMENT,POSTOFFICE SELFSERVICE,02/10/2018,H59620181004ESEHSTTYL-1,114.40,LEATHER MUSEUM-GENERAL MATERIALS,POSTAL SERVICES - GOVERNMENT ONLY,GPC
WALSALL COUNCIL,HTTP://OPENDATACOMMUNITIES.ORG/ID/METROPOLITAN-DISTRICT-COUNCIL/WALSALL,31/12/2018,ECONOMY & ENVIRONMENT,POST OFFICE COUNTER,02/10/2018,H59620181004UIZMCHYAF-1,28.39,LEATHER MUSEUM-GENERAL MATERIALS,POSTAL SERVICES - GOVERNMENT ONLY,GPC
WALSALL COUNCIL,HTTP://OPENDATACOMMUNITIES.ORG/ID/METROPOLITAN-DISTRICT-COUNCIL/WALSALL,31/12/2018,ECONOMY & ENVIRONMENT,LUL TICKET MACHINE,02/10/2018,H59620181004EWRULTJIO-1,12.70,NEW ART GALLERY - ADMIN-OFFICER/STAFF-PUBLIC TRANSPORT,PASSENGER RAILWAYS,GPC
WALSALL COUNCIL,HTTP://OPENDATACOMMUNITIES.ORG/ID/METROPOLITAN-DISTRICT-COUNCIL/WALSALL,31/12/2018,ECONOMY & ENVIRONMENT,PREMIER INN44533745,02/10/2018,H59620181005CNLVPTWBS-1,44.50,AUDIENCE DEVELOPMENT-OTHER EXPENSES-EXPENSES,PREMIER INN,GPC
WALSALL COUNCIL,HTTP://OPENDATACOMMUNITIES.ORG/ID/METROPOLITAN-DISTRICT-COUNCIL/WALSALL,31/12/2018,ECONOMY & ENVIRONMENT,PREMIER INN44533745,02/10/2018,H59620181005XEKEBCCQT-1,167.50,AUDIENCE DEVELOPMENT-OTHER EXPENSES-EXPENSES,PREMIER INN,GPC
WALSALL COUNCIL,HTTP://OPENDATACOMMUNITIES.ORG/ID/METROPOLITAN-DISTRICT-COUNCIL/WALSALL,31/12/2018,RESOURCES & TRANSFORMATION,TICKETLIST,02/10/2018,H59620181004ROGNOKUAT-1,11.00,AREA PARTNERSHIPS-SPECIAL PROJECTS,"THEATRICAL PRODUCERS, TIC",GPC
WALSALL COUNCIL,HTTP://OPENDATACOMMUNITIES.ORG/ID/METROPOLITAN-DISTRICT-COUNCIL/WALSALL,31/12/2018,ECONOMY & ENVIRONMENT,AMAZON.CO.UK,02/10/2018,H59620181004NJCMTXDCB-1,64.34,EH DIV GENERAL COSTS-STATIONERY & GENERAL SUPPLIES-,OTHER DIRECT MARKETING-OTHER DIRECT MARKETERS,GPC
WALSALL COUNCIL,HTTP://OPENDATACOMMUNITIES.ORG/ID/METROPOLITAN-DISTRICT-COUNCIL/WALSALL,31/12/2018,ADULT SOCIAL CARE,THEMANAGEMENTCENTR,02/10/2018,H59620181004HRXXWRDPG-1,166.00,ASC PARTNERSHIPS-HOTEL ACCOMMODATION-EMPLOYEES,"COLLEGES, UNIVERSITIES, PROFESSIONAL SCHOOLS",GPC
WALSALL COUNCIL,HTTP://OPENDATACOMMUNITIES.ORG/ID/METROPOLITAN-DISTRICT-COUNCIL/WALSALL,31/12/2018,ADULT SOCIAL CARE,DUNELM (SOFT FURNISHIN,02/10/2018,H59620181004LSTVXQLTP-1,100.00,GOSCOTE-FURNITURE & EQUIPMENT,"DRAPERY, UPHOLSTERY, AND WINDOW COVERINGS STORES",GPC
WALSALL COUNCIL,HTTP://OPENDATACOMMUNITIES.ORG/ID/METROPOLITAN-DISTRICT-COUNCIL/WALSALL,31/12/2018,ADULT SOCIAL CARE,DUNELM (SOFT FURNISHIN,02/10/2018,H59620181004PMXWPMWQD-1,-4.00,GOSCOTE-FURNITURE & EQUIPMENT,"DRAPERY, UPHOLSTERY, AND WINDOW COVERINGS STORES",GPC
WALSALL COUNCIL,HTTP://OPENDATACOMMUNITIES.ORG/ID/METROPOLITAN-DISTRICT-COUNCIL/WALSALL,31/12/2018,ADULT SOCIAL CARE,B & Q 1276,02/10/2018,H59620181004RUPURFIQH-1,20.00,GOSCOTE-GENERAL MATERIALS,LUMBER & BUILDING MATERIALS STORES,GPC
WALSALL COUNCIL,HTTP://OPENDATACOMMUNITIES.ORG/ID/METROPOLITAN-DISTRICT-COUNCIL/WALSALL,31/12/2018,ADULT SOCIAL CARE,PUBLIC HEALTH ENGLAND,02/10/2018,H59620181004LVHCUBBPN-1,50.00,"STRATEGY, COMMISSIONING, AND D-EXTERNAL TRAINING","HEALTH PRACTITIONERS, MEDICAL SERVICES",GPC
WALSALL COUNCIL,HTTP://OPENDATACOMMUNITIES.ORG/ID/METROPOLITAN-DISTRICT-COUNCIL/WALSALL,31/12/2018,RESOURCES & TRANSFORMATION,REGISTRATION SERVICES,02/10/2018,H59620181004COLVHXFUN-1,10.00,WALSALL CRISIS SUPPORT SCHEME-REGISTRAR OF BIRTHS/DEATHS/MAR,OTHER RECREATION SERVICES,GPC
WALSALL COUNCIL,HTTP://OPENDATACOMMUNITIES.ORG/ID/METROPOLITAN-DISTRICT-COUNCIL/WALSALL,31/12/2018,RESOURCES & TRANSFORMATION,TESCO STORES 6161,02/10/2018,H59620181004MOKJIIRYW-1,20.00,WALSALL CRISIS SUPPORT SCHEME-FOOD AND BEVERAGES-PROVISIONS,GROCERY STORES AND SUPERMARKETS,GPC
WALSALL COUNCIL,HTTP://OPENDATACOMMUNITIES.ORG/ID/METROPOLITAN-DISTRICT-COUNCIL/WALSALL,31/12/2018,CHILDRENS SERVICES-SCHOOLS,AMZN MKTP UK,03/10/2018,H59620181005ACQKEKIOM-1,6.99,TOPIC-GENERAL MATERIALS,BOOK STORES,GPC
WALSALL COUNCIL,HTTP://OPENDATACOMMUNITIES.ORG/ID/METROPOLITAN-DISTRICT-COUNCIL/WALSALL,31/12/2018,CHILDRENS SERVICES-SCHOOLS,AMZN MKTP UK AMAZON.CO.UK,03/10/2018,H59620181005DPUNUUDKP-1,18.00,MUSIC RESOURCES-NEW-FURNITURE & EQUIPMENT,BOOK STORES,GPC
WALSALL COUNCIL,HTTP://OPENDATACOMMUNITIES.ORG/ID/METROPOLITAN-DISTRICT-COUNCIL/WALSALL,31/12/2018,CHILDRENS SERVICES-SCHOOLS,AMZN MKTP UK AMAZON.CO.UK,03/10/2018,H59620181005OXSRGFQYO-1,23.15,EARLY YEARS DEPARTMENT-LIBRARY BOOKS,BOOK STORES,GPC
WALSALL COUNCIL,HTTP://OPENDATACOMMUNITIES.ORG/ID/METROPOLITAN-DISTRICT-COUNCIL/WALSALL,31/12/2018,CHILDRENS SERVICES-SCHOOLS,TK MAXX,03/10/2018,H59620181005YDYTXRXTS-1,25.98,EARLY YEARS DEPARTMENT-GENERAL MATERIALS,VARIETY STORES,GPC
WALSALL COUNCIL,HTTP://OPENDATACOMMUNITIES.ORG/ID/METROPOLITAN-DISTRICT-COUNCIL/WALSALL,31/12/2018,CHILDRENS SERVICES-SCHOOLS,AMAZON.CO.UK,03/10/2018,H59620181005TKGOUDGPG-1,27.36,ADMINISTRATIVE SUPPLIES-GENERAL MATERIALS,OTHER DIRECT MARKETING-OTHER DIRECT MARKETERS,GPC
WALSALL COUNCIL,HTTP://OPENDATACOMMUNITIES.ORG/ID/METROPOLITAN-DISTRICT-COUNCIL/WALSALL,31/12/2018,CHILDRENS SERVICES-SCHOOLS,PAYPAL *PHYSIOROOM,03/10/2018,H59620181005LNBEKPSRX-1,15.98,SPECIAL NEEDS-GENERAL MATERIALS,SHOE STORES,GPC
WALSALL COUNCIL,HTTP://OPENDATACOMMUNITIES.ORG/ID/METROPOLITAN-DISTRICT-COUNCIL/WALSALL,31/12/2018,CHILDRENS SERVICES-SCHOOLS,WORLD OF BOOKS,03/10/2018,H59620181005TWFLXALXS-1,24.50,E19-LIBRARY BOOKS,BOOK STORES,GPC
WALSALL COUNCIL,HTTP://OPENDATACOMMUNITIES.ORG/ID/METROPOLITAN-DISTRICT-COUNCIL/WALSALL,31/12/2018,CHILDRENS SERVICES-SCHOOLS,AMAZON.CO.UK AMAZON.CO.UK,03/10/2018,H59620181006OVDFUDGJY-1,39.96,E19-LIBRARY BOOKS,MISCELLANEOUS AND SPECIALTY RETAIL STORES,GPC
WALSALL COUNCIL,HTTP://OPENDATACOMMUNITIES.ORG/ID/METROPOLITAN-DISTRICT-COUNCIL/WALSALL,31/12/2018,CHILDRENS SERVICES-SCHOOLS,WWW.ALDI.CO.UK,03/10/2018,H59620181005JOBIKFENG-1,49.99,ADMINISTRATIVE SUPPLIES-MEDICAL REQUISITES-MATERIALS,GROCERY STORES AND SUPERMARKETS,GPC
WALSALL COUNCIL,HTTP://OPENDATACOMMUNITIES.ORG/ID/METROPOLITAN-DISTRICT-COUNCIL/WALSALL,31/12/2018,CHILDRENS SERVICES-SCHOOLS,AMZN MKTP UK,03/10/2018,H59620181005FHLRTBSUW-1,17.45,PE-GENERAL MATERIALS,BOOK STORES,GPC
WALSALL COUNCIL,HTTP://OPENDATACOMMUNITIES.ORG/ID/METROPOLITAN-DISTRICT-COUNCIL/WALSALL,31/12/2018,CHILDRENS SERVICES-SCHOOLS,AMZN MKTP UK,03/10/2018,H59620181005JQGJMDXBI-1,15.85,PE-GENERAL MATERIALS,BOOK STORES,GPC
WALSALL COUNCIL,HTTP://OPENDATACOMMUNITIES.ORG/ID/METROPOLITAN-DISTRICT-COUNCIL/WALSALL,31/12/2018,CHILDRENS SERVICES-SCHOOLS,PAYPAL *AUDIOMATE,03/10/2018,H59620181005HTGIDSJFG-1,76.92,ENRICHMENT-NEW-FURNITURE & EQUIPMENT,ELECTRONIC SALES,GPC
WALSALL COUNCIL,HTTP://OPENDATACOMMUNITIES.ORG/ID/METROPOLITAN-DISTRICT-COUNCIL/WALSALL,31/12/2018,CHILDRENS SERVICES-SCHOOLS,WILKO RETAIL LIMIT,03/10/2018,H59620181005CGOPNNPGJ-1,3.00,MARY ELLIOTT SCHOOL-BREAD-GENERAL-PROVISIONS,HOUSEHOLD APPLIANCE STORES,GPC
WALSALL COUNCIL,HTTP://OPENDATACOMMUNITIES.ORG/ID/METROPOLITAN-DISTRICT-COUNCIL/WALSALL,31/12/2018,CHILDRENS SERVICES,ASDA STORES,03/10/2018,H59620181005XXXCBJREQ-1,1.45,PARENTING TEAM-FOOD AND BEVERAGES-PROVISIONS,GROCERY STORES AND SUPERMARKETS,GPC
WALSALL COUNCIL,HTTP://OPENDATACOMMUNITIES.ORG/ID/METROPOLITAN-DISTRICT-COUNCIL/WALSALL,31/12/2018,CHILDRENS SERVICES,S STAFFS WATER PBN,03/10/2018,H59620181005TLEODNBSZ-1,68.32,7 THE LIMES-PROFESSIONAL FEES AND SERVICES,"UTILITIES - ELECTRIC, GAS, SANITARY & WATER",GPC
WALSALL COUNCIL,HTTP://OPENDATACOMMUNITIES.ORG/ID/METROPOLITAN-DISTRICT-COUNCIL/WALSALL,31/12/2018,CHILDRENS SERVICES,REGISTRARS OFFICE,03/10/2018,H59620181005LZKJMRMWX-1,11.00,SAFEGUARDING & FAMILY SUPPORT-REGISTRAR OF BIRTHS/DEATHS/MAR,OTHER SCHOOLS AND EDUCATIONAL SERVICES,GPC
WALSALL COUNCIL,HTTP://OPENDATACOMMUNITIES.ORG/ID/METROPOLITAN-DISTRICT-COUNCIL/WALSALL,31/12/2018,CHILDRENS SERVICES,BANNER GROUP LTD,03/10/2018,H59620181005NNWZJJRHV-1,29.71,SAFEGUARDING & FAMILY SUPPORT-STATIONERY & GENERAL SUPPLIES-,"OFFICE, SCHOOL SUPPLY, AND STATIONERY STORES",GPC
WALSALL COUNCIL,HTTP://OPENDATACOMMUNITIES.ORG/ID/METROPOLITAN-DISTRICT-COUNCIL/WALSALL,31/12/2018,CHILDRENS SERVICES,BANNER GROUP LTD,03/10/2018,H59620181005NNWZJJRHV-2,29.71,ADOPTION TEAM-STATIONERY & GENERAL SUPPLIES-,"OFFICE, SCHOOL SUPPLY, AND STATIONERY STORES",GPC
WALSALL COUNCIL,HTTP://OPENDATACOMMUNITIES.ORG/ID/METROPOLITAN-DISTRICT-COUNCIL/WALSALL,31/12/2018,CHILDRENS SERVICES,BANNER GROUP LTD,03/10/2018,H59620181005NNWZJJRHV-3,29.73,FAMILY PLACEMENTS-STATIONERY & GENERAL SUPPLIES-,"OFFICE, SCHOOL SUPPLY, AND STATIONERY STORES",GPC
WALSALL COUNCIL,HTTP://OPENDATACOMMUNITIES.ORG/ID/METROPOLITAN-DISTRICT-COUNCIL/WALSALL,31/12/2018,CHILDRENS SERVICES,TESCO STORES 6161,03/10/2018,H59620181005KUAIDLLVR-1,10.00,57 LICHFIELD ROAD-RESIDENTS PERSONAL EXPENSES-AL,GROCERY STORES AND SUPERMARKETS,GPC
WALSALL COUNCIL,HTTP://OPENDATACOMMUNITIES.ORG/ID/METROPOLITAN-DISTRICT-COUNCIL/WALSALL,31/12/2018,CHILDRENS SERVICES,WM MORRISONS STORE,03/10/2018,H59620181005KYVNITWBG-1,0.20,57 LICHFIELD ROAD-FOOD AND BEVERAGES-PROVISIONS,GROCERY STORES AND SUPERMARKETS,GPC
WALSALL COUNCIL,HTTP://OPENDATACOMMUNITIES.ORG/ID/METROPOLITAN-DISTRICT-COUNCIL/WALSALL,31/12/2018,CHILDRENS SERVICES,WM MORRISONS STORE,03/10/2018,H59620181005KYVNITWBG-2,15.63,57 LICHFIELD ROAD-FOOD AND BEVERAGES-PROVISIONS,GROCERY STORES AND SUPERMARKETS,GPC
WALSALL COUNCIL,HTTP://OPENDATACOMMUNITIES.ORG/ID/METROPOLITAN-DISTRICT-COUNCIL/WALSALL,31/12/2018,CHILDRENS SERVICES,BANNER GROUP LTD,03/10/2018,H59620181005YOKHYQICI-1,43.10,57 LICHFIELD ROAD-STATIONERY & GENERAL SUPPLIES-,"OFFICE, SCHOOL SUPPLY, AND STATIONERY STORES",GPC
WALSALL COUNCIL,HTTP://OPENDATACOMMUNITIES.ORG/ID/METROPOLITAN-DISTRICT-COUNCIL/WALSALL,31/12/2018,CHILDRENS SERVICES,WWW.SAFELINCS.CO.UK,03/10/2018,H59620181005OPLWTBSUQ-1,205.20,"SPINDLETREE-REPAIRS,ALTERATIONS & MAINTENA",ELECTRICAL PARTS AND EQUIPMENT,GPC
WALSALL COUNCIL,HTTP://OPENDATACOMMUNITIES.ORG/ID/METROPOLITAN-DISTRICT-COUNCIL/WALSALL,31/12/2018,CHILDRENS SERVICES,WWW.FINERFILTERS.CO.UK,03/10/2018,H59620181005TYWSSVCYY-1,69.99,"43A HILTON ROAD, WILLENHALL-FURNITURE & EQUIPMENT",AIR CONDITIONING AND REFRIGERATION REPAIR SHOPS,GPC
WALSALL COUNCIL,HTTP://OPENDATACOMMUNITIES.ORG/ID/METROPOLITAN-DISTRICT-COUNCIL/WALSALL,31/12/2018,CHILDRENS SERVICES,W M MORRISONS.COM,03/10/2018,H59620181005ENGWQZCRC-1,12.96,BLUEBELLS-FOOD AND BEVERAGES-PROVISIONS,GROCERY STORES AND SUPERMARKETS,GPC
WALSALL COUNCIL,HTTP://OPENDATACOMMUNITIES.ORG/ID/METROPOLITAN-DISTRICT-COUNCIL/WALSALL,31/12/2018,CHILDRENS SERVICES,W M MORRISONS.COM,03/10/2018,H59620181005ENGWQZCRC-2,32.95,BLUEBELLS-FOOD AND BEVERAGES-PROVISIONS,GROCERY STORES AND SUPERMARKETS,GPC
WALSALL COUNCIL,HTTP://OPENDATACOMMUNITIES.ORG/ID/METROPOLITAN-DISTRICT-COUNCIL/WALSALL,31/12/2018,CHILDRENS SERVICES,AMZN MKTP UK,03/10/2018,H59620181005FKULFJVNQ-1,14.99,REDRUTH ROAD-RESIDENTS PERSONAL EXPENSES-AL,BOOK STORES,GPC
WALSALL COUNCIL,HTTP://OPENDATACOMMUNITIES.ORG/ID/METROPOLITAN-DISTRICT-COUNCIL/WALSALL,31/12/2018,CHILDRENS SERVICES,AMZN MKTP UK AMAZON.CO.UK,03/10/2018,H59620181005TDNVRTPDN-1,17.97,REDRUTH ROAD-LIBRARY BOOKS,BOOK STORES,GPC
WALSALL COUNCIL,HTTP://OPENDATACOMMUNITIES.ORG/ID/METROPOLITAN-DISTRICT-COUNCIL/WALSALL,31/12/2018,CHILDRENS SERVICES,ASDA GEORGE COM LEEDS,03/10/2018,H59620181006DJVCFNLCP-1,48.50,REDRUTH ROAD-RESIDENTS PERSONAL EXPENSES-AL,GROCERY STORES AND SUPERMARKETS,GPC
WALSALL COUNCIL,HTTP://OPENDATACOMMUNITIES.ORG/ID/METROPOLITAN-DISTRICT-COUNCIL/WALSALL,31/12/2018,RESOURCES & TRANSFORMATION,WWW.TRADETILER.COM,03/10/2018,H59620181005OPPVXBCDK-1,55.36,"CENTRAL OFFICE ACCOMMODATION-REPAIRS,ALTERATIONS & MAINTENA",LUMBER & BUILDING MATERIALS STORES,GPC
WALSALL COUNCIL,HTTP://OPENDATACOMMUNITIES.ORG/ID/METROPOLITAN-DISTRICT-COUNCIL/WALSALL,31/12/2018,RESOURCES & TRANSFORMATION,THE CROSSING AT ST PAU,03/10/2018,H59620181005TXJPDBIHM-1,10.65,ACCOMMODATION SERVICES MANAGEM-SUBSISTENCE OFFICERS-EXPENSES,"EATING PLACES, RESTAURANTS",GPC
WALSALL COUNCIL,HTTP://OPENDATACOMMUNITIES.ORG/ID/METROPOLITAN-DISTRICT-COUNCIL/WALSALL,31/12/2018,RESOURCES & TRANSFORMATION,TJ HUGHES,03/10/2018,H59620181005QHYGKWGVO-1,39.98,HOMELESSNESS PREVENTION STRATE-FURNITURE & EQUIPMENT,DEPARTMENT STORES,GPC
WALSALL COUNCIL,HTTP://OPENDATACOMMUNITIES.ORG/ID/METROPOLITAN-DISTRICT-COUNCIL/WALSALL,31/12/2018,RESOURCES & TRANSFORMATION,TESCO STORES 6161,03/10/2018,H59620181005RLNBDCEVB-1,17.80,YOUNG PERSONS HOMELESS SERVICE-FOOD AND BEVERAGES-PROVISIONS,GROCERY STORES AND SUPERMARKETS,GPC
WALSALL COUNCIL,HTTP://OPENDATACOMMUNITIES.ORG/ID/METROPOLITAN-DISTRICT-COUNCIL/WALSALL,31/12/2018,ECONOMY & ENVIRONMENT,B & Q 1193,03/10/2018,H59620181005KJZHQSLKK-1,38.68,DEPOT-GENERAL MATERIALS,LUMBER & BUILDING MATERIALS STORES,GPC
WALSALL COUNCIL,HTTP://OPENDATACOMMUNITIES.ORG/ID/METROPOLITAN-DISTRICT-COUNCIL/WALSALL,31/12/2018,ECONOMY & ENVIRONMENT,MIDLANDNEWS.COM,03/10/2018,H59620181005TWYIJNUCX-1,249.84,DEVELOPMENT MANAGEMENT-PERIODICALS/MAGAZINES/NEWSPAPE,NEWS DEALERS AND NEWSSTANDS,GPC
WALSALL COUNCIL,HTTP://OPENDATACOMMUNITIES.ORG/ID/METROPOLITAN-DISTRICT-COUNCIL/WALSALL,31/12/2018,RESOURCES & TRANSFORMATION,NOBISCO LIMITED,03/10/2018,H59620181005KWVVFQOCH-1,55.34,CA KINGSHILL SCHOOL-DISPOSABLES-PROVISIONS,OTHER INDUSTRIAL SUPPLIES,GPC
WALSALL COUNCIL,HTTP://OPENDATACOMMUNITIES.ORG/ID/METROPOLITAN-DISTRICT-COUNCIL/WALSALL,31/12/2018,RESOURCES & TRANSFORMATION,BLAKEMORE FOODSERVICE,03/10/2018,H59620181005RLEINIWYC-1,163.33,CA KINGSHILL SCHOOL-DRY FOODS-PROVISIONS,CATERERS,GPC
WALSALL COUNCIL,HTTP://OPENDATACOMMUNITIES.ORG/ID/METROPOLITAN-DISTRICT-COUNCIL/WALSALL,31/12/2018,RESOURCES & TRANSFORMATION,BLAKEMORE FOODSERVICE,03/10/2018,H59620181005RLEINIWYC-2,8.42,CA KINGSHILL SCHOOL-DRY FOODS-PROVISIONS,CATERERS,GPC
WALSALL COUNCIL,HTTP://OPENDATACOMMUNITIES.ORG/ID/METROPOLITAN-DISTRICT-COUNCIL/WALSALL,31/12/2018,RESOURCES & TRANSFORMATION,BLAKEMORE FOODSERVICE,03/10/2018,H59620181005NJQUSSSHL-1,85.74,CA OAKWOOD SPECIAL SCHOOL-FROZEN FOODS-PROVISIONS,CATERERS,GPC
WALSALL COUNCIL,HTTP://OPENDATACOMMUNITIES.ORG/ID/METROPOLITAN-DISTRICT-COUNCIL/WALSALL,31/12/2018,RESOURCES & TRANSFORMATION,BLAKEMORE FOODSERVICE,03/10/2018,H59620181005OJWEXLRPI-1,6.52,CA OAKWOOD SPECIAL SCHOOL-DRY FOODS-PROVISIONS,CATERERS,GPC
WALSALL COUNCIL,HTTP://OPENDATACOMMUNITIES.ORG/ID/METROPOLITAN-DISTRICT-COUNCIL/WALSALL,31/12/2018,RESOURCES & TRANSFORMATION,BLAKEMORE FOODSERVICE,03/10/2018,H59620181005RSOLRXNKM-1,147.98,CA OLD HALL SPECIAL SCHOOL-DRY FOODS-PROVISIONS,CATERERS,GPC
WALSALL COUNCIL,HTTP://OPENDATACOMMUNITIES.ORG/ID/METROPOLITAN-DISTRICT-COUNCIL/WALSALL,31/12/2018,RESOURCES & TRANSFORMATION,BLAKEMORE FOODSERVICE,03/10/2018,H59620181005SENFAMKEN-1,89.43,CA OLD HALL SPECIAL SCHOOL-FROZEN FOODS-PROVISIONS,CATERERS,GPC
WALSALL COUNCIL,HTTP://OPENDATACOMMUNITIES.ORG/ID/METROPOLITAN-DISTRICT-COUNCIL/WALSALL,31/12/2018,RESOURCES & TRANSFORMATION,BLAKEMORE FOODSERVICE,03/10/2018,H59620181005LGMQWLKUU-1,136.48,CA BEACON PRIMARY SCHOOL-DRY FOODS-PROVISIONS,CATERERS,GPC
WALSALL COUNCIL,HTTP://OPENDATACOMMUNITIES.ORG/ID/METROPOLITAN-DISTRICT-COUNCIL/WALSALL,31/12/2018,RESOURCES & TRANSFORMATION,BLAKEMORE FOODSERVICE,03/10/2018,H59620181005LGMQWLKUU-2,2.81,CA BEACON PRIMARY SCHOOL-DRY FOODS-PROVISIONS,CATERERS,GPC
WALSALL COUNCIL,HTTP://OPENDATACOMMUNITIES.ORG/ID/METROPOLITAN-DISTRICT-COUNCIL/WALSALL,31/12/2018,RESOURCES & TRANSFORMATION,NOBISCO LIMITED,03/10/2018,H59620181005VUJPPQEKK-1,63.83,CA BEACON PRIMARY SCHOOL-DISPOSABLES-PROVISIONS,OTHER INDUSTRIAL SUPPLIES,GPC
WALSALL COUNCIL,HTTP://OPENDATACOMMUNITIES.ORG/ID/METROPOLITAN-DISTRICT-COUNCIL/WALSALL,31/12/2018,RESOURCES & TRANSFORMATION,BLAKEMORE FOODSERVICE,03/10/2018,H59620181005KKDBJXRVF-1,309.86,CA BROWNHILLS WEST PRIMARY SCH-CATERING,CATERERS,GPC
WALSALL COUNCIL,HTTP://OPENDATACOMMUNITIES.ORG/ID/METROPOLITAN-DISTRICT-COUNCIL/WALSALL,31/12/2018,RESOURCES & TRANSFORMATION,NOBISCO LIMITED,03/10/2018,H59620181005TBKEPRMAM-1,79.26,CA BROWNHILLS WEST PRIMARY SCH-DISPOSABLES-PROVISIONS,OTHER INDUSTRIAL SUPPLIES,GPC
WALSALL COUNCIL,HTTP://OPENDATACOMMUNITIES.ORG/ID/METROPOLITAN-DISTRICT-COUNCIL/WALSALL,31/12/2018,RESOURCES & TRANSFORMATION,BLAKEMORE FOODSERVICE,03/10/2018,H59620181005JLELZVAMK-1,10.73,CA BUSILL JONES PRIMARY SCHOOL-FROZEN FOODS-PROVISIONS,CATERERS,GPC
WALSALL COUNCIL,HTTP://OPENDATACOMMUNITIES.ORG/ID/METROPOLITAN-DISTRICT-COUNCIL/WALSALL,31/12/2018,RESOURCES & TRANSFORMATION,BLAKEMORE FOODSERVICE,03/10/2018,H59620181005NOCVCBBCL-1,543.77,CA BUSILL JONES PRIMARY SCHOOL-DRY FOODS-PROVISIONS,CATERERS,GPC
WALSALL COUNCIL,HTTP://OPENDATACOMMUNITIES.ORG/ID/METROPOLITAN-DISTRICT-COUNCIL/WALSALL,31/12/2018,RESOURCES & TRANSFORMATION,BLAKEMORE FOODSERVICE,03/10/2018,H59620181005NOCVCBBCL-2,51.84,CA BUSILL JONES PRIMARY SCHOOL-DRY FOODS-PROVISIONS,CATERERS,GPC
WALSALL COUNCIL,HTTP://OPENDATACOMMUNITIES.ORG/ID/METROPOLITAN-DISTRICT-COUNCIL/WALSALL,31/12/2018,RESOURCES & TRANSFORMATION,BLAKEMORE FOODSERVICE,03/10/2018,H59620181005TBIGIQLGJ-1,67.85,CA BUSILL JONES PRIMARY SCHOOL-FROZEN FOODS-PROVISIONS,CATERERS,GPC
WALSALL COUNCIL,HTTP://OPENDATACOMMUNITIES.ORG/ID/METROPOLITAN-DISTRICT-COUNCIL/WALSALL,31/12/2018,RESOURCES & TRANSFORMATION,BLAKEMORE FOODSERVICE,03/10/2018,H59620181005TBIGIQLGJ-2,16.66,CA BUSILL JONES PRIMARY SCHOOL-FROZEN FOODS-PROVISIONS,CATERERS,GPC
WALSALL COUNCIL,HTTP://OPENDATACOMMUNITIES.ORG/ID/METROPOLITAN-DISTRICT-COUNCIL/WALSALL,31/12/2018,RESOURCES & TRANSFORMATION,BLAKEMORE FOODSERVICE,03/10/2018,H59620181005UPUGKVDTJ-1,236.68,CA BUSILL JONES PRIMARY SCHOOL-FROZEN FOODS-PROVISIONS,CATERERS,GPC
WALSALL COUNCIL,HTTP://OPENDATACOMMUNITIES.ORG/ID/METROPOLITAN-DISTRICT-COUNCIL/WALSALL,31/12/2018,RESOURCES & TRANSFORMATION,BLAKEMORE FOODSERVICE,03/10/2018,H59620181005UGHFNLUPN-1,112.67,CA CASTLEFORT JMI SCHOOL-FROZEN FOODS-PROVISIONS,CATERERS,GPC
WALSALL COUNCIL,HTTP://OPENDATACOMMUNITIES.ORG/ID/METROPOLITAN-DISTRICT-COUNCIL/WALSALL,31/12/2018,RESOURCES & TRANSFORMATION,BLAKEMORE FOODSERVICE,03/10/2018,H59620181005UGHFNLUPN-2,8.33,CA CASTLEFORT JMI SCHOOL-FROZEN FOODS-PROVISIONS,CATERERS,GPC
WALSALL COUNCIL,HTTP://OPENDATACOMMUNITIES.ORG/ID/METROPOLITAN-DISTRICT-COUNCIL/WALSALL,31/12/2018,RESOURCES & TRANSFORMATION,BLAKEMORE FOODSERVICE,03/10/2018,H59620181005IOCRLKTMI-1,243.92,CA COOPER JORDAN CE PRIMARY SC-FROZEN FOODS-PROVISIONS,CATERERS,GPC
WALSALL COUNCIL,HTTP://OPENDATACOMMUNITIES.ORG/ID/METROPOLITAN-DISTRICT-COUNCIL/WALSALL,31/12/2018,RESOURCES & TRANSFORMATION,BLAKEMORE FOODSERVICE,03/10/2018,H59620181005IOCRLKTMI-2,8.33,CA COOPER JORDAN CE PRIMARY SC-FROZEN FOODS-PROVISIONS,CATERERS,GPC
WALSALL COUNCIL,HTTP://OPENDATACOMMUNITIES.ORG/ID/METROPOLITAN-DISTRICT-COUNCIL/WALSALL,31/12/2018,RESOURCES & TRANSFORMATION,BLAKEMORE FOODSERVICE,03/10/2018,H59620181005QEZSENDEQ-1,148.99,CA COOPER JORDAN CE PRIMARY SC-FROZEN FOODS-PROVISIONS,CATERERS,GPC
WALSALL COUNCIL,HTTP://OPENDATACOMMUNITIES.ORG/ID/METROPOLITAN-DISTRICT-COUNCIL/WALSALL,31/12/2018,RESOURCES & TRANSFORMATION,NOBISCO LIMITED,03/10/2018,H59620181005VIWPNMDWC-1,118.03,CA CROFT COMMUNITY PRIMARY SCH-DISPOSABLES-PROVISIONS,OTHER INDUSTRIAL SUPPLIES,GPC
WALSALL COUNCIL,HTTP://OPENDATACOMMUNITIES.ORG/ID/METROPOLITAN-DISTRICT-COUNCIL/WALSALL,31/12/2018,RESOURCES & TRANSFORMATION,BLAKEMORE FOODSERVICE,03/10/2018,H59620181005BTFULNFWY-1,128.77,CA ELMORE GREEN PRIMARY SCHOOL-FROZEN FOODS-PROVISIONS,CATERERS,GPC
WALSALL COUNCIL,HTTP://OPENDATACOMMUNITIES.ORG/ID/METROPOLITAN-DISTRICT-COUNCIL/WALSALL,31/12/2018,RESOURCES & TRANSFORMATION,BLAKEMORE FOODSERVICE,03/10/2018,H59620181005BTFULNFWY-2,16.66,CA ELMORE GREEN PRIMARY SCHOOL-FROZEN FOODS-PROVISIONS,CATERERS,GPC
WALSALL COUNCIL,HTTP://OPENDATACOMMUNITIES.ORG/ID/METROPOLITAN-DISTRICT-COUNCIL/WALSALL,31/12/2018,RESOURCES & TRANSFORMATION,BLAKEMORE FOODSERVICE,03/10/2018,H59620181005TCIJHGSBJ-1,172.66,CA ELMORE GREEN PRIMARY SCHOOL-DRY FOODS-PROVISIONS,CATERERS,GPC
WALSALL COUNCIL,HTTP://OPENDATACOMMUNITIES.ORG/ID/METROPOLITAN-DISTRICT-COUNCIL/WALSALL,31/12/2018,RESOURCES & TRANSFORMATION,BLAKEMORE FOODSERVICE,03/10/2018,H59620181005TCIJHGSBJ-2,69.12,CA ELMORE GREEN PRIMARY SCHOOL-DRY FOODS-PROVISIONS,CATERERS,GPC
WALSALL COUNCIL,HTTP://OPENDATACOMMUNITIES.ORG/ID/METROPOLITAN-DISTRICT-COUNCIL/WALSALL,31/12/2018,RESOURCES & TRANSFORMATION,NOBISCO LIMITED,03/10/2018,H59620181005BOUIVIVCZ-1,36.85,CA BARCROFT D/C-DISPOSABLES-PROVISIONS,OTHER INDUSTRIAL SUPPLIES,GPC
WALSALL COUNCIL,HTTP://OPENDATACOMMUNITIES.ORG/ID/METROPOLITAN-DISTRICT-COUNCIL/WALSALL,31/12/2018,RESOURCES & TRANSFORMATION,BLAKEMORE FOODSERVICE,03/10/2018,H59620181005CYOKVDIRW-1,34.14,CA BARCROFT D/C-FROZEN FOODS-PROVISIONS,CATERERS,GPC
WALSALL COUNCIL,HTTP://OPENDATACOMMUNITIES.ORG/ID/METROPOLITAN-DISTRICT-COUNCIL/WALSALL,31/12/2018,RESOURCES & TRANSFORMATION,BLAKEMORE FOODSERVICE,03/10/2018,H59620181005HCMILVGGU-1,443.68,CA BARCROFT D/C-DRY FOODS-PROVISIONS,CATERERS,GPC
WALSALL COUNCIL,HTTP://OPENDATACOMMUNITIES.ORG/ID/METROPOLITAN-DISTRICT-COUNCIL/WALSALL,31/12/2018,RESOURCES & TRANSFORMATION,JOHAL DAIRIES LTD,03/10/2018,H59620181005RBSBJGASA-1,13.80,CA BARCROFT D/C-MISC DAIRY PRODUCTS-PROVISIONS,OTHER NONDURABLE GOODS,GPC
WALSALL COUNCIL,HTTP://OPENDATACOMMUNITIES.ORG/ID/METROPOLITAN-DISTRICT-COUNCIL/WALSALL,31/12/2018,RESOURCES & TRANSFORMATION,BLAKEMORE FOODSERVICE,03/10/2018,H59620181005HZDNKGLJT-1,225.79,CA MOORCROFT WOOD-DRY FOODS-PROVISIONS,CATERERS,GPC
WALSALL COUNCIL,HTTP://OPENDATACOMMUNITIES.ORG/ID/METROPOLITAN-DISTRICT-COUNCIL/WALSALL,31/12/2018,RESOURCES & TRANSFORMATION,BLAKEMORE FOODSERVICE,03/10/2018,H59620181005HZDNKGLJT-2,37.37,CA MOORCROFT WOOD-DRY FOODS-PROVISIONS,CATERERS,GPC
WALSALL COUNCIL,HTTP://OPENDATACOMMUNITIES.ORG/ID/METROPOLITAN-DISTRICT-COUNCIL/WALSALL,31/12/2018,RESOURCES & TRANSFORMATION,BLAKEMORE FOODSERVICE,03/10/2018,H59620181005NNROQYSCF-1,-6.35,CA MOORCROFT WOOD-DRY FOODS-PROVISIONS,CATERERS,GPC
WALSALL COUNCIL,HTTP://OPENDATACOMMUNITIES.ORG/ID/METROPOLITAN-DISTRICT-COUNCIL/WALSALL,31/12/2018,RESOURCES & TRANSFORMATION,BLAKEMORE FOODSERVICE,03/10/2018,H59620181005UVGTLCYKI-1,-6.35,CA MOORCROFT WOOD-DRY FOODS-PROVISIONS,CATERERS,GPC
WALSALL COUNCIL,HTTP://OPENDATACOMMUNITIES.ORG/ID/METROPOLITAN-DISTRICT-COUNCIL/WALSALL,31/12/2018,RESOURCES & TRANSFORMATION,BLAKEMORE FOODSERVICE,03/10/2018,H59620181005JKVCEKDPQ-1,74.00,CA LEIGHSWOOD PRIMARY SCHOOL-FROZEN FOODS-PROVISIONS,CATERERS,GPC
WALSALL COUNCIL,HTTP://OPENDATACOMMUNITIES.ORG/ID/METROPOLITAN-DISTRICT-COUNCIL/WALSALL,31/12/2018,RESOURCES & TRANSFORMATION,BLAKEMORE FOODSERVICE,03/10/2018,H59620181005JKVCEKDPQ-2,41.64,CA LEIGHSWOOD PRIMARY SCHOOL-FROZEN FOODS-PROVISIONS,CATERERS,GPC
WALSALL COUNCIL,HTTP://OPENDATACOMMUNITIES.ORG/ID/METROPOLITAN-DISTRICT-COUNCIL/WALSALL,31/12/2018,RESOURCES & TRANSFORMATION,BLAKEMORE FOODSERVICE,03/10/2018,H59620181005PTGRNIIAN-1,152.79,CA LINDENS PRIMARY SCHOOL-FROZEN FOODS-PROVISIONS,CATERERS,GPC
WALSALL COUNCIL,HTTP://OPENDATACOMMUNITIES.ORG/ID/METROPOLITAN-DISTRICT-COUNCIL/WALSALL,31/12/2018,RESOURCES & TRANSFORMATION,BLAKEMORE FOODSERVICE,03/10/2018,H59620181005PTGRNIIAN-2,24.98,CA LINDENS PRIMARY SCHOOL-FROZEN FOODS-PROVISIONS,CATERERS,GPC
WALSALL COUNCIL,HTTP://OPENDATACOMMUNITIES.ORG/ID/METROPOLITAN-DISTRICT-COUNCIL/WALSALL,31/12/2018,RESOURCES & TRANSFORMATION,BLAKEMORE FOODSERVICE,03/10/2018,H59620181005VIYRFLEKA-1,285.04,CA LINDENS PRIMARY SCHOOL-DRY FOODS-PROVISIONS,CATERERS,GPC
WALSALL COUNCIL,HTTP://OPENDATACOMMUNITIES.ORG/ID/METROPOLITAN-DISTRICT-COUNCIL/WALSALL,31/12/2018,RESOURCES & TRANSFORMATION,BLAKEMORE FOODSERVICE,03/10/2018,H59620181005VIYRFLEKA-2,24.98,CA LINDENS PRIMARY SCHOOL-DRY FOODS-PROVISIONS,CATERERS,GPC
WALSALL COUNCIL,HTTP://OPENDATACOMMUNITIES.ORG/ID/METROPOLITAN-DISTRICT-COUNCIL/WALSALL,31/12/2018,RESOURCES & TRANSFORMATION,SAINSBURYS S/MKTS,03/10/2018,H59620181005NZEGNCFOJ-1,6.60,TOWN HALL RESTAURANT BISTRO-DRY FOODS-PROVISIONS,GROCERY STORES AND SUPERMARKETS,GPC
WALSALL COUNCIL,HTTP://OPENDATACOMMUNITIES.ORG/ID/METROPOLITAN-DISTRICT-COUNCIL/WALSALL,31/12/2018,RESOURCES & TRANSFORMATION,BLAKEMORE FOODSERVICE,03/10/2018,H59620181005VHCQCZROY-1,205.61,CA MEADOW VIEW JMI PRIMARY SCH-FROZEN FOODS-PROVISIONS,CATERERS,GPC
WALSALL COUNCIL,HTTP://OPENDATACOMMUNITIES.ORG/ID/METROPOLITAN-DISTRICT-COUNCIL/WALSALL,31/12/2018,RESOURCES & TRANSFORMATION,BLAKEMORE FOODSERVICE,03/10/2018,H59620181005VHCQCZROY-2,16.66,CA MEADOW VIEW JMI PRIMARY SCH-FROZEN FOODS-PROVISIONS,CATERERS,GPC
WALSALL COUNCIL,HTTP://OPENDATACOMMUNITIES.ORG/ID/METROPOLITAN-DISTRICT-COUNCIL/WALSALL,31/12/2018,RESOURCES & TRANSFORMATION,NOBISCO LIMITED,03/10/2018,H59620181005YNYBGQBXI-1,117.02,CA MEADOW VIEW JMI PRIMARY SCH-FURNITURE & EQUIPMENT,OTHER INDUSTRIAL SUPPLIES,GPC
WALSALL COUNCIL,HTTP://OPENDATACOMMUNITIES.ORG/ID/METROPOLITAN-DISTRICT-COUNCIL/WALSALL,31/12/2018,RESOURCES & TRANSFORMATION,NOBISCO LIMITED,03/10/2018,H59620181005EYBYPPFKD-1,109.66,CA RADLEYS PRIMARY SCHOOL-DISPOSABLES-PROVISIONS,OTHER INDUSTRIAL SUPPLIES,GPC
WALSALL COUNCIL,HTTP://OPENDATACOMMUNITIES.ORG/ID/METROPOLITAN-DISTRICT-COUNCIL/WALSALL,31/12/2018,RESOURCES & TRANSFORMATION,BLAKEMORE FOODSERVICE,03/10/2018,H59620181005UPJXLLTMI-1,217.79,CA RADLEYS PRIMARY SCHOOL-FROZEN FOODS-PROVISIONS,CATERERS,GPC
WALSALL COUNCIL,HTTP://OPENDATACOMMUNITIES.ORG/ID/METROPOLITAN-DISTRICT-COUNCIL/WALSALL,31/12/2018,RESOURCES & TRANSFORMATION,BLAKEMORE FOODSERVICE,03/10/2018,H59620181005XSPYPTUNG-1,305.11,CA RADLEYS PRIMARY SCHOOL-FROZEN FOODS-PROVISIONS,CATERERS,GPC
WALSALL COUNCIL,HTTP://OPENDATACOMMUNITIES.ORG/ID/METROPOLITAN-DISTRICT-COUNCIL/WALSALL,31/12/2018,RESOURCES & TRANSFORMATION,BLAKEMORE FOODSERVICE,03/10/2018,H59620181005CQDHMCNVO-1,163.77,CA RUSHALL JMI SCHOOL-FROZEN FOODS-PROVISIONS,CATERERS,GPC
WALSALL COUNCIL,HTTP://OPENDATACOMMUNITIES.ORG/ID/METROPOLITAN-DISTRICT-COUNCIL/WALSALL,31/12/2018,RESOURCES & TRANSFORMATION,BLAKEMORE FOODSERVICE,03/10/2018,H59620181005LYSNFSAKO-1,352.08,CA ST GILES C.E. PRIMARY SCHOO-FROZEN FOODS-PROVISIONS,CATERERS,GPC
WALSALL COUNCIL,HTTP://OPENDATACOMMUNITIES.ORG/ID/METROPOLITAN-DISTRICT-COUNCIL/WALSALL,31/12/2018,RESOURCES & TRANSFORMATION,BLAKEMORE FOODSERVICE,03/10/2018,H59620181005LYSNFSAKO-2,41.64,CA ST GILES C.E. PRIMARY SCHOO-FROZEN FOODS-PROVISIONS,CATERERS,GPC
WALSALL COUNCIL,HTTP://OPENDATACOMMUNITIES.ORG/ID/METROPOLITAN-DISTRICT-COUNCIL/WALSALL,31/12/2018,RESOURCES & TRANSFORMATION,BLAKEMORE FOODSERVICE,03/10/2018,H59620181005KDSRYRTSO-1,142.19,CA ST JOHNS C.E. PRIMARY SCHOO-FROZEN FOODS-PROVISIONS,CATERERS,GPC
WALSALL COUNCIL,HTTP://OPENDATACOMMUNITIES.ORG/ID/METROPOLITAN-DISTRICT-COUNCIL/WALSALL,31/12/2018,RESOURCES & TRANSFORMATION,BLAKEMORE FOODSERVICE,03/10/2018,H59620181005KDSRYRTSO-2,16.66,CA ST JOHNS C.E. PRIMARY SCHOO-FROZEN FOODS-PROVISIONS,CATERERS,GPC
WALSALL COUNCIL,HTTP://OPENDATACOMMUNITIES.ORG/ID/METROPOLITAN-DISTRICT-COUNCIL/WALSALL,31/12/2018,RESOURCES & TRANSFORMATION,BLAKEMORE FOODSERVICE,03/10/2018,H59620181005YLMTDLWRZ-1,130.15,CA ST JOHNS C.E. PRIMARY SCHOO-FROZEN FOODS-PROVISIONS,CATERERS,GPC
WALSALL COUNCIL,HTTP://OPENDATACOMMUNITIES.ORG/ID/METROPOLITAN-DISTRICT-COUNCIL/WALSALL,31/12/2018,RESOURCES & TRANSFORMATION,BLAKEMORE FOODSERVICE,03/10/2018,H59620181005YLMTDLWRZ-2,16.66,CA ST JOHNS C.E. PRIMARY SCHOO-FROZEN FOODS-PROVISIONS,CATERERS,GPC
WALSALL COUNCIL,HTTP://OPENDATACOMMUNITIES.ORG/ID/METROPOLITAN-DISTRICT-COUNCIL/WALSALL,31/12/2018,RESOURCES & TRANSFORMATION,BLAKEMORE FOODSERVICE,03/10/2018,H59620181005EYJTHYFTK-1,7.50,CA ST MICHAELS C.E. PRIMARY SC-FROZEN FOODS-PROVISIONS,CATERERS,GPC
WALSALL COUNCIL,HTTP://OPENDATACOMMUNITIES.ORG/ID/METROPOLITAN-DISTRICT-COUNCIL/WALSALL,31/12/2018,RESOURCES & TRANSFORMATION,BLAKEMORE FOODSERVICE,03/10/2018,H59620181005TBUQOLJEE-1,264.47,CA ST MICHAELS C.E. PRIMARY SC-FROZEN FOODS-PROVISIONS,CATERERS,GPC
WALSALL COUNCIL,HTTP://OPENDATACOMMUNITIES.ORG/ID/METROPOLITAN-DISTRICT-COUNCIL/WALSALL,31/12/2018,RESOURCES & TRANSFORMATION,BLAKEMORE FOODSERVICE,03/10/2018,H59620181005ZBLSWMBRY-1,16.68,CA ST MICHAELS C.E. PRIMARY SC-FROZEN FOODS-PROVISIONS,CATERERS,GPC
WALSALL COUNCIL,HTTP://OPENDATACOMMUNITIES.ORG/ID/METROPOLITAN-DISTRICT-COUNCIL/WALSALL,31/12/2018,RESOURCES & TRANSFORMATION,BLAKEMORE FOODSERVICE,03/10/2018,H59620181005DJQTYCCVF-1,181.19,CA WATLING STREET PRIMARY SCHO-CATERING,CATERERS,GPC
WALSALL COUNCIL,HTTP://OPENDATACOMMUNITIES.ORG/ID/METROPOLITAN-DISTRICT-COUNCIL/WALSALL,31/12/2018,RESOURCES & TRANSFORMATION,BLAKEMORE FOODSERVICE,03/10/2018,H59620181005XREKRSTXW-1,105.78,CA WATLING STREET PRIMARY SCHO-FROZEN FOODS-PROVISIONS,CATERERS,GPC
WALSALL COUNCIL,HTTP://OPENDATACOMMUNITIES.ORG/ID/METROPOLITAN-DISTRICT-COUNCIL/WALSALL,31/12/2018,RESOURCES & TRANSFORMATION,BLAKEMORE FOODSERVICE,03/10/2018,H59620181005XREKRSTXW-2,8.33,CA WATLING STREET PRIMARY SCHO-FROZEN FOODS-PROVISIONS,CATERERS,GPC
WALSALL COUNCIL,HTTP://OPENDATACOMMUNITIES.ORG/ID/METROPOLITAN-DISTRICT-COUNCIL/WALSALL,31/12/2018,RESOURCES & TRANSFORMATION,NOBISCO LIMITED,03/10/2018,H59620181005HTPCIMQBF-1,18.25,CA ELMWOOD SPECIAL SCHOOL-DISPOSABLES-PROVISIONS,OTHER INDUSTRIAL SUPPLIES,GPC
WALSALL COUNCIL,HTTP://OPENDATACOMMUNITIES.ORG/ID/METROPOLITAN-DISTRICT-COUNCIL/WALSALL,31/12/2018,RESOURCES & TRANSFORMATION,BLAKEMORE FOODSERVICE,03/10/2018,H59620181005KEZBYSXXN-1,80.03,CA ELMWOOD SPECIAL SCHOOL-FROZEN FOODS-PROVISIONS,CATERERS,GPC
WALSALL COUNCIL,HTTP://OPENDATACOMMUNITIES.ORG/ID/METROPOLITAN-DISTRICT-COUNCIL/WALSALL,31/12/2018,RESOURCES & TRANSFORMATION,BLAKEMORE FOODSERVICE,03/10/2018,H59620181005KEZBYSXXN-2,16.66,CA ELMWOOD SPECIAL SCHOOL-FROZEN FOODS-PROVISIONS,CATERERS,GPC
WALSALL COUNCIL,HTTP://OPENDATACOMMUNITIES.ORG/ID/METROPOLITAN-DISTRICT-COUNCIL/WALSALL,31/12/2018,RESOURCES & TRANSFORMATION,BLAKEMORE FOODSERVICE,03/10/2018,H59620181005MXUWKYXDS-1,4.74,CA ELMWOOD SPECIAL SCHOOL-CATERING,CATERERS,GPC
WALSALL COUNCIL,HTTP://OPENDATACOMMUNITIES.ORG/ID/METROPOLITAN-DISTRICT-COUNCIL/WALSALL,31/12/2018,ECONOMY & ENVIRONMENT,MIDLANDCHILLED.CO.,03/10/2018,H59620181005FLJNCVHGI-1,205.00,BLOXWICH LEISURE CENTRE-AGENCY STAFF-EMPLOYEES,MOTOR FREIGHT CARRIERS,GPC
WALSALL COUNCIL,HTTP://OPENDATACOMMUNITIES.ORG/ID/METROPOLITAN-DISTRICT-COUNCIL/WALSALL,31/12/2018,ECONOMY & ENVIRONMENT,BANNER GROUP LTD,03/10/2018,H59620181005FKVMYEYPX-1,45.85,LIBRARY OPERATIONS CENTRAL-STATIONERY & GENERAL SUPPLIES-,"OFFICE, SCHOOL SUPPLY, AND STATIONERY STORES",GPC
WALSALL COUNCIL,HTTP://OPENDATACOMMUNITIES.ORG/ID/METROPOLITAN-DISTRICT-COUNCIL/WALSALL,31/12/2018,ECONOMY & ENVIRONMENT,TESCO STORES 2214,03/10/2018,H59620181005GQKMNWCWS-1,10.60,LIBRARY OPERATIONS - MOBILE SE-CLEANING MATERIALS,GROCERY STORES AND SUPERMARKETS,GPC
WALSALL COUNCIL,HTTP://OPENDATACOMMUNITIES.ORG/ID/METROPOLITAN-DISTRICT-COUNCIL/WALSALL,31/12/2018,ECONOMY & ENVIRONMENT,LUL TICKET MACHINE,03/10/2018,H59620181005NQZXQTSQS-1,12.70,NEW ART GALLERY - ADMIN-OFFICER/STAFF-PUBLIC TRANSPORT,PASSENGER RAILWAYS,GPC
WALSALL COUNCIL,HTTP://OPENDATACOMMUNITIES.ORG/ID/METROPOLITAN-DISTRICT-COUNCIL/WALSALL,31/12/2018,ECONOMY & ENVIRONMENT,LUL TICKET MACHINE,03/10/2018,H59620181005TOYICCSUL-1,20.00,NEW ART GALLERY - ADMIN-OFFICER/STAFF-PUBLIC TRANSPORT,PASSENGER RAILWAYS,GPC
WALSALL COUNCIL,HTTP://OPENDATACOMMUNITIES.ORG/ID/METROPOLITAN-DISTRICT-COUNCIL/WALSALL,31/12/2018,ECONOMY & ENVIRONMENT,TOOLSTATION LTD,03/10/2018,H59620181005RQWRGIMJT-1,42.76,NAG - TEMPORARY EXHIBITIONS-LOOSE TOOLS & CONSUMABLES,HARDWARE STORES,GPC
WALSALL COUNCIL,HTTP://OPENDATACOMMUNITIES.ORG/ID/METROPOLITAN-DISTRICT-COUNCIL/WALSALL,31/12/2018,ADULT SOCIAL CARE,TRAINLINE,03/10/2018,H59620181005ICSJONNIN-1,65.60,ASC PARTNERSHIPS-OFFICER/STAFF-PUBLIC TRANSPORT,PASSENGER RAILWAYS,GPC
WALSALL COUNCIL,HTTP://OPENDATACOMMUNITIES.ORG/ID/METROPOLITAN-DISTRICT-COUNCIL/WALSALL,31/12/2018,ADULT SOCIAL CARE,COMPASS SERVICES M652,03/10/2018,H59620181006GYXFDYBAN-1,180.00,SHARED LIVES-HOTEL ACCOMMODATION-EMPLOYEES,"HOTELS, MOTELS, RESORTS",GPC
WALSALL COUNCIL,HTTP://OPENDATACOMMUNITIES.ORG/ID/METROPOLITAN-DISTRICT-COUNCIL/WALSALL,31/12/2018,RESOURCES & TRANSFORMATION,BANNER GROUP LTD,03/10/2018,H59620181005GPMUFWVDI-1,33.97,LAW LIBRARY-STATIONERY & GENERAL SUPPLIES-,"OFFICE, SCHOOL SUPPLY, AND STATIONERY STORES",GPC
WALSALL COUNCIL,HTTP://OPENDATACOMMUNITIES.ORG/ID/METROPOLITAN-DISTRICT-COUNCIL/WALSALL,31/12/2018,RESOURCES & TRANSFORMATION,LICENSED CONVEYANCERS,03/10/2018,H59620181005SNHOHTVBT-1,400.00,BUILT ENVIRONMENT TEAM-LEGAL FEES-PRIV CONTRACTOR FEE,PROFESSIONAL SERVICES,GPC
WALSALL COUNCIL,HTTP://OPENDATACOMMUNITIES.ORG/ID/METROPOLITAN-DISTRICT-COUNCIL/WALSALL,31/12/2018,RESOURCES & TRANSFORMATION,AMZN MKTP UK,03/10/2018,H59620181005LCQNPIUMG-1,49.80,RECHARGEABLE EQUIPMENT-COMPUTER-OTHER EXPENSES,BOOK STORES,GPC
WALSALL COUNCIL,HTTP://OPENDATACOMMUNITIES.ORG/ID/METROPOLITAN-DISTRICT-COUNCIL/WALSALL,31/12/2018,RESOURCES & TRANSFORMATION,WP ENGINE,03/10/2018,H59620181005RYBAQIUDU-1,269.28,ICT INCOME-COMPUTER EQUIPMENT AND SUPPLIE,"COMPUTER PROGRAM, SYSTEM DESIGN",GPC
WALSALL COUNCIL,HTTP://OPENDATACOMMUNITIES.ORG/ID/METROPOLITAN-DISTRICT-COUNCIL/WALSALL,31/12/2018,RESOURCES & TRANSFORMATION,BANNER GROUP LTD,03/10/2018,H59620181005GYYPOQGER-1,34.80,BUSINESS SUPPORT - POST ROOM-STATIONERY & GENERAL SUPPLIES-,"OFFICE, SCHOOL SUPPLY, AND STATIONERY STORES",GPC
WALSALL COUNCIL,HTTP://OPENDATACOMMUNITIES.ORG/ID/METROPOLITAN-DISTRICT-COUNCIL/WALSALL,31/12/2018,CHILDRENS SERVICES-SCHOOLS,VALUE PRODUCTS LTD,04/10/2018,H59620181006NPYTBWVRO-1,297.60,PELSALL VILLAGE SCHOOL-PERSONAL REQUISITES-MATERIALS,MISCELLANEOUS AND SPECIALTY RETAIL STORES,GPC
WALSALL COUNCIL,HTTP://OPENDATACOMMUNITIES.ORG/ID/METROPOLITAN-DISTRICT-COUNCIL/WALSALL,31/12/2018,CHILDRENS SERVICES-SCHOOLS,AMZN MKTP UK*MT2857O74,04/10/2018,H59620181006MMPSOSSDF-1,14.93,ART & CRAFT DEPARTMENT-GENERAL MATERIALS,BOOK STORES,GPC
WALSALL COUNCIL,HTTP://OPENDATACOMMUNITIES.ORG/ID/METROPOLITAN-DISTRICT-COUNCIL/WALSALL,31/12/2018,CHILDRENS SERVICES-SCHOOLS,WWW.MLBADGES.COM,04/10/2018,H59620181006FDKPJHCIQ-1,150.00,AWARDS-GENERAL MATERIALS,MISCELLANEOUS AND SPECIALTY RETAIL STORES,GPC
WALSALL COUNCIL,HTTP://OPENDATACOMMUNITIES.ORG/ID/METROPOLITAN-DISTRICT-COUNCIL/WALSALL,31/12/2018,CHILDRENS SERVICES-SCHOOLS,AMZN MKTP UK,04/10/2018,H59620181006TRNRXELDW-1,27.94,ADMINISTRATIVE SUPPLIES-LIBRARY BOOKS,BOOK STORES,GPC
WALSALL COUNCIL,HTTP://OPENDATACOMMUNITIES.ORG/ID/METROPOLITAN-DISTRICT-COUNCIL/WALSALL,31/12/2018,CHILDRENS SERVICES-SCHOOLS,AMZN MKTP UK,04/10/2018,H59620181006GGUBIPILG-1,5.18,ADMINISTRATIVE SUPPLIES-MEDICAL REQUISITES-MATERIALS,BOOK STORES,GPC
WALSALL COUNCIL,HTTP://OPENDATACOMMUNITIES.ORG/ID/METROPOLITAN-DISTRICT-COUNCIL/WALSALL,31/12/2018,CHILDRENS SERVICES-SCHOOLS,WALSALL COUNCIL,04/10/2018,H59620181009LIUBUQOLG-1,46.34,ST FRANCIS OF ASSISI CATHOLIC -MISC FEES AND EXPENSES,GOVERNMENT SERVICES,GPC
WALSALL COUNCIL,HTTP://OPENDATACOMMUNITIES.ORG/ID/METROPOLITAN-DISTRICT-COUNCIL/WALSALL,31/12/2018,CHILDRENS SERVICES-SCHOOLS,TESCO STORES 6161,04/10/2018,H59620181006EOJOSBSLH-1,52.25,FOOD TECHNOLOGY-GENERAL MATERIALS,GROCERY STORES AND SUPERMARKETS,GPC
WALSALL COUNCIL,HTTP://OPENDATACOMMUNITIES.ORG/ID/METROPOLITAN-DISTRICT-COUNCIL/WALSALL,31/12/2018,CHILDRENS SERVICES,WWW.WATERSTONESGIFTCAR,04/10/2018,H59620181006OCKZPYEHX-1,1003.90,VIRTUAL SCHOOL - CENTRAL PUPIL-MISC FEES AND EXPENSES,BOOK STORES,GPC
WALSALL COUNCIL,HTTP://OPENDATACOMMUNITIES.ORG/ID/METROPOLITAN-DISTRICT-COUNCIL/WALSALL,31/12/2018,CHILDRENS SERVICES,ASDA STORES,04/10/2018,H59620181006YLKRBQBXJ-1,4.90,LOCALITY FAMILY SUPPORT-WEST-FOOD AND BEVERAGES-PROVISIONS,GROCERY STORES AND SUPERMARKETS,GPC
WALSALL COUNCIL,HTTP://OPENDATACOMMUNITIES.ORG/ID/METROPOLITAN-DISTRICT-COUNCIL/WALSALL,31/12/2018,CHILDRENS SERVICES,PREMIER INN 44536760,04/10/2018,H59620181009OOOWEETBF-1,51.00,CHILD PROTECTION & REVIEW SERV-SUBSISTENCE OFFICERS-EXPENSES,"EATING PLACES, RESTAURANTS",GPC
WALSALL COUNCIL,HTTP://OPENDATACOMMUNITIES.ORG/ID/METROPOLITAN-DISTRICT-COUNCIL/WALSALL,31/12/2018,CHILDRENS SERVICES,WWW.WMCA.CO.UK,04/10/2018,H59620181006ITSQKOLKB-1,174.00,SAFEGUARDING & FAMILY SUPPORT-OFFICER/STAFF-PUBLIC TRANSPORT,PASSENGER RAILWAYS,GPC
WALSALL COUNCIL,HTTP://OPENDATACOMMUNITIES.ORG/ID/METROPOLITAN-DISTRICT-COUNCIL/WALSALL,31/12/2018,CHILDRENS SERVICES,TRAINLINE,04/10/2018,H59620181006QDCDUHYSE-1,583.50,SAFEGUARDING & FAMILY SUPPORT-OFFICER/STAFF-PUBLIC TRANSPORT,PASSENGER RAILWAYS,GPC
WALSALL COUNCIL,HTTP://OPENDATACOMMUNITIES.ORG/ID/METROPOLITAN-DISTRICT-COUNCIL/WALSALL,31/12/2018,CHILDRENS SERVICES,WEST MID TRAVEL,04/10/2018,H59620181006THPBYXMOG-1,230.00,SAFEGUARDING & FAMILY SUPPORT-OFFICER/STAFF-PUBLIC TRANSPORT,BUS LINES,GPC
WALSALL COUNCIL,HTTP://OPENDATACOMMUNITIES.ORG/ID/METROPOLITAN-DISTRICT-COUNCIL/WALSALL,31/12/2018,CHILDRENS SERVICES,WEST MID TRAVEL,04/10/2018,H59620181006THPBYXMOG-2,6.90,SAFEGUARDING & FAMILY SUPPORT-OFFICER/STAFF-PUBLIC TRANSPORT,BUS LINES,GPC
WALSALL COUNCIL,HTTP://OPENDATACOMMUNITIES.ORG/ID/METROPOLITAN-DISTRICT-COUNCIL/WALSALL,31/12/2018,CHILDRENS SERVICES,TRAINLINE,04/10/2018,H59620181006TZNMKCIVS-1,186.40,SAFEGUARDING & FAMILY SUPPORT-OFFICER/STAFF-PUBLIC TRANSPORT,PASSENGER RAILWAYS,GPC
WALSALL COUNCIL,HTTP://OPENDATACOMMUNITIES.ORG/ID/METROPOLITAN-DISTRICT-COUNCIL/WALSALL,31/12/2018,CHILDRENS SERVICES,DAVID LLOYD,04/10/2018,H59620181006HUOMBTMTJ-1,0.60,ADOPTION TEAM-FOOD AND BEVERAGES-PROVISIONS,"CLUBS COUNTRY CLUBS, MEMBERSHIP",GPC
WALSALL COUNCIL,HTTP://OPENDATACOMMUNITIES.ORG/ID/METROPOLITAN-DISTRICT-COUNCIL/WALSALL,31/12/2018,CHILDRENS SERVICES,WWW.ARGOS.CO.UK,04/10/2018,H59620181006RTTCHGOPV-1,153.94,FAMILY PLACEMENTS-MISCELLANEOUS ALLOWANCES-FOSTE,DISCOUNT STORES,GPC
WALSALL COUNCIL,HTTP://OPENDATACOMMUNITIES.ORG/ID/METROPOLITAN-DISTRICT-COUNCIL/WALSALL,31/12/2018,CHILDRENS SERVICES,REGISTRATION SERVICES,04/10/2018,H59620181006XODQSKIKO-1,10.00,LOOKED AFTER CHILDRENS SOCIAL -MISC FEES AND EXPENSES,OTHER RECREATION SERVICES,GPC
WALSALL COUNCIL,HTTP://OPENDATACOMMUNITIES.ORG/ID/METROPOLITAN-DISTRICT-COUNCIL/WALSALL,31/12/2018,CHILDRENS SERVICES,JOHAL DAIRIES LTD,04/10/2018,H59620181006AMSLPIJIZ-1,3.96,CONTACT SESSIONAL STAFF-MISC DAIRY PRODUCTS-PROVISIONS,OTHER NONDURABLE GOODS,GPC
WALSALL COUNCIL,HTTP://OPENDATACOMMUNITIES.ORG/ID/METROPOLITAN-DISTRICT-COUNCIL/WALSALL,31/12/2018,CHILDRENS SERVICES,TESCO STORES 6161,04/10/2018,H59620181006QJHHOCEIN-1,171.50,TRANSITION AND LEAVING CARE PL-FURNITURE & EQUIPMENT,GROCERY STORES AND SUPERMARKETS,GPC
WALSALL COUNCIL,HTTP://OPENDATACOMMUNITIES.ORG/ID/METROPOLITAN-DISTRICT-COUNCIL/WALSALL,31/12/2018,CHILDRENS SERVICES,WALSALL STN T/O,04/10/2018,H59620181006SROCJZPEW-1,5.60,TRANSITION AND LEAVING CARE PL-OFFICER/STAFF-PUBLIC TRANSPORT,PASSENGER RAILWAYS,GPC
WALSALL COUNCIL,HTTP://OPENDATACOMMUNITIES.ORG/ID/METROPOLITAN-DISTRICT-COUNCIL/WALSALL,31/12/2018,CHILDRENS SERVICES,ASDA STORES LTD 4225,04/10/2018,H59620181006YTBUVZKHG-1,146.50,TRANSITION AND LEAVING CARE PL-FURNITURE & EQUIPMENT,GROCERY STORES AND SUPERMARKETS,GPC
WALSALL COUNCIL,HTTP://OPENDATACOMMUNITIES.ORG/ID/METROPOLITAN-DISTRICT-COUNCIL/WALSALL,31/12/2018,CHILDRENS SERVICES,JOHAL DAIRIES LTD,04/10/2018,H59620181006MIJJVIFNP-1,7.44,57 LICHFIELD ROAD-FOOD AND BEVERAGES-PROVISIONS,OTHER NONDURABLE GOODS,GPC
WALSALL COUNCIL,HTTP://OPENDATACOMMUNITIES.ORG/ID/METROPOLITAN-DISTRICT-COUNCIL/WALSALL,31/12/2018,CHILDRENS SERVICES,ALDI 95 772,04/10/2018,H59620181006EFKJCJSYE-1,7.01,SPINDLETREE-EQUIP NEW-CLEANING,GROCERY STORES AND SUPERMARKETS,GPC
WALSALL COUNCIL,HTTP://OPENDATACOMMUNITIES.ORG/ID/METROPOLITAN-DISTRICT-COUNCIL/WALSALL,31/12/2018,CHILDRENS SERVICES,ALDI 95 772,04/10/2018,H59620181006XKFYAXKFS-1,49.13,SPINDLETREE-FOOD AND BEVERAGES-PROVISIONS,GROCERY STORES AND SUPERMARKETS,GPC
WALSALL COUNCIL,HTTP://OPENDATACOMMUNITIES.ORG/ID/METROPOLITAN-DISTRICT-COUNCIL/WALSALL,31/12/2018,CHILDRENS SERVICES,ALDI 95 772,04/10/2018,H59620181006XKFYAXKFS-2,9.45,SPINDLETREE-FOOD AND BEVERAGES-PROVISIONS,GROCERY STORES AND SUPERMARKETS,GPC
WALSALL COUNCIL,HTTP://OPENDATACOMMUNITIES.ORG/ID/METROPOLITAN-DISTRICT-COUNCIL/WALSALL,31/12/2018,CHILDRENS SERVICES,ASDA SUPERSTORE,04/10/2018,H59620181006HDTZJUNXW-1,68.48,REDRUTH ROAD-FOOD AND BEVERAGES-PROVISIONS,GROCERY STORES AND SUPERMARKETS,GPC
WALSALL COUNCIL,HTTP://OPENDATACOMMUNITIES.ORG/ID/METROPOLITAN-DISTRICT-COUNCIL/WALSALL,31/12/2018,CHILDRENS SERVICES,WWW.PARENTMAIL.CO.,04/10/2018,H59620181006NGORMVZSU-1,10.00,REDRUTH ROAD-FOOD AND BEVERAGES-PROVISIONS,OTHER SCHOOLS AND EDUCATIONAL SERVICES,GPC
WALSALL COUNCIL,HTTP://OPENDATACOMMUNITIES.ORG/ID/METROPOLITAN-DISTRICT-COUNCIL/WALSALL,31/12/2018,CHILDRENS SERVICES,WWW.BARRBEACON.WALSALL,04/10/2018,H59620181006RDSIJQUFW-1,15.00,REDRUTH ROAD-FOOD AND BEVERAGES-PROVISIONS,"SCHOOLS, ELEMENTARY AND SECONDARY",GPC
WALSALL COUNCIL,HTTP://OPENDATACOMMUNITIES.ORG/ID/METROPOLITAN-DISTRICT-COUNCIL/WALSALL,31/12/2018,CHILDRENS SERVICES,AMZ*ROCKING PARTY (UK,04/10/2018,H59620181006SINOTDBAT-1,-4.99,REDRUTH ROAD-RESIDENTS PERSONAL EXPENSES-AL,MISCELLANEOUS AND SPECIALTY RETAIL STORES,GPC
WALSALL COUNCIL,HTTP://OPENDATACOMMUNITIES.ORG/ID/METROPOLITAN-DISTRICT-COUNCIL/WALSALL,31/12/2018,CHILDRENS SERVICES,WWW.BARRBEACON.WALSALL,04/10/2018,H59620181006SXVWTIAIU-1,300.00,REDRUTH ROAD-RESIDENTS PERSONAL EXPENSES-AL,"SCHOOLS, ELEMENTARY AND SECONDARY",GPC
WALSALL COUNCIL,HTTP://OPENDATACOMMUNITIES.ORG/ID/METROPOLITAN-DISTRICT-COUNCIL/WALSALL,31/12/2018,CHILDRENS SERVICES,ASDA SUPERSTORE,04/10/2018,H59620181006URIYELELX-1,22.00,REDRUTH ROAD-NEW-FURNITURE & EQUIPMENT,GROCERY STORES AND SUPERMARKETS,GPC
WALSALL COUNCIL,HTTP://OPENDATACOMMUNITIES.ORG/ID/METROPOLITAN-DISTRICT-COUNCIL/WALSALL,31/12/2018,CHILDRENS SERVICES,AMZN MKTP UK AMAZON.CO.UK,04/10/2018,H59620181009QCZIFQJQD-1,-4.99,REDRUTH ROAD-RESIDENTS PERSONAL EXPENSES-AL,BOOK STORES,GPC
WALSALL COUNCIL,HTTP://OPENDATACOMMUNITIES.ORG/ID/METROPOLITAN-DISTRICT-COUNCIL/WALSALL,31/12/2018,RESOURCES & TRANSFORMATION,REEDSWOOD,04/10/2018,H59620181006VQRTIYYEB-1,34.99,CL CIVIC CENTRE-NEW-FURNITURE & EQUIPMENT,DISCOUNT STORES,GPC
WALSALL COUNCIL,HTTP://OPENDATACOMMUNITIES.ORG/ID/METROPOLITAN-DISTRICT-COUNCIL/WALSALL,31/12/2018,ECONOMY & ENVIRONMENT,AMZN MKTP UK AMAZON.CO.UK,04/10/2018,H59620181006DURTNNSRD-1,3.98,CENTRALISED STATIONARY-STATIONERY & GENERAL SUPPLIES-,BOOK STORES,GPC
WALSALL COUNCIL,HTTP://OPENDATACOMMUNITIES.ORG/ID/METROPOLITAN-DISTRICT-COUNCIL/WALSALL,31/12/2018,ECONOMY & ENVIRONMENT,AMZN MKTP UK AMAZON.CO.UK,04/10/2018,H59620181006PMMDMDQVK-1,6.20,CENTRALISED STATIONARY-STATIONERY & GENERAL SUPPLIES-,BOOK STORES,GPC
WALSALL COUNCIL,HTTP://OPENDATACOMMUNITIES.ORG/ID/METROPOLITAN-DISTRICT-COUNCIL/WALSALL,31/12/2018,RESOURCES & TRANSFORMATION,ADVANTAGE HOTELS(WALSA,04/10/2018,H59620181006JROGDONOG-1,150.00,BED & BREAKFAST PAYMENTS-HOTEL ACCOMMODATION-EMPLOYEES,"HOTELS, MOTELS, RESORTS",GPC
WALSALL COUNCIL,HTTP://OPENDATACOMMUNITIES.ORG/ID/METROPOLITAN-DISTRICT-COUNCIL/WALSALL,31/12/2018,ECONOMY & ENVIRONMENT,AMZN MKTP UK AMAZON.CO.UK,04/10/2018,H59620181006BFIKZWHOG-1,25.49,FLEET-GENERAL MATERIALS,BOOK STORES,GPC
WALSALL COUNCIL,HTTP://OPENDATACOMMUNITIES.ORG/ID/METROPOLITAN-DISTRICT-COUNCIL/WALSALL,31/12/2018,ECONOMY & ENVIRONMENT,WWW.CHARTEREDFORESTERS,04/10/2018,H59620181006LTUMFLPNA-1,37.50,FLEET-EXTERNAL TRAINING,"ORGANIZATIONS, MEMBERSHIP",GPC
WALSALL COUNCIL,HTTP://OPENDATACOMMUNITIES.ORG/ID/METROPOLITAN-DISTRICT-COUNCIL/WALSALL,31/12/2018,ECONOMY & ENVIRONMENT,AMZN MKTP UK AMAZON.CO.UK,04/10/2018,H59620181009MOESNLXAT-1,13.97,FLEET-GENERAL MATERIALS,BOOK STORES,GPC
WALSALL COUNCIL,HTTP://OPENDATACOMMUNITIES.ORG/ID/METROPOLITAN-DISTRICT-COUNCIL/WALSALL,31/12/2018,ECONOMY & ENVIRONMENT,TOOLSTATION LTD,04/10/2018,H59620181006EKLTXIMRX-1,26.45,INFRASTRUCTURE MAINTENANCE-GENERAL MATERIALS,HARDWARE STORES,GPC
WALSALL COUNCIL,HTTP://OPENDATACOMMUNITIES.ORG/ID/METROPOLITAN-DISTRICT-COUNCIL/WALSALL,31/12/2018,ECONOMY & ENVIRONMENT,SCREWFIX WOLVERHAM,04/10/2018,H59620181006GTTRSBQTO-1,-12.57,INFRASTRUCTURE MAINTENANCE-GENERAL MATERIALS,LUMBER & BUILDING MATERIALS STORES,GPC
WALSALL COUNCIL,HTTP://OPENDATACOMMUNITIES.ORG/ID/METROPOLITAN-DISTRICT-COUNCIL/WALSALL,31/12/2018,ECONOMY & ENVIRONMENT,SCREWFIX WOLVERHAM,04/10/2018,H59620181006MOLEMDRKN-1,41.90,INFRASTRUCTURE MAINTENANCE-GENERAL MATERIALS,LUMBER & BUILDING MATERIALS STORES,GPC
WALSALL COUNCIL,HTTP://OPENDATACOMMUNITIES.ORG/ID/METROPOLITAN-DISTRICT-COUNCIL/WALSALL,31/12/2018,ECONOMY & ENVIRONMENT,OLYMPIC SUPPLY COMPANY,04/10/2018,H59620181006BEVEPDEHH-1,127.20,COUNTRYSIDE MANAGEMENT - OTHER-GENERAL MATERIALS,OTHER INDUSTRIAL SUPPLIES,GPC
WALSALL COUNCIL,HTTP://OPENDATACOMMUNITIES.ORG/ID/METROPOLITAN-DISTRICT-COUNCIL/WALSALL,31/12/2018,ECONOMY & ENVIRONMENT,AMZN MKTP UK,04/10/2018,H59620181006EXOMZMRIP-1,11.98,POLLUTION DIVISION-STATIONERY & GENERAL SUPPLIES-,BOOK STORES,GPC
WALSALL COUNCIL,HTTP://OPENDATACOMMUNITIES.ORG/ID/METROPOLITAN-DISTRICT-COUNCIL/WALSALL,31/12/2018,ECONOMY & ENVIRONMENT,TESCO PAY AT PUMP 4188,04/10/2018,H59620181006FEYJIJNIU-1,37.10,PARKING SERVICES OFF-STREET-OFFICERS/STAFF-CAR ALLOWANCES,"FUEL DISPENSER, AUTOMATED",GPC
WALSALL COUNCIL,HTTP://OPENDATACOMMUNITIES.ORG/ID/METROPOLITAN-DISTRICT-COUNCIL/WALSALL,31/12/2018,ECONOMY & ENVIRONMENT,TRAINLINE,04/10/2018,H59620181006JOMFKXULR-1,223.50,ENGINEERING MANAGEMENT-OTHER/VOLUNTEERS-CAR ALLOWANCE,PASSENGER RAILWAYS,GPC
WALSALL COUNCIL,HTTP://OPENDATACOMMUNITIES.ORG/ID/METROPOLITAN-DISTRICT-COUNCIL/WALSALL,31/12/2018,RESOURCES & TRANSFORMATION,JOHAL DAIRIES LTD,04/10/2018,H59620181006LKCPKTOYQ-1,6.02,CA KINGSHILL SCHOOL-MISC DAIRY PRODUCTS-PROVISIONS,OTHER NONDURABLE GOODS,GPC
WALSALL COUNCIL,HTTP://OPENDATACOMMUNITIES.ORG/ID/METROPOLITAN-DISTRICT-COUNCIL/WALSALL,31/12/2018,RESOURCES & TRANSFORMATION,JOHAL DAIRIES LTD,04/10/2018,H59620181006OXRIUEFPS-1,33.19,CA JANE LANE SPECIAL SCHOOL-MISC DAIRY PRODUCTS-PROVISIONS,OTHER NONDURABLE GOODS,GPC
WALSALL COUNCIL,HTTP://OPENDATACOMMUNITIES.ORG/ID/METROPOLITAN-DISTRICT-COUNCIL/WALSALL,31/12/2018,RESOURCES & TRANSFORMATION,JOHAL DAIRIES LTD,04/10/2018,H59620181006DKLLXFEJC-1,7.32,CA OLD HALL SPECIAL SCHOOL-MISC DAIRY PRODUCTS-PROVISIONS,OTHER NONDURABLE GOODS,GPC
WALSALL COUNCIL,HTTP://OPENDATACOMMUNITIES.ORG/ID/METROPOLITAN-DISTRICT-COUNCIL/WALSALL,31/12/2018,RESOURCES & TRANSFORMATION,JOHAL DAIRIES LTD,04/10/2018,H59620181006BJOGCPEMX-1,30.64,CA ABBEY PRIMARY SCHOOL-MISC DAIRY PRODUCTS-PROVISIONS,OTHER NONDURABLE GOODS,GPC
WALSALL COUNCIL,HTTP://OPENDATACOMMUNITIES.ORG/ID/METROPOLITAN-DISTRICT-COUNCIL/WALSALL,31/12/2018,RESOURCES & TRANSFORMATION,JOHAL DAIRIES LTD,04/10/2018,H59620181006KSUBINDLI-1,9.10,CA BEACON PRIMARY SCHOOL-MISC DAIRY PRODUCTS-PROVISIONS,OTHER NONDURABLE GOODS,GPC
WALSALL COUNCIL,HTTP://OPENDATACOMMUNITIES.ORG/ID/METROPOLITAN-DISTRICT-COUNCIL/WALSALL,31/12/2018,RESOURCES & TRANSFORMATION,NOBISCO LIMITED,04/10/2018,H59620181006MJJRLKHTC-1,78.23,CA BROWNHILLS WEST PRIMARY SCH-DISPOSABLES-PROVISIONS,OTHER INDUSTRIAL SUPPLIES,GPC
WALSALL COUNCIL,HTTP://OPENDATACOMMUNITIES.ORG/ID/METROPOLITAN-DISTRICT-COUNCIL/WALSALL,31/12/2018,RESOURCES & TRANSFORMATION,JOHAL DAIRIES LTD,04/10/2018,H59620181006VJXFJLRRB-1,25.54,CA BROWNHILLS WEST PRIMARY SCH-MISC DAIRY PRODUCTS-PROVISIONS,OTHER NONDURABLE GOODS,GPC
WALSALL COUNCIL,HTTP://OPENDATACOMMUNITIES.ORG/ID/METROPOLITAN-DISTRICT-COUNCIL/WALSALL,31/12/2018,RESOURCES & TRANSFORMATION,JOHAL DAIRIES LTD,04/10/2018,H59620181006TBQSQBRSH-1,38.40,CA BUSILL JONES PRIMARY SCHOOL-MISC DAIRY PRODUCTS-PROVISIONS,OTHER NONDURABLE GOODS,GPC
WALSALL COUNCIL,HTTP://OPENDATACOMMUNITIES.ORG/ID/METROPOLITAN-DISTRICT-COUNCIL/WALSALL,31/12/2018,RESOURCES & TRANSFORMATION,JOHAL DAIRIES LTD,04/10/2018,H59620181006FSBLVJWRS-1,31.85,CA CASTLEFORT JMI SCHOOL-MISC DAIRY PRODUCTS-PROVISIONS,OTHER NONDURABLE GOODS,GPC
WALSALL COUNCIL,HTTP://OPENDATACOMMUNITIES.ORG/ID/METROPOLITAN-DISTRICT-COUNCIL/WALSALL,31/12/2018,RESOURCES & TRANSFORMATION,NOBISCO LIMITED,04/10/2018,H59620181006OPOXXKDLW-1,86.15,CA CASTLEFORT JMI SCHOOL-DISPOSABLES-PROVISIONS,OTHER INDUSTRIAL SUPPLIES,GPC
WALSALL COUNCIL,HTTP://OPENDATACOMMUNITIES.ORG/ID/METROPOLITAN-DISTRICT-COUNCIL/WALSALL,31/12/2018,RESOURCES & TRANSFORMATION,JOHAL DAIRIES LTD,04/10/2018,H59620181006DLCJGWTBZ-1,30.96,CA COOPER JORDAN CE PRIMARY SC-MISC DAIRY PRODUCTS-PROVISIONS,OTHER NONDURABLE GOODS,GPC
WALSALL COUNCIL,HTTP://OPENDATACOMMUNITIES.ORG/ID/METROPOLITAN-DISTRICT-COUNCIL/WALSALL,31/12/2018,RESOURCES & TRANSFORMATION,NOBISCO LIMITED,04/10/2018,H59620181006HHQFYXNSE-1,6.38,CA CROFT COMMUNITY PRIMARY SCH-DISPOSABLES-PROVISIONS,OTHER INDUSTRIAL SUPPLIES,GPC
WALSALL COUNCIL,HTTP://OPENDATACOMMUNITIES.ORG/ID/METROPOLITAN-DISTRICT-COUNCIL/WALSALL,31/12/2018,RESOURCES & TRANSFORMATION,JOHAL DAIRIES LTD,04/10/2018,H59620181006JFNATECYQ-1,2.73,CA CROFT COMMUNITY PRIMARY SCH-MISC DAIRY PRODUCTS-PROVISIONS,OTHER NONDURABLE GOODS,GPC
WALSALL COUNCIL,HTTP://OPENDATACOMMUNITIES.ORG/ID/METROPOLITAN-DISTRICT-COUNCIL/WALSALL,31/12/2018,RESOURCES & TRANSFORMATION,JOHAL DAIRIES LTD,04/10/2018,H59620181006IYQWMRFRE-1,25.85,CA ELMORE GREEN PRIMARY SCHOOL-MISC DAIRY PRODUCTS-PROVISIONS,OTHER NONDURABLE GOODS,GPC
WALSALL COUNCIL,HTTP://OPENDATACOMMUNITIES.ORG/ID/METROPOLITAN-DISTRICT-COUNCIL/WALSALL,31/12/2018,RESOURCES & TRANSFORMATION,JOHAL DAIRIES LTD,04/10/2018,H59620181006JUPVINSEF-1,14.56,CA BARCROFT D/C-MISC DAIRY PRODUCTS-PROVISIONS,OTHER NONDURABLE GOODS,GPC
WALSALL COUNCIL,HTTP://OPENDATACOMMUNITIES.ORG/ID/METROPOLITAN-DISTRICT-COUNCIL/WALSALL,31/12/2018,RESOURCES & TRANSFORMATION,JOHAL DAIRIES LTD,04/10/2018,H59620181006MWSLUOHYV-1,39.00,CA MOORCROFT WOOD-MISC DAIRY PRODUCTS-PROVISIONS,OTHER NONDURABLE GOODS,GPC
WALSALL COUNCIL,HTTP://OPENDATACOMMUNITIES.ORG/ID/METROPOLITAN-DISTRICT-COUNCIL/WALSALL,31/12/2018,RESOURCES & TRANSFORMATION,JOHAL DAIRIES LTD,04/10/2018,H59620181006NNYCJYVML-1,2.63,CA LEAMORE PRIMARY SCHOOL-MISC DAIRY PRODUCTS-PROVISIONS,OTHER NONDURABLE GOODS,GPC
WALSALL COUNCIL,HTTP://OPENDATACOMMUNITIES.ORG/ID/METROPOLITAN-DISTRICT-COUNCIL/WALSALL,31/12/2018,RESOURCES & TRANSFORMATION,JOHAL DAIRIES LTD,04/10/2018,H59620181006BRIVLTRRV-1,36.40,CA LEIGHSWOOD PRIMARY SCHOOL-MISC DAIRY PRODUCTS-PROVISIONS,OTHER NONDURABLE GOODS,GPC
WALSALL COUNCIL,HTTP://OPENDATACOMMUNITIES.ORG/ID/METROPOLITAN-DISTRICT-COUNCIL/WALSALL,31/12/2018,RESOURCES & TRANSFORMATION,JOHAL DAIRIES LTD,04/10/2018,H59620181006LIENQNIJC-1,47.68,CA LINDENS PRIMARY SCHOOL-MISC DAIRY PRODUCTS-PROVISIONS,OTHER NONDURABLE GOODS,GPC
WALSALL COUNCIL,HTTP://OPENDATACOMMUNITIES.ORG/ID/METROPOLITAN-DISTRICT-COUNCIL/WALSALL,31/12/2018,RESOURCES & TRANSFORMATION,JOHAL DAIRIES LTD,04/10/2018,H59620181006TCITLQVUS-1,12.90,CA LITTLE BLOXWICH CE PRIMARY -MISC DAIRY PRODUCTS-PROVISIONS,OTHER NONDURABLE GOODS,GPC
WALSALL COUNCIL,HTTP://OPENDATACOMMUNITIES.ORG/ID/METROPOLITAN-DISTRICT-COUNCIL/WALSALL,31/12/2018,RESOURCES & TRANSFORMATION,JOHAL DAIRIES LTD,04/10/2018,H59620181006GYWTPKKWM-1,52.88,TOWN HALL RESTAURANT BISTRO-MISC DAIRY PRODUCTS-PROVISIONS,OTHER NONDURABLE GOODS,GPC
WALSALL COUNCIL,HTTP://OPENDATACOMMUNITIES.ORG/ID/METROPOLITAN-DISTRICT-COUNCIL/WALSALL,31/12/2018,RESOURCES & TRANSFORMATION,JOHAL DAIRIES LTD,04/10/2018,H59620181006UDBNIAAHR-1,18.06,CA RADLEYS PRIMARY SCHOOL-MISC DAIRY PRODUCTS-PROVISIONS,OTHER NONDURABLE GOODS,GPC
WALSALL COUNCIL,HTTP://OPENDATACOMMUNITIES.ORG/ID/METROPOLITAN-DISTRICT-COUNCIL/WALSALL,31/12/2018,RESOURCES & TRANSFORMATION,JOHAL DAIRIES LTD,04/10/2018,H59620181006BDTTTZYDR-1,13.17,CA RUSHALL JMI SCHOOL-MISC DAIRY PRODUCTS-PROVISIONS,OTHER NONDURABLE GOODS,GPC
WALSALL COUNCIL,HTTP://OPENDATACOMMUNITIES.ORG/ID/METROPOLITAN-DISTRICT-COUNCIL/WALSALL,31/12/2018,RESOURCES & TRANSFORMATION,JOHAL DAIRIES LTD,04/10/2018,H59620181006CDDOKMJBK-1,11.63,CA ST BERNADETTES CATHOLIC PRI-MISC DAIRY PRODUCTS-PROVISIONS,OTHER NONDURABLE GOODS,GPC
WALSALL COUNCIL,HTTP://OPENDATACOMMUNITIES.ORG/ID/METROPOLITAN-DISTRICT-COUNCIL/WALSALL,31/12/2018,RESOURCES & TRANSFORMATION,JOHAL DAIRIES LTD,04/10/2018,H59620181006NHETZFLQY-1,44.94,CA ST GILES C.E. PRIMARY SCHOO-MISC DAIRY PRODUCTS-PROVISIONS,OTHER NONDURABLE GOODS,GPC
WALSALL COUNCIL,HTTP://OPENDATACOMMUNITIES.ORG/ID/METROPOLITAN-DISTRICT-COUNCIL/WALSALL,31/12/2018,RESOURCES & TRANSFORMATION,JOHAL DAIRIES LTD,04/10/2018,H59620181006JYFVDSPTL-1,17.20,CA ST JOHNS C.E. PRIMARY SCHOO-MISC DAIRY PRODUCTS-PROVISIONS,OTHER NONDURABLE GOODS,GPC
WALSALL COUNCIL,HTTP://OPENDATACOMMUNITIES.ORG/ID/METROPOLITAN-DISTRICT-COUNCIL/WALSALL,31/12/2018,RESOURCES & TRANSFORMATION,JOHAL DAIRIES LTD,04/10/2018,H59620181006BXSZLWZUI-1,32.79,CA ST MICHAELS C.E. PRIMARY SC-MISC DAIRY PRODUCTS-PROVISIONS,OTHER NONDURABLE GOODS,GPC
WALSALL COUNCIL,HTTP://OPENDATACOMMUNITIES.ORG/ID/METROPOLITAN-DISTRICT-COUNCIL/WALSALL,31/12/2018,RESOURCES & TRANSFORMATION,JOHAL DAIRIES LTD,04/10/2018,H59620181006NFTPXQYAE-1,5.16,CA WALSALL WOOD PRIMARY SCHOOL-MISC DAIRY PRODUCTS-PROVISIONS,OTHER NONDURABLE GOODS,GPC
WALSALL COUNCIL,HTTP://OPENDATACOMMUNITIES.ORG/ID/METROPOLITAN-DISTRICT-COUNCIL/WALSALL,31/12/2018,RESOURCES & TRANSFORMATION,JOHAL DAIRIES LTD,04/10/2018,H59620181006TLOJCFBPI-1,7.97,CA ELMWOOD SPECIAL SCHOOL-MISC DAIRY PRODUCTS-PROVISIONS,OTHER NONDURABLE GOODS,GPC
WALSALL COUNCIL,HTTP://OPENDATACOMMUNITIES.ORG/ID/METROPOLITAN-DISTRICT-COUNCIL/WALSALL,31/12/2018,ECONOMY & ENVIRONMENT,ALLIANCE DISPOSABLES,04/10/2018,H59620181006FYMRVQFWI-1,385.44,WALSALL TOWN HALL-MISCELLANEOUS SUPPLIES,CATERERS,GPC
WALSALL COUNCIL,HTTP://OPENDATACOMMUNITIES.ORG/ID/METROPOLITAN-DISTRICT-COUNCIL/WALSALL,31/12/2018,ECONOMY & ENVIRONMENT,TESCO PFS 2594,04/10/2018,H59620181006GFPUYVDWR-1,1.10,WALSALL OUTDOOR ADVENTURE CENT-FOOD AND BEVERAGES-PROVISIONS,SERVICE STATIONS,GPC
WALSALL COUNCIL,HTTP://OPENDATACOMMUNITIES.ORG/ID/METROPOLITAN-DISTRICT-COUNCIL/WALSALL,31/12/2018,ECONOMY & ENVIRONMENT,MIDLANDCHILLED.CO.,04/10/2018,H59620181006JFWWLDAZW-1,104.11,BLOXWICH LEISURE CENTRE-AGENCY STAFF-EMPLOYEES,MOTOR FREIGHT CARRIERS,GPC
WALSALL COUNCIL,HTTP://OPENDATACOMMUNITIES.ORG/ID/METROPOLITAN-DISTRICT-COUNCIL/WALSALL,31/12/2018,ECONOMY & ENVIRONMENT,MIDLANDCHILLED.CO.,04/10/2018,H59620181006JFWWLDAZW-2,132.76,BLOXWICH LEISURE CENTRE-AGENCY STAFF-EMPLOYEES,MOTOR FREIGHT CARRIERS,GPC
WALSALL COUNCIL,HTTP://OPENDATACOMMUNITIES.ORG/ID/METROPOLITAN-DISTRICT-COUNCIL/WALSALL,31/12/2018,ECONOMY & ENVIRONMENT,CATERING24 LIMITED,04/10/2018,H59620181006VUUNCIYUK-1,116.47,BLOXWICH LEISURE CENTRE-FOOD AND BEVERAGES-PROVISIONS,OTHER BUSINESS SERVICES,GPC
WALSALL COUNCIL,HTTP://OPENDATACOMMUNITIES.ORG/ID/METROPOLITAN-DISTRICT-COUNCIL/WALSALL,31/12/2018,ECONOMY & ENVIRONMENT,WWW.STA.CO.UK,04/10/2018,H59620181006YLSLYQOTJ-1,47.00,BLOXWICH LEISURE CENTRE-FEES & LICENCES-SERVICES,OTHER RECREATION SERVICES,GPC
WALSALL COUNCIL,HTTP://OPENDATACOMMUNITIES.ORG/ID/METROPOLITAN-DISTRICT-COUNCIL/WALSALL,31/12/2018,ECONOMY & ENVIRONMENT,J P LENNARD LTD,04/10/2018,H59620181006ECAUHIRFJ-1,29.50,WALSALL GALA CENTRE-NEW-FURNITURE & EQUIPMENT,SPORTING GOODS STORES,GPC
WALSALL COUNCIL,HTTP://OPENDATACOMMUNITIES.ORG/ID/METROPOLITAN-DISTRICT-COUNCIL/WALSALL,31/12/2018,ECONOMY & ENVIRONMENT,B&M RETAIL LTD,04/10/2018,H59620181006OYQXGFPVF-1,15.97,BROWNHILLS LIBRARY-CLEANING-MATERIALS (INC LIGHT ,DISCOUNT STORES,GPC
WALSALL COUNCIL,HTTP://OPENDATACOMMUNITIES.ORG/ID/METROPOLITAN-DISTRICT-COUNCIL/WALSALL,31/12/2018,ECONOMY & ENVIRONMENT,TAYLORS NEWS - 16046,04/10/2018,H59620181006MBNLQWSIO-1,23.24,STREETLY LIBRARY-NEWSPAPERS/PERIODICALS/MAGAZIN,GROCERY STORES AND SUPERMARKETS,GPC
WALSALL COUNCIL,HTTP://OPENDATACOMMUNITIES.ORG/ID/METROPOLITAN-DISTRICT-COUNCIL/WALSALL,31/12/2018,ECONOMY & ENVIRONMENT,LUL TICKET MACHINE,04/10/2018,H59620181006NLJVDLXTG-1,12.70,NEW ART GALLERY - ADMIN-OFFICER/STAFF-PUBLIC TRANSPORT,PASSENGER RAILWAYS,GPC
WALSALL COUNCIL,HTTP://OPENDATACOMMUNITIES.ORG/ID/METROPOLITAN-DISTRICT-COUNCIL/WALSALL,31/12/2018,ECONOMY & ENVIRONMENT,ABC SKIP HIRE LTD,04/10/2018,H59620181006FLHZWEFXN-1,198.00,NAG - MAINTENANCE-SKIPS/PORTALOOS/PORTACABINS-HI,"UTILITIES - ELECTRIC, GAS, SANITARY & WATER",GPC
WALSALL COUNCIL,HTTP://OPENDATACOMMUNITIES.ORG/ID/METROPOLITAN-DISTRICT-COUNCIL/WALSALL,31/12/2018,ECONOMY & ENVIRONMENT,AO RETAIL LIMITED,04/10/2018,H59620181006GVAMMLGCT-1,119.00,FOREST ARTS CENTRE-FURNITURE & EQUIPMENT,HOUSEHOLD APPLIANCE STORES,GPC
WALSALL COUNCIL,HTTP://OPENDATACOMMUNITIES.ORG/ID/METROPOLITAN-DISTRICT-COUNCIL/WALSALL,31/12/2018,RESOURCES & TRANSFORMATION,STRAND PALACE HOTE,04/10/2018,H59620181009ESNNIDVHH-1,180.00,PREVENT GRANT-HOTEL ACCOMMODATION-EMPLOYEES,"HOTELS, MOTELS, RESORTS",GPC
WALSALL COUNCIL,HTTP://OPENDATACOMMUNITIES.ORG/ID/METROPOLITAN-DISTRICT-COUNCIL/WALSALL,31/12/2018,ADULT SOCIAL CARE,POST OFFICE COUNTER,04/10/2018,H59620181006CUSSYRIGD-1,2.41,GOSCOTE-POSTAGES AND COURIER SERVICES,POSTAL SERVICES - GOVERNMENT ONLY,GPC
WALSALL COUNCIL,HTTP://OPENDATACOMMUNITIES.ORG/ID/METROPOLITAN-DISTRICT-COUNCIL/WALSALL,31/12/2018,RESOURCES & TRANSFORMATION,AMZN MKTP UK,04/10/2018,H59620181006KNDHKIJLQ-1,9.98,LAW LIBRARY-STATIONERY & GENERAL SUPPLIES-,BOOK STORES,GPC
WALSALL COUNCIL,HTTP://OPENDATACOMMUNITIES.ORG/ID/METROPOLITAN-DISTRICT-COUNCIL/WALSALL,31/12/2018,RESOURCES & TRANSFORMATION,AMZN MKTP UK,04/10/2018,H59620181006NQVKVWGRW-1,53.10,LAW LIBRARY-STATIONERY & GENERAL SUPPLIES-,BOOK STORES,GPC
WALSALL COUNCIL,HTTP://OPENDATACOMMUNITIES.ORG/ID/METROPOLITAN-DISTRICT-COUNCIL/WALSALL,31/12/2018,RESOURCES & TRANSFORMATION,WWW.SCC.COM,04/10/2018,H59620181009UJJYYVFMU-1,124.18,RECHARGEABLE EQUIPMENT-COMPUTER EQUIPMENT AND SUPPLIE,"COMPUTERS, COMPUTER PERIPHERAL EQUIPMENT, SOFTWARE",GPC
WALSALL COUNCIL,HTTP://OPENDATACOMMUNITIES.ORG/ID/METROPOLITAN-DISTRICT-COUNCIL/WALSALL,31/12/2018,RESOURCES & TRANSFORMATION,WWW.SCC.COM,04/10/2018,H59620181013JDJVSXFEQ-1,132.74,RECHARGEABLE EQUIPMENT-COMPUTER EQUIPMENT AND SUPPLIE,"COMPUTERS, COMPUTER PERIPHERAL EQUIPMENT, SOFTWARE",GPC
WALSALL COUNCIL,HTTP://OPENDATACOMMUNITIES.ORG/ID/METROPOLITAN-DISTRICT-COUNCIL/WALSALL,31/12/2018,RESOURCES & TRANSFORMATION,FOREIGN EXCHANGE FEE,04/10/2018,H59620181005GUZPRBYDM-1,7.41,APPLICATIONS-RECHARGE FOR MAINTENANCE/APPLI,,GPC
WALSALL COUNCIL,HTTP://OPENDATACOMMUNITIES.ORG/ID/METROPOLITAN-DISTRICT-COUNCIL/WALSALL,31/12/2018,RESOURCES & TRANSFORMATION,AMZN MKTP UK,04/10/2018,H59620181006JMTOCQIEV-1,44.00,SERVICE DESK 2nd LINE-MISC FEES AND EXPENSES,BOOK STORES,GPC
WALSALL COUNCIL,HTTP://OPENDATACOMMUNITIES.ORG/ID/METROPOLITAN-DISTRICT-COUNCIL/WALSALL,31/12/2018,RESOURCES & TRANSFORMATION,AMZN MKTP UK,04/10/2018,H59620181006NCTWKYXIN-1,15.07,SERVICE DESK 2nd LINE-MISC FEES AND EXPENSES,BOOK STORES,GPC
WALSALL COUNCIL,HTTP://OPENDATACOMMUNITIES.ORG/ID/METROPOLITAN-DISTRICT-COUNCIL/WALSALL,31/12/2018,RESOURCES & TRANSFORMATION,TESCO STORES 6161,04/10/2018,H59620181006NSCIUZNVX-1,12.99,WALSALL CRISIS SUPPORT SCHEME-FOOD AND BEVERAGES-PROVISIONS,GROCERY STORES AND SUPERMARKETS,GPC
WALSALL COUNCIL,HTTP://OPENDATACOMMUNITIES.ORG/ID/METROPOLITAN-DISTRICT-COUNCIL/WALSALL,31/12/2018,RESOURCES & TRANSFORMATION,TESCO STORES 6161,04/10/2018,H59620181006REEDMSLMI-1,195.25,WALSALL CRISIS SUPPORT SCHEME-FOOD AND BEVERAGES-PROVISIONS,GROCERY STORES AND SUPERMARKETS,GPC
WALSALL COUNCIL,HTTP://OPENDATACOMMUNITIES.ORG/ID/METROPOLITAN-DISTRICT-COUNCIL/WALSALL,31/12/2018,CHILDRENS SERVICES-SCHOOLS,AMZN MKTP UK*MT19U4FH4,05/10/2018,H59620181009DGKFYLRHY-1,23.80,ENGLISH DEPARTMENT-GENERAL MATERIALS,BOOK STORES,GPC
WALSALL COUNCIL,HTTP://OPENDATACOMMUNITIES.ORG/ID/METROPOLITAN-DISTRICT-COUNCIL/WALSALL,31/12/2018,CHILDRENS SERVICES-SCHOOLS,ADOBE SIGN,05/10/2018,H59620181009BOKSGTBVI-1,125.02,ADMINISTRATIVE SUPPLIES-GENERAL EXPENSES-OFFICE EXP,COMPUTER SOFTWARE STORES,GPC
WALSALL COUNCIL,HTTP://OPENDATACOMMUNITIES.ORG/ID/METROPOLITAN-DISTRICT-COUNCIL/WALSALL,31/12/2018,CHILDRENS SERVICES-SCHOOLS,WALSALL HOSP GENERAL,05/10/2018,H59620181009EJSIYXUKD-1,3.80,CADMUS FEDERATION-FREE STAFF MEALS-EMPLOYEES,GOVERNMENT SERVICES,GPC
WALSALL COUNCIL,HTTP://OPENDATACOMMUNITIES.ORG/ID/METROPOLITAN-DISTRICT-COUNCIL/WALSALL,31/12/2018,CHILDRENS SERVICES-SCHOOLS,COSTA COFFEE,05/10/2018,H59620181009XIPZAOVIF-1,5.70,CADMUS FEDERATION-FREE STAFF MEALS-EMPLOYEES,QUICK PAYMENT SERVICE-FAST-FOOD RESTAURANTS,GPC
WALSALL COUNCIL,HTTP://OPENDATACOMMUNITIES.ORG/ID/METROPOLITAN-DISTRICT-COUNCIL/WALSALL,31/12/2018,CHILDRENS SERVICES-SCHOOLS,WHSMITH.CO.UK,05/10/2018,H59620181009FTEGGNKJG-1,55.00,PUPIL PREMIUM-GENERAL MATERIALS,DIRECT MARKETING COMBINATION CATALOG,GPC
WALSALL COUNCIL,HTTP://OPENDATACOMMUNITIES.ORG/ID/METROPOLITAN-DISTRICT-COUNCIL/WALSALL,31/12/2018,CHILDRENS SERVICES-SCHOOLS,WALSALL COUNCIL,05/10/2018,H59620181009SYRVSYZTJ-1,46.34,ST FRANCIS OF ASSISI CATHOLIC -MISC FEES AND EXPENSES,GOVERNMENT SERVICES,GPC
WALSALL COUNCIL,HTTP://OPENDATACOMMUNITIES.ORG/ID/METROPOLITAN-DISTRICT-COUNCIL/WALSALL,31/12/2018,CHILDRENS SERVICES,BANNER GROUP LTD,05/10/2018,H59620181009FUFDUIUVM-1,188.82,PELSALL EDC-STATIONERY & GENERAL SUPPLIES-,"OFFICE, SCHOOL SUPPLY, AND STATIONERY STORES",GPC
WALSALL COUNCIL,HTTP://OPENDATACOMMUNITIES.ORG/ID/METROPOLITAN-DISTRICT-COUNCIL/WALSALL,31/12/2018,CHILDRENS SERVICES,FAST KEY SERVICES LIMI,05/10/2018,H59620181009KISRDWDSY-1,16.42,EARLY HELP MANAGEMENT TEAM-PROFESSIONAL FEES AND SERVICES,OTHER BUSINESS SERVICES,GPC
WALSALL COUNCIL,HTTP://OPENDATACOMMUNITIES.ORG/ID/METROPOLITAN-DISTRICT-COUNCIL/WALSALL,31/12/2018,CHILDRENS SERVICES,AMZN MKTP UK,05/10/2018,H59620181009GHEHBEGXU-1,9.95,LOCALITY FAMILY SUPPORT-WEST-FOOD AND BEVERAGES-PROVISIONS,BOOK STORES,GPC
WALSALL COUNCIL,HTTP://OPENDATACOMMUNITIES.ORG/ID/METROPOLITAN-DISTRICT-COUNCIL/WALSALL,31/12/2018,CHILDRENS SERVICES,AMZN MKTP UK,05/10/2018,H59620181009RJFDXFNQV-1,2.06,LOCALITY FAMILY SUPPORT-WEST-EVENTS,BOOK STORES,GPC
WALSALL COUNCIL,HTTP://OPENDATACOMMUNITIES.ORG/ID/METROPOLITAN-DISTRICT-COUNCIL/WALSALL,31/12/2018,CHILDRENS SERVICES,AMZN MKTP UK,05/10/2018,H59620181009TAWSXNLEP-1,2.86,LOCALITY FAMILY SUPPORT-WEST-EVENTS,BOOK STORES,GPC
WALSALL COUNCIL,HTTP://OPENDATACOMMUNITIES.ORG/ID/METROPOLITAN-DISTRICT-COUNCIL/WALSALL,31/12/2018,CHILDRENS SERVICES,AMZN MKTP UK,05/10/2018,H59620181009YOIDRKHSP-1,2.30,LOCALITY FAMILY SUPPORT-WEST-EVENTS,BOOK STORES,GPC
WALSALL COUNCIL,HTTP://OPENDATACOMMUNITIES.ORG/ID/METROPOLITAN-DISTRICT-COUNCIL/WALSALL,31/12/2018,CHILDRENS SERVICES,AMZN MKTP UK,05/10/2018,H59620181009ZBFPXGVAP-1,2.58,LOCALITY FAMILY SUPPORT-WEST-EVENTS,BOOK STORES,GPC
WALSALL COUNCIL,HTTP://OPENDATACOMMUNITIES.ORG/ID/METROPOLITAN-DISTRICT-COUNCIL/WALSALL,31/12/2018,CHILDRENS SERVICES,FARMFOODS- WALSALL,05/10/2018,H59620181009GUSXMDCRC-1,23.17,CENTRAL & EAST LOCALITY - SCHO-FOOD AND BEVERAGES-PROVISIONS,GROCERY STORES AND SUPERMARKETS,GPC
WALSALL COUNCIL,HTTP://OPENDATACOMMUNITIES.ORG/ID/METROPOLITAN-DISTRICT-COUNCIL/WALSALL,31/12/2018,CHILDRENS SERVICES,WALSALL STN T/O,05/10/2018,H59620181009CSXYQAQRS-1,96.00,DIRECTLY COMMISSIONED NURSING -OFFICER/STAFF-PUBLIC TRANSPORT,PASSENGER RAILWAYS,GPC
WALSALL COUNCIL,HTTP://OPENDATACOMMUNITIES.ORG/ID/METROPOLITAN-DISTRICT-COUNCIL/WALSALL,31/12/2018,CHILDRENS SERVICES,TRAINLINE,05/10/2018,H59620181009ARNIFLRSM-1,102.50,SAFEGUARDING & FAMILY SUPPORT-OFFICER/STAFF-PUBLIC TRANSPORT,PASSENGER RAILWAYS,GPC
WALSALL COUNCIL,HTTP://OPENDATACOMMUNITIES.ORG/ID/METROPOLITAN-DISTRICT-COUNCIL/WALSALL,31/12/2018,CHILDRENS SERVICES,PRIMARK 690,05/10/2018,H59620181009IWRXMCHZH-1,54.00,"43A HILTON ROAD, WILLENHALL-RESIDENTS PERSONAL EXPENSES-AL",CLOTHING STORES,GPC
WALSALL COUNCIL,HTTP://OPENDATACOMMUNITIES.ORG/ID/METROPOLITAN-DISTRICT-COUNCIL/WALSALL,31/12/2018,CHILDRENS SERVICES,POUNDLAND LTD 1427,05/10/2018,H59620181009UBKMCHGRY-1,5.00,"43A HILTON ROAD, WILLENHALL-RESIDENTS PERSONAL EXPENSES-AL",DISCOUNT STORES,GPC
WALSALL COUNCIL,HTTP://OPENDATACOMMUNITIES.ORG/ID/METROPOLITAN-DISTRICT-COUNCIL/WALSALL,31/12/2018,CHILDRENS SERVICES,POST OFFICE COUNTER,05/10/2018,H59620181009JIJQNCDPH-1,12.73,BLUEBELLS-PROFESSIONAL FEES AND SERVICES,POSTAL SERVICES - GOVERNMENT ONLY,GPC
WALSALL COUNCIL,HTTP://OPENDATACOMMUNITIES.ORG/ID/METROPOLITAN-DISTRICT-COUNCIL/WALSALL,31/12/2018,CHILDRENS SERVICES,W M MORRISONS.COM,05/10/2018,H59620181009YLLDFUCWX-1,18.18,BLUEBELLS-FOOD AND BEVERAGES-PROVISIONS,GROCERY STORES AND SUPERMARKETS,GPC
WALSALL COUNCIL,HTTP://OPENDATACOMMUNITIES.ORG/ID/METROPOLITAN-DISTRICT-COUNCIL/WALSALL,31/12/2018,CHILDRENS SERVICES,W M MORRISONS.COM,05/10/2018,H59620181009YLLDFUCWX-2,91.48,BLUEBELLS-FOOD AND BEVERAGES-PROVISIONS,GROCERY STORES AND SUPERMARKETS,GPC
WALSALL COUNCIL,HTTP://OPENDATACOMMUNITIES.ORG/ID/METROPOLITAN-DISTRICT-COUNCIL/WALSALL,31/12/2018,CHILDRENS SERVICES,BANNER GROUP LTD,05/10/2018,H59620181009DUEBIWKBI-1,69.61,EDUCATIONAL PSYCHOLOGISTS-STATIONERY & GENERAL SUPPLIES-,"OFFICE, SCHOOL SUPPLY, AND STATIONERY STORES",GPC
WALSALL COUNCIL,HTTP://OPENDATACOMMUNITIES.ORG/ID/METROPOLITAN-DISTRICT-COUNCIL/WALSALL,31/12/2018,CHILDRENS SERVICES,BANNER GROUP LTD,05/10/2018,H59620181009DUEBIWKBI-2,69.61,SEN-STATIONERY & GENERAL SUPPLIES-,"OFFICE, SCHOOL SUPPLY, AND STATIONERY STORES",GPC
WALSALL COUNCIL,HTTP://OPENDATACOMMUNITIES.ORG/ID/METROPOLITAN-DISTRICT-COUNCIL/WALSALL,31/12/2018,CHILDRENS SERVICES,TESCO STORES 6161,05/10/2018,H59620181009BDFNTXTBJ-1,100.00,SCHOOL IMPROVEMENT - VIRTUAL S-FOOD AND BEVERAGES-PROVISIONS,GROCERY STORES AND SUPERMARKETS,GPC
WALSALL COUNCIL,HTTP://OPENDATACOMMUNITIES.ORG/ID/METROPOLITAN-DISTRICT-COUNCIL/WALSALL,31/12/2018,CHILDRENS SERVICES,TESCO STORES 6161,05/10/2018,H59620181009HVHPWYGTB-1,27.00,SCHOOL IMPROVEMENT - VIRTUAL S-GENERAL MATERIALS,GROCERY STORES AND SUPERMARKETS,GPC
WALSALL COUNCIL,HTTP://OPENDATACOMMUNITIES.ORG/ID/METROPOLITAN-DISTRICT-COUNCIL/WALSALL,31/12/2018,RESOURCES & TRANSFORMATION,SCREWFIX DIRECT,05/10/2018,H59620181009MNNOPBHUI-1,29.99,"CENTRAL OFFICE ACCOMMODATION-REPAIRS,ALTERATIONS & MAINTENA",LUMBER & BUILDING MATERIALS STORES,GPC
WALSALL COUNCIL,HTTP://OPENDATACOMMUNITIES.ORG/ID/METROPOLITAN-DISTRICT-COUNCIL/WALSALL,31/12/2018,ECONOMY & ENVIRONMENT,BANNER GROUP LTD,05/10/2018,H59620181009JBNBRBBIN-1,202.56,DIRECTORATE SUPPORT-STATIONERY & GENERAL SUPPLIES-,"OFFICE, SCHOOL SUPPLY, AND STATIONERY STORES",GPC
WALSALL COUNCIL,HTTP://OPENDATACOMMUNITIES.ORG/ID/METROPOLITAN-DISTRICT-COUNCIL/WALSALL,31/12/2018,ECONOMY & ENVIRONMENT,BANNER GROUP LTD,05/10/2018,H59620181009JKZNJKUAV-1,75.32,DIRECTORATE SUPPORT-STATIONERY & GENERAL SUPPLIES-,"OFFICE, SCHOOL SUPPLY, AND STATIONERY STORES",GPC
WALSALL COUNCIL,HTTP://OPENDATACOMMUNITIES.ORG/ID/METROPOLITAN-DISTRICT-COUNCIL/WALSALL,31/12/2018,ECONOMY & ENVIRONMENT,BANNER GROUP LTD,05/10/2018,H59620181009UIWMSLVNA-1,0.48,DIRECTORATE SUPPORT-STATIONERY & GENERAL SUPPLIES-,"OFFICE, SCHOOL SUPPLY, AND STATIONERY STORES",GPC
WALSALL COUNCIL,HTTP://OPENDATACOMMUNITIES.ORG/ID/METROPOLITAN-DISTRICT-COUNCIL/WALSALL,31/12/2018,ECONOMY & ENVIRONMENT,BANNER GROUP LTD,05/10/2018,H59620181009AZBPVQKXZ-1,62.48,CENTRALISED STATIONARY-STATIONERY & GENERAL SUPPLIES-,"OFFICE, SCHOOL SUPPLY, AND STATIONERY STORES",GPC
WALSALL COUNCIL,HTTP://OPENDATACOMMUNITIES.ORG/ID/METROPOLITAN-DISTRICT-COUNCIL/WALSALL,31/12/2018,ECONOMY & ENVIRONMENT,BANNER GROUP LTD,05/10/2018,H59620181009FORYDBJCP-1,12.23,CENTRALISED STATIONARY-STATIONERY & GENERAL SUPPLIES-,"OFFICE, SCHOOL SUPPLY, AND STATIONERY STORES",GPC
WALSALL COUNCIL,HTTP://OPENDATACOMMUNITIES.ORG/ID/METROPOLITAN-DISTRICT-COUNCIL/WALSALL,31/12/2018,ECONOMY & ENVIRONMENT,BANNER GROUP LTD,05/10/2018,H59620181009ILTNRVCGH-1,15.55,CENTRALISED STATIONARY-STATIONERY & GENERAL SUPPLIES-,"OFFICE, SCHOOL SUPPLY, AND STATIONERY STORES",GPC
WALSALL COUNCIL,HTTP://OPENDATACOMMUNITIES.ORG/ID/METROPOLITAN-DISTRICT-COUNCIL/WALSALL,31/12/2018,ECONOMY & ENVIRONMENT,BANNER GROUP LTD,05/10/2018,H59620181009OCPLTLBVQ-1,25.65,CENTRALISED STATIONARY-STATIONERY & GENERAL SUPPLIES-,"OFFICE, SCHOOL SUPPLY, AND STATIONERY STORES",GPC
WALSALL COUNCIL,HTTP://OPENDATACOMMUNITIES.ORG/ID/METROPOLITAN-DISTRICT-COUNCIL/WALSALL,31/12/2018,ECONOMY & ENVIRONMENT,BANNER GROUP LTD,05/10/2018,H59620181009YCRDIVYTH-1,19.47,CENTRALISED STATIONARY-STATIONERY & GENERAL SUPPLIES-,"OFFICE, SCHOOL SUPPLY, AND STATIONERY STORES",GPC
WALSALL COUNCIL,HTTP://OPENDATACOMMUNITIES.ORG/ID/METROPOLITAN-DISTRICT-COUNCIL/WALSALL,31/12/2018,RESOURCES & TRANSFORMATION,TESCO STORES 6161,05/10/2018,H59620181009ZGWPOTYHH-1,18.10,ACCOMMODATION SERVICES MANAGEM-FOOD AND BEVERAGES-PROVISIONS,GROCERY STORES AND SUPERMARKETS,GPC
WALSALL COUNCIL,HTTP://OPENDATACOMMUNITIES.ORG/ID/METROPOLITAN-DISTRICT-COUNCIL/WALSALL,31/12/2018,RESOURCES & TRANSFORMATION,SS + JR JOHAL 31968,05/10/2018,H59620181009VQDXQUGJO-1,20.60,TENANCY SERVICE-ELECTRICITY-ENERGY COSTS,GROCERY STORES AND SUPERMARKETS,GPC
WALSALL COUNCIL,HTTP://OPENDATACOMMUNITIES.ORG/ID/METROPOLITAN-DISTRICT-COUNCIL/WALSALL,31/12/2018,RESOURCES & TRANSFORMATION,WWW.JUST-EAT.CO.UK,05/10/2018,H59620181009JBGRLNTIS-1,41.75,ADVICE & GUIDANCE SERVICE-SUBSISTENCE OFFICERS-EXPENSES,"EATING PLACES, RESTAURANTS",GPC
WALSALL COUNCIL,HTTP://OPENDATACOMMUNITIES.ORG/ID/METROPOLITAN-DISTRICT-COUNCIL/WALSALL,31/12/2018,ECONOMY & ENVIRONMENT,TOOLSTATION LTD,05/10/2018,H59620181009EGZFYFBVT-1,20.00,INFRASTRUCTURE MAINTENANCE-GENERAL MATERIALS,HARDWARE STORES,GPC
WALSALL COUNCIL,HTTP://OPENDATACOMMUNITIES.ORG/ID/METROPOLITAN-DISTRICT-COUNCIL/WALSALL,31/12/2018,ECONOMY & ENVIRONMENT,CITY ELECTRICAL FA,05/10/2018,H59620181009GTUVCQAMW-1,19.20,INFRASTRUCTURE MAINTENANCE-GENERAL MATERIALS,LUMBER & BUILDING MATERIALS STORES,GPC
WALSALL COUNCIL,HTTP://OPENDATACOMMUNITIES.ORG/ID/METROPOLITAN-DISTRICT-COUNCIL/WALSALL,31/12/2018,ECONOMY & ENVIRONMENT,MIDLANDNEWS.COM,05/10/2018,H59620181009RCOVVTOHG-1,140.40,DEVELOPMENT MANAGEMENT-PERIODICALS/MAGAZINES/NEWSPAPE,NEWS DEALERS AND NEWSSTANDS,GPC
WALSALL COUNCIL,HTTP://OPENDATACOMMUNITIES.ORG/ID/METROPOLITAN-DISTRICT-COUNCIL/WALSALL,31/12/2018,RESOURCES & TRANSFORMATION,ARTHUR BRETT CATER,05/10/2018,H59620181009YSFRPUWCI-1,100.29,CA BUSILL JONES PRIMARY SCHOOL-FRUIT & VEGETABLES OTHER-PROVI,MISCELLANEOUS FOOD STORES & CONVENIENCE STORES,GPC
WALSALL COUNCIL,HTTP://OPENDATACOMMUNITIES.ORG/ID/METROPOLITAN-DISTRICT-COUNCIL/WALSALL,31/12/2018,RESOURCES & TRANSFORMATION,ARTHUR BRETT CATER,05/10/2018,H59620181009VPBPTQNFL-1,18.14,CA CASTLEFORT JMI SCHOOL-FRUIT & VEGETABLES OTHER-PROVI,MISCELLANEOUS FOOD STORES & CONVENIENCE STORES,GPC
WALSALL COUNCIL,HTTP://OPENDATACOMMUNITIES.ORG/ID/METROPOLITAN-DISTRICT-COUNCIL/WALSALL,31/12/2018,RESOURCES & TRANSFORMATION,ARTHUR BRETT CATER,05/10/2018,H59620181009SAGJNQMGN-1,220.17,CA COOPER JORDAN CE PRIMARY SC-FRUIT & VEGETABLES OTHER-PROVI,MISCELLANEOUS FOOD STORES & CONVENIENCE STORES,GPC
WALSALL COUNCIL,HTTP://OPENDATACOMMUNITIES.ORG/ID/METROPOLITAN-DISTRICT-COUNCIL/WALSALL,31/12/2018,RESOURCES & TRANSFORMATION,NOBISCO LIMITED,05/10/2018,H59620181009TYBHWGFKF-1,11.70,CA BARCROFT D/C-DISPOSABLES-PROVISIONS,OTHER INDUSTRIAL SUPPLIES,GPC
WALSALL COUNCIL,HTTP://OPENDATACOMMUNITIES.ORG/ID/METROPOLITAN-DISTRICT-COUNCIL/WALSALL,31/12/2018,RESOURCES & TRANSFORMATION,ARTHUR BRETT CATER,05/10/2018,H59620181009SLKDWBVNC-1,92.11,CA LEIGHSWOOD PRIMARY SCHOOL-FRUIT & VEGETABLES OTHER-PROVI,MISCELLANEOUS FOOD STORES & CONVENIENCE STORES,GPC
WALSALL COUNCIL,HTTP://OPENDATACOMMUNITIES.ORG/ID/METROPOLITAN-DISTRICT-COUNCIL/WALSALL,31/12/2018,RESOURCES & TRANSFORMATION,ARTHUR BRETT CATER,05/10/2018,H59620181009TJPFXFBOH-1,68.62,CA RUSHALL JMI SCHOOL-FRUIT & VEGETABLES OTHER-PROVI,MISCELLANEOUS FOOD STORES & CONVENIENCE STORES,GPC
WALSALL COUNCIL,HTTP://OPENDATACOMMUNITIES.ORG/ID/METROPOLITAN-DISTRICT-COUNCIL/WALSALL,31/12/2018,RESOURCES & TRANSFORMATION,NOBISCO LIMITED,05/10/2018,H59620181009DFYAECJUR-1,16.44,CA WATLING STREET PRIMARY SCHO-FURNITURE & EQUIPMENT,OTHER INDUSTRIAL SUPPLIES,GPC
WALSALL COUNCIL,HTTP://OPENDATACOMMUNITIES.ORG/ID/METROPOLITAN-DISTRICT-COUNCIL/WALSALL,31/12/2018,ECONOMY & ENVIRONMENT,ASDA SUPERSTORE,05/10/2018,H59620181009MCWUIXIUF-1,25.10,WALSALL OUTDOOR ADVENTURE CENT-FOOD AND BEVERAGES-PROVISIONS,GROCERY STORES AND SUPERMARKETS,GPC
WALSALL COUNCIL,HTTP://OPENDATACOMMUNITIES.ORG/ID/METROPOLITAN-DISTRICT-COUNCIL/WALSALL,31/12/2018,ECONOMY & ENVIRONMENT,ASDA SUPERSTORE,05/10/2018,H59620181009MCWUIXIUF-3,5.00,WALSALL OUTDOOR ADVENTURE CENT-FOOD AND BEVERAGES-PROVISIONS,GROCERY STORES AND SUPERMARKETS,GPC
WALSALL COUNCIL,HTTP://OPENDATACOMMUNITIES.ORG/ID/METROPOLITAN-DISTRICT-COUNCIL/WALSALL,31/12/2018,ECONOMY & ENVIRONMENT,ASDA SUPERSTORE,05/10/2018,H59620181009MCWUIXIUF-2,0.27,WALSALL OUTDOOR ADVENTURE CENT-FOOD AND BEVERAGES-PROVISIONS,GROCERY STORES AND SUPERMARKETS,GPC
WALSALL COUNCIL,HTTP://OPENDATACOMMUNITIES.ORG/ID/METROPOLITAN-DISTRICT-COUNCIL/WALSALL,31/12/2018,ECONOMY & ENVIRONMENT,WWW.PALINTEST.COM,05/10/2018,H59620181009WAPSWVJXS-1,-166.50,DARLASTON LEISURE CENTRE-REPAIR OF EQUIPMENT-EQUIPMENT,COMPUTER SOFTWARE STORES,GPC
WALSALL COUNCIL,HTTP://OPENDATACOMMUNITIES.ORG/ID/METROPOLITAN-DISTRICT-COUNCIL/WALSALL,31/12/2018,ECONOMY & ENVIRONMENT,AMZN MKTP UK,05/10/2018,H59620181009UPVGBURRY-1,18.94,BLOXWICH LEISURE CENTRE-GENERAL MATERIALS,BOOK STORES,GPC
WALSALL COUNCIL,HTTP://OPENDATACOMMUNITIES.ORG/ID/METROPOLITAN-DISTRICT-COUNCIL/WALSALL,31/12/2018,ECONOMY & ENVIRONMENT,SADDLERY TRADE SVS,05/10/2018,H59620181009SJJVOFZVX-1,43.76,LEATHER MUSEUM-CLOTHING & LAUNDRY,"SPORTS APPAREL, RIDING APPAREL STORES",GPC
WALSALL COUNCIL,HTTP://OPENDATACOMMUNITIES.ORG/ID/METROPOLITAN-DISTRICT-COUNCIL/WALSALL,31/12/2018,ECONOMY & ENVIRONMENT,WWW.NISBETS.COM,05/10/2018,H59620181009GEYYKHYBV-1,63.59,NEW ART GALLERY - ADMIN-FURNITURE & EQUIPMENT,DIRECT MARKETING CATALOG MERCHANTS,GPC
WALSALL COUNCIL,HTTP://OPENDATACOMMUNITIES.ORG/ID/METROPOLITAN-DISTRICT-COUNCIL/WALSALL,31/12/2018,ECONOMY & ENVIRONMENT,WWW.NISBETS.COM,05/10/2018,H59620181009GEYYKHYBV-2,67.03,NEW ART GALLERY - ADMIN-NEW-FURNITURE & EQUIPMENT,DIRECT MARKETING CATALOG MERCHANTS,GPC
WALSALL COUNCIL,HTTP://OPENDATACOMMUNITIES.ORG/ID/METROPOLITAN-DISTRICT-COUNCIL/WALSALL,31/12/2018,ECONOMY & ENVIRONMENT,TRAINLINE,05/10/2018,H59620181009KRGUXLTNJ-1,5.44,NAG - ARTISTS RESIDENCIES-OFFICER/STAFF-PUBLIC TRANSPORT,PASSENGER RAILWAYS,GPC
WALSALL COUNCIL,HTTP://OPENDATACOMMUNITIES.ORG/ID/METROPOLITAN-DISTRICT-COUNCIL/WALSALL,31/12/2018,ADULT SOCIAL CARE,BANNER GROUP LTD,05/10/2018,H59620181009TRNILJXTV-1,33.04,WEST LOCALITY TEAM-STATIONERY & GENERAL SUPPLIES-,"OFFICE, SCHOOL SUPPLY, AND STATIONERY STORES",GPC
WALSALL COUNCIL,HTTP://OPENDATACOMMUNITIES.ORG/ID/METROPOLITAN-DISTRICT-COUNCIL/WALSALL,31/12/2018,RESOURCES & TRANSFORMATION,TRAINLINE,05/10/2018,H59620181009GZLPYQZWE-1,12.25,CORPORATE ASSURANCE-OFFICER/STAFF-PUBLIC TRANSPORT,PASSENGER RAILWAYS,GPC
WALSALL COUNCIL,HTTP://OPENDATACOMMUNITIES.ORG/ID/METROPOLITAN-DISTRICT-COUNCIL/WALSALL,31/12/2018,RESOURCES & TRANSFORMATION,TESCO STORES 6161,05/10/2018,H59620181009GXZREWASL-1,100.00,WALSALL CRISIS SUPPORT SCHEME-CRISIS SUPPORT PAYMENTS,GROCERY STORES AND SUPERMARKETS,GPC
WALSALL COUNCIL,HTTP://OPENDATACOMMUNITIES.ORG/ID/METROPOLITAN-DISTRICT-COUNCIL/WALSALL,31/12/2018,RESOURCES & TRANSFORMATION,WILKO RETAIL LIMIT,05/10/2018,H59620181009IBDLSPOFZ-1,30.40,WALSALL CRISIS SUPPORT SCHEME-CRISIS SUPPORT PAYMENTS,HOUSEHOLD APPLIANCE STORES,GPC
WALSALL COUNCIL,HTTP://OPENDATACOMMUNITIES.ORG/ID/METROPOLITAN-DISTRICT-COUNCIL/WALSALL,31/12/2018,RESOURCES & TRANSFORMATION,AMZN MKTP UK,05/10/2018,H59620181009RDPBCGQCD-1,44.94,FINANCE-LIBRARY BOOKS,BOOK STORES,GPC
WALSALL COUNCIL,HTTP://OPENDATACOMMUNITIES.ORG/ID/METROPOLITAN-DISTRICT-COUNCIL/WALSALL,31/12/2018,CHILDRENS SERVICES-SCHOOLS,THE POST OFFICE,06/10/2018,H59620181009WRUKCPUNJ-1,1.01,ADMIN-POSTAGES AND COURIER SERVICES,POSTAL SERVICES - GOVERNMENT ONLY,GPC
WALSALL COUNCIL,HTTP://OPENDATACOMMUNITIES.ORG/ID/METROPOLITAN-DISTRICT-COUNCIL/WALSALL,31/12/2018,CHILDRENS SERVICES-SCHOOLS,AMZN MKTP UK*MT1ES2OE4,06/10/2018,H59620181009CTSOGFDTX-1,9.51,EARLY YEARS DEPARTMENT-GENERAL MATERIALS,BOOK STORES,GPC
WALSALL COUNCIL,HTTP://OPENDATACOMMUNITIES.ORG/ID/METROPOLITAN-DISTRICT-COUNCIL/WALSALL,31/12/2018,CHILDRENS SERVICES-SCHOOLS,AMZN MKTP UK*MT4E01O44,06/10/2018,H59620181009GNJQGMRXV-1,5.49,EARLY YEARS DEPARTMENT-GENERAL MATERIALS,BOOK STORES,GPC
WALSALL COUNCIL,HTTP://OPENDATACOMMUNITIES.ORG/ID/METROPOLITAN-DISTRICT-COUNCIL/WALSALL,31/12/2018,CHILDRENS SERVICES-SCHOOLS,ADOBE SEND-FOR-SIGN,06/10/2018,H59620181009OMSRHNPOP-1,-125.02,ADMINISTRATIVE SUPPLIES-GENERAL EXPENSES-OFFICE EXP,COMPUTER SOFTWARE STORES,GPC
WALSALL COUNCIL,HTTP://OPENDATACOMMUNITIES.ORG/ID/METROPOLITAN-DISTRICT-COUNCIL/WALSALL,31/12/2018,CHILDRENS SERVICES,ASDA STORES,06/10/2018,H59620181009QRHJQBXOO-1,50.00,CONTACT SESSIONAL STAFF-FOOD AND BEVERAGES-PROVISIONS,GROCERY STORES AND SUPERMARKETS,GPC
WALSALL COUNCIL,HTTP://OPENDATACOMMUNITIES.ORG/ID/METROPOLITAN-DISTRICT-COUNCIL/WALSALL,31/12/2018,CHILDRENS SERVICES,TRAVEL WEST MIDLAN,06/10/2018,H59620181009DSRNIMNEY-1,11.00,57 LICHFIELD ROAD-RESIDENTS PERSONAL EXPENSES-AL,BUS LINES,GPC
WALSALL COUNCIL,HTTP://OPENDATACOMMUNITIES.ORG/ID/METROPOLITAN-DISTRICT-COUNCIL/WALSALL,31/12/2018,CHILDRENS SERVICES,WM MORRISONS STORE,06/10/2018,H59620181009SWOEUJSYP-1,1.00,57 LICHFIELD ROAD-EQUIP NEW-CLEANING,GROCERY STORES AND SUPERMARKETS,GPC
WALSALL COUNCIL,HTTP://OPENDATACOMMUNITIES.ORG/ID/METROPOLITAN-DISTRICT-COUNCIL/WALSALL,31/12/2018,CHILDRENS SERVICES,WM MORRISONS STORE,06/10/2018,H59620181009SWOEUJSYP-2,7.92,57 LICHFIELD ROAD-FOOD AND BEVERAGES-PROVISIONS,GROCERY STORES AND SUPERMARKETS,GPC
WALSALL COUNCIL,HTTP://OPENDATACOMMUNITIES.ORG/ID/METROPOLITAN-DISTRICT-COUNCIL/WALSALL,31/12/2018,CHILDRENS SERVICES,TRAVEL WEST MIDLAN,06/10/2018,H59620181009LQFDITFGR-1,35.50,REDRUTH ROAD-RESIDENTS PERSONAL EXPENSES-AL,BUS LINES,GPC
WALSALL COUNCIL,HTTP://OPENDATACOMMUNITIES.ORG/ID/METROPOLITAN-DISTRICT-COUNCIL/WALSALL,31/12/2018,CHILDRENS SERVICES,GAME RETAIL,06/10/2018,H59620181009WYYFFFVWI-1,39.99,REDRUTH ROAD-RESIDENTS PERSONAL EXPENSES-AL,"GAME, TOY, AND HOBBY SHOPS",GPC
WALSALL COUNCIL,HTTP://OPENDATACOMMUNITIES.ORG/ID/METROPOLITAN-DISTRICT-COUNCIL/WALSALL,31/12/2018,CHILDRENS SERVICES,ALDI 95 772,06/10/2018,H59620181009YSEBXZPNK-1,14.86,REDRUTH ROAD-FOOD AND BEVERAGES-PROVISIONS,GROCERY STORES AND SUPERMARKETS,GPC
WALSALL COUNCIL,HTTP://OPENDATACOMMUNITIES.ORG/ID/METROPOLITAN-DISTRICT-COUNCIL/WALSALL,31/12/2018,ADULT SOCIAL CARE,GEODESA GEOSIM,06/10/2018,H59620181009TNKXXNYKS-1,12.00,SOUTH LOCALITY TEAM-COSTS (NOT INTERNAL RECHARGES),TELECOMMUNICATION SERVICES,GPC
WALSALL COUNCIL,HTTP://OPENDATACOMMUNITIES.ORG/ID/METROPOLITAN-DISTRICT-COUNCIL/WALSALL,31/12/2018,RESOURCES & TRANSFORMATION,AMZN MKTP UK,06/10/2018,H59620181009TRGOCMTTQ-1,4.94,RECHARGEABLE EQUIPMENT-COMPUTER-OTHER EXPENSES,BOOK STORES,GPC
WALSALL COUNCIL,HTTP://OPENDATACOMMUNITIES.ORG/ID/METROPOLITAN-DISTRICT-COUNCIL/WALSALL,31/12/2018,CHILDRENS SERVICES-SCHOOLS,THE RANGE,07/10/2018,H59620181009FQTJROOPQ-1,88.09,EARLY YEARS DEPARTMENT-GENERAL MATERIALS,DEPARTMENT STORES,GPC
WALSALL COUNCIL,HTTP://OPENDATACOMMUNITIES.ORG/ID/METROPOLITAN-DISTRICT-COUNCIL/WALSALL,31/12/2018,CHILDRENS SERVICES-SCHOOLS,AMAZON.CO.UK AMAZON.CO.UK,07/10/2018,H59620181010OKJKZVVKV-1,9.98,E19-GENERAL MATERIALS,MISCELLANEOUS AND SPECIALTY RETAIL STORES,GPC
WALSALL COUNCIL,HTTP://OPENDATACOMMUNITIES.ORG/ID/METROPOLITAN-DISTRICT-COUNCIL/WALSALL,31/12/2018,CHILDRENS SERVICES-SCHOOLS,AMAZON.CO.UK AMAZON.CO.UK,07/10/2018,H59620181010CPEEVCBZT-1,35.31,ADMINISTRATIVE SUPPLIES-NEW-FURNITURE & EQUIPMENT,MISCELLANEOUS AND SPECIALTY RETAIL STORES,GPC
WALSALL COUNCIL,HTTP://OPENDATACOMMUNITIES.ORG/ID/METROPOLITAN-DISTRICT-COUNCIL/WALSALL,31/12/2018,CHILDRENS SERVICES,AMZN MKTP UK,07/10/2018,H59620181009HGOSNKVNU-1,10.58,LOCALITY FAMILY SUPPORT-WEST-FOOD AND BEVERAGES-PROVISIONS,BOOK STORES,GPC
WALSALL COUNCIL,HTTP://OPENDATACOMMUNITIES.ORG/ID/METROPOLITAN-DISTRICT-COUNCIL/WALSALL,31/12/2018,CHILDRENS SERVICES,ALDI 1 772,07/10/2018,H59620181009GIRVWOSSP-1,31.07,SPINDLETREE-FOOD AND BEVERAGES-PROVISIONS,GROCERY STORES AND SUPERMARKETS,GPC
WALSALL COUNCIL,HTTP://OPENDATACOMMUNITIES.ORG/ID/METROPOLITAN-DISTRICT-COUNCIL/WALSALL,31/12/2018,CHILDRENS SERVICES,ALDI 1 772,07/10/2018,H59620181009GIRVWOSSP-2,7.46,SPINDLETREE-FOOD AND BEVERAGES-PROVISIONS,GROCERY STORES AND SUPERMARKETS,GPC
WALSALL COUNCIL,HTTP://OPENDATACOMMUNITIES.ORG/ID/METROPOLITAN-DISTRICT-COUNCIL/WALSALL,31/12/2018,CHILDRENS SERVICES,B&M RETAIL,07/10/2018,H59620181009QBPYQADUH-1,14.90,REDRUTH ROAD-EQUIP NEW-CLEANING,DISCOUNT STORES,GPC
WALSALL COUNCIL,HTTP://OPENDATACOMMUNITIES.ORG/ID/METROPOLITAN-DISTRICT-COUNCIL/WALSALL,31/12/2018,ECONOMY & ENVIRONMENT,AMAZON.CO.UK,07/10/2018,H59620181009XEYDVLHLR-1,14.56,COMMUNITY LIASON-STATIONERY & GENERAL SUPPLIES-,OTHER DIRECT MARKETING-OTHER DIRECT MARKETERS,GPC
WALSALL COUNCIL,HTTP://OPENDATACOMMUNITIES.ORG/ID/METROPOLITAN-DISTRICT-COUNCIL/WALSALL,31/12/2018,ECONOMY & ENVIRONMENT,WWW.STA.CO.UK,07/10/2018,H59620181009IGFPFDGWM-1,47.00,DARLASTON LEISURE CENTRE-FEES & LICENCES-SERVICES,OTHER RECREATION SERVICES,GPC
WALSALL COUNCIL,HTTP://OPENDATACOMMUNITIES.ORG/ID/METROPOLITAN-DISTRICT-COUNCIL/WALSALL,31/12/2018,ECONOMY & ENVIRONMENT,WWW.STA.CO.UK,07/10/2018,H59620181009FCGAABNHG-1,47.00,BLOXWICH LEISURE CENTRE-FEES & LICENCES-SERVICES,OTHER RECREATION SERVICES,GPC
WALSALL COUNCIL,HTTP://OPENDATACOMMUNITIES.ORG/ID/METROPOLITAN-DISTRICT-COUNCIL/WALSALL,31/12/2018,ECONOMY & ENVIRONMENT,WWW.STA.CO.UK,07/10/2018,H59620181009XIGYFKQGU-1,47.00,WALSALL GALA CENTRE-FEES & LICENCES-SERVICES,OTHER RECREATION SERVICES,GPC
WALSALL COUNCIL,HTTP://OPENDATACOMMUNITIES.ORG/ID/METROPOLITAN-DISTRICT-COUNCIL/WALSALL,31/12/2018,ECONOMY & ENVIRONMENT,TAYLORS NEWS - 16046,07/10/2018,H59620181009ZRPQBEBXR-1,19.25,STREETLY LIBRARY-NEWSPAPERS/PERIODICALS/MAGAZIN,GROCERY STORES AND SUPERMARKETS,GPC
WALSALL COUNCIL,HTTP://OPENDATACOMMUNITIES.ORG/ID/METROPOLITAN-DISTRICT-COUNCIL/WALSALL,31/12/2018,ADULT SOCIAL CARE,AMAZON.CO.UK AMAZON.CO.UK,07/10/2018,H59620181010DEXDPEFRH-1,59.38,WEST LOCALITY TEAM-STATIONERY & GENERAL SUPPLIES-,MISCELLANEOUS AND SPECIALTY RETAIL STORES,GPC
WALSALL COUNCIL,HTTP://OPENDATACOMMUNITIES.ORG/ID/METROPOLITAN-DISTRICT-COUNCIL/WALSALL,31/12/2018,RESOURCES & TRANSFORMATION,AMZN MKTP UK,07/10/2018,H59620181009FLRABTTOO-1,15.48,BUSINESS DEVELOPMENT-FURNITURE & EQUIPMENT,BOOK STORES,GPC
WALSALL COUNCIL,HTTP://OPENDATACOMMUNITIES.ORG/ID/METROPOLITAN-DISTRICT-COUNCIL/WALSALL,31/12/2018,CHILDRENS SERVICES-SCHOOLS,WWW.ICO.GOV.UK,08/10/2018,H59620181010MOEIBCYLJ-1,60.00,ADMINISTRATIVE SUPPLIES-PUBLICATIONS/ORGANISATIONS-SUB,GOVERNMENT SERVICES,GPC
WALSALL COUNCIL,HTTP://OPENDATACOMMUNITIES.ORG/ID/METROPOLITAN-DISTRICT-COUNCIL/WALSALL,31/12/2018,CHILDRENS SERVICES-SCHOOLS,POST OFFICE COUNTER,08/10/2018,H59620181010SSHDUHPWA-1,40.50,ADMINISTRATIVE SUPPLIES-POSTAGES AND COURIER SERVICES,POSTAL SERVICES - GOVERNMENT ONLY,GPC
WALSALL COUNCIL,HTTP://OPENDATACOMMUNITIES.ORG/ID/METROPOLITAN-DISTRICT-COUNCIL/WALSALL,31/12/2018,CHILDRENS SERVICES-SCHOOLS,O2,08/10/2018,H59620181010SDSUCZMTI-1,21.72,ADMIN-TELEPHONES MOBILE/PAGERS-TELEP,TELECOMMUNICATION SERVICES,GPC
WALSALL COUNCIL,HTTP://OPENDATACOMMUNITIES.ORG/ID/METROPOLITAN-DISTRICT-COUNCIL/WALSALL,31/12/2018,CHILDRENS SERVICES-SCHOOLS,MEDISUPPLIES LTD,08/10/2018,H59620181010YVFCKGSBF-1,78.36,ADMIN-MEDICAL REQUISITES-MATERIALS,MISCELLANEOUS AND SPECIALTY RETAIL STORES,GPC
WALSALL COUNCIL,HTTP://OPENDATACOMMUNITIES.ORG/ID/METROPOLITAN-DISTRICT-COUNCIL/WALSALL,31/12/2018,CHILDRENS SERVICES-SCHOOLS,ASDA GROCERIES ONLINE,08/10/2018,H59620181010CGHVXYITU-1,10.24,PELSALL VILLAGE SCHOOL-FOOD AND BEVERAGES-PROVISIONS,GROCERY STORES AND SUPERMARKETS,GPC
WALSALL COUNCIL,HTTP://OPENDATACOMMUNITIES.ORG/ID/METROPOLITAN-DISTRICT-COUNCIL/WALSALL,31/12/2018,CHILDRENS SERVICES-SCHOOLS,ASDA GROCERIES ONLINE,08/10/2018,H59620181010CGHVXYITU-2,50.12,PELSALL VILLAGE SCHOOL-FOOD AND BEVERAGES-PROVISIONS,GROCERY STORES AND SUPERMARKETS,GPC
WALSALL COUNCIL,HTTP://OPENDATACOMMUNITIES.ORG/ID/METROPOLITAN-DISTRICT-COUNCIL/WALSALL,31/12/2018,CHILDRENS SERVICES-SCHOOLS,ASDA GROCERIES ONLINE,08/10/2018,H59620181010PERWEFKEQ-1,-0.50,PELSALL VILLAGE SCHOOL-FOOD AND BEVERAGES-PROVISIONS,GROCERY STORES AND SUPERMARKETS,GPC
WALSALL COUNCIL,HTTP://OPENDATACOMMUNITIES.ORG/ID/METROPOLITAN-DISTRICT-COUNCIL/WALSALL,31/12/2018,CHILDRENS SERVICES-SCHOOLS,AMAZON.CO.UK*MT1VK2FE4,08/10/2018,H59620181010UCCFKNQXM-1,18.99,ENGLISH DEPARTMENT-GENERAL MATERIALS,OTHER DIRECT MARKETING-OTHER DIRECT MARKETERS,GPC
WALSALL COUNCIL,HTTP://OPENDATACOMMUNITIES.ORG/ID/METROPOLITAN-DISTRICT-COUNCIL/WALSALL,31/12/2018,CHILDRENS SERVICES-SCHOOLS,AMZN MKTP UK*MT2229F64,08/10/2018,H59620181010ONNVOEQEB-1,18.75,EARLY YEARS DEPARTMENT-GENERAL MATERIALS,BOOK STORES,GPC
WALSALL COUNCIL,HTTP://OPENDATACOMMUNITIES.ORG/ID/METROPOLITAN-DISTRICT-COUNCIL/WALSALL,31/12/2018,CHILDRENS SERVICES-SCHOOLS,PRINTED 4 YOU,08/10/2018,H59620181010ILEJLDFBP-1,533.40,HEAD TEACHERS CONTINGENCY-GENERAL MATERIALS,"OFFICE, SCHOOL SUPPLY, AND STATIONERY STORES",GPC
WALSALL COUNCIL,HTTP://OPENDATACOMMUNITIES.ORG/ID/METROPOLITAN-DISTRICT-COUNCIL/WALSALL,31/12/2018,CHILDRENS SERVICES-SCHOOLS,AMAZON.CO.UK AMAZON.CO.UK,08/10/2018,H59620181011XMAANGXNL-1,4.99,E19-GENERAL MATERIALS,MISCELLANEOUS AND SPECIALTY RETAIL STORES,GPC
WALSALL COUNCIL,HTTP://OPENDATACOMMUNITIES.ORG/ID/METROPOLITAN-DISTRICT-COUNCIL/WALSALL,31/12/2018,CHILDRENS SERVICES-SCHOOLS,PLANBEE,08/10/2018,H59620181010FHBWKTQRT-1,99.99,E19-LIBRARY BOOKS,BOOK STORES,GPC
WALSALL COUNCIL,HTTP://OPENDATACOMMUNITIES.ORG/ID/METROPOLITAN-DISTRICT-COUNCIL/WALSALL,31/12/2018,CHILDRENS SERVICES-SCHOOLS,WICKEY GMBHWICKEY.DE,08/10/2018,H59620181010HBQMXRNLW-1,319.95,E19-FURNITURE & EQUIPMENT,CHILDRENS AND INFANTS WEAR STORES,GPC
WALSALL COUNCIL,HTTP://OPENDATACOMMUNITIES.ORG/ID/METROPOLITAN-DISTRICT-COUNCIL/WALSALL,31/12/2018,CHILDRENS SERVICES-SCHOOLS,WALSALL COUNCIL,08/10/2018,H59620181010IGKNJWJMI-1,46.34,ST FRANCIS OF ASSISI CATHOLIC -MISC FEES AND EXPENSES,GOVERNMENT SERVICES,GPC
WALSALL COUNCIL,HTTP://OPENDATACOMMUNITIES.ORG/ID/METROPOLITAN-DISTRICT-COUNCIL/WALSALL,31/12/2018,CHILDRENS SERVICES-SCHOOLS,EB *SHARING OUR KNOWLE,08/10/2018,H59620181010RJXCISZOL-1,75.00,ST FRANCIS OF ASSISI CATHOLIC -EXTERNAL TRAINING,OTHER BUSINESS SERVICES,GPC
WALSALL COUNCIL,HTTP://OPENDATACOMMUNITIES.ORG/ID/METROPOLITAN-DISTRICT-COUNCIL/WALSALL,31/12/2018,CHILDRENS SERVICES-SCHOOLS,AMZN MKTP UK,08/10/2018,H59620181010JBUCSBJDP-1,32.84,ELMWOOD SCHOOL-BREAD-GENERAL-PROVISIONS,BOOK STORES,GPC
WALSALL COUNCIL,HTTP://OPENDATACOMMUNITIES.ORG/ID/METROPOLITAN-DISTRICT-COUNCIL/WALSALL,31/12/2018,CHILDRENS SERVICES-SCHOOLS,AMAZON.CO.UK,08/10/2018,H59620181010KTHWKXMRH-1,13.65,ELMWOOD SCHOOL-OTHER-OP MTCE,OTHER DIRECT MARKETING-OTHER DIRECT MARKETERS,GPC
WALSALL COUNCIL,HTTP://OPENDATACOMMUNITIES.ORG/ID/METROPOLITAN-DISTRICT-COUNCIL/WALSALL,31/12/2018,CHILDRENS SERVICES-SCHOOLS,AMZN MKTP UK,08/10/2018,H59620181010RQDXYVUUF-1,9.16,ELMWOOD SCHOOL-OTHER-OP MTCE,BOOK STORES,GPC
WALSALL COUNCIL,HTTP://OPENDATACOMMUNITIES.ORG/ID/METROPOLITAN-DISTRICT-COUNCIL/WALSALL,31/12/2018,CHILDRENS SERVICES-SCHOOLS,AMZN MKTP UK,08/10/2018,H59620181010QYLRUPKHM-1,21.24,ENGLISH (LITERACY)-GENERAL MATERIALS,BOOK STORES,GPC
WALSALL COUNCIL,HTTP://OPENDATACOMMUNITIES.ORG/ID/METROPOLITAN-DISTRICT-COUNCIL/WALSALL,31/12/2018,CHILDRENS SERVICES-SCHOOLS,PRINTED 4 YOU,08/10/2018,H59620181010NTJPXTEQQ-1,324.60,TEACHING SCHOOL-GENERAL MATERIALS,"OFFICE, SCHOOL SUPPLY, AND STATIONERY STORES",GPC
WALSALL COUNCIL,HTTP://OPENDATACOMMUNITIES.ORG/ID/METROPOLITAN-DISTRICT-COUNCIL/WALSALL,31/12/2018,CHILDRENS SERVICES,AMZN MKTP UK,08/10/2018,H59620181010TOQLMHJYK-1,2.98,LOCALITY FAMILY SUPPORT-WEST-BOOK OF INSCRIPTION-MATERIALS,BOOK STORES,GPC
WALSALL COUNCIL,HTTP://OPENDATACOMMUNITIES.ORG/ID/METROPOLITAN-DISTRICT-COUNCIL/WALSALL,31/12/2018,CHILDRENS SERVICES,ASDA STORES,08/10/2018,H59620181010XUEUSKTPQ-1,7.16,LOCALITY FAMILY SUPPORT-WEST-FOOD AND BEVERAGES-PROVISIONS,GROCERY STORES AND SUPERMARKETS,GPC
WALSALL COUNCIL,HTTP://OPENDATACOMMUNITIES.ORG/ID/METROPOLITAN-DISTRICT-COUNCIL/WALSALL,31/12/2018,CHILDRENS SERVICES,WM MORRISON FOOD.COM,08/10/2018,H59620181010DMDQRUNRH-1,23.04,BIRCHILLS CHILDCARE SERVICES-FOOD AND BEVERAGES-PROVISIONS,GROCERY STORES AND SUPERMARKETS,GPC
WALSALL COUNCIL,HTTP://OPENDATACOMMUNITIES.ORG/ID/METROPOLITAN-DISTRICT-COUNCIL/WALSALL,31/12/2018,CHILDRENS SERVICES,WM MORRISON FOOD.COM,08/10/2018,H59620181010DMDQRUNRH-2,133.63,BIRCHILLS CHILDCARE SERVICES-FOOD AND BEVERAGES-PROVISIONS,GROCERY STORES AND SUPERMARKETS,GPC
WALSALL COUNCIL,HTTP://OPENDATACOMMUNITIES.ORG/ID/METROPOLITAN-DISTRICT-COUNCIL/WALSALL,31/12/2018,CHILDRENS SERVICES,BANNER GROUP LTD,08/10/2018,H59620181010JBSNWPPFD-1,105.93,BIRCHILLS CHILDCARE SERVICES-MISCELLANEOUS SUPPLIES,"OFFICE, SCHOOL SUPPLY, AND STATIONERY STORES",GPC
WALSALL COUNCIL,HTTP://OPENDATACOMMUNITIES.ORG/ID/METROPOLITAN-DISTRICT-COUNCIL/WALSALL,31/12/2018,CHILDRENS SERVICES,OFFICE FOR NAT STATS,08/10/2018,H59620181010ECISOZGSY-1,24.00,ADMISSIONS & PUPIL PLACE PLANN-MISC FEES AND EXPENSES,GOVERNMENT SERVICES,GPC
WALSALL COUNCIL,HTTP://OPENDATACOMMUNITIES.ORG/ID/METROPOLITAN-DISTRICT-COUNCIL/WALSALL,31/12/2018,CHILDRENS SERVICES,REGISTRATION SERVICES,08/10/2018,H59620181010CTMCAHGQW-1,20.00,SAFEGUARDING & FAMILY SUPPORT-MISC FEES AND EXPENSES,OTHER RECREATION SERVICES,GPC
WALSALL COUNCIL,HTTP://OPENDATACOMMUNITIES.ORG/ID/METROPOLITAN-DISTRICT-COUNCIL/WALSALL,31/12/2018,CHILDRENS SERVICES,BANNER GROUP LTD,08/10/2018,H59620181010KGCDHYALV-1,222.28,SAFEGUARDING & FAMILY SUPPORT-STATIONERY & GENERAL SUPPLIES-,"OFFICE, SCHOOL SUPPLY, AND STATIONERY STORES",GPC
WALSALL COUNCIL,HTTP://OPENDATACOMMUNITIES.ORG/ID/METROPOLITAN-DISTRICT-COUNCIL/WALSALL,31/12/2018,CHILDRENS SERVICES,TRAINLINE,08/10/2018,H59620181010KGDIHFTTN-1,132.20,SAFEGUARDING & FAMILY SUPPORT-OFFICER/STAFF-PUBLIC TRANSPORT,PASSENGER RAILWAYS,GPC
WALSALL COUNCIL,HTTP://OPENDATACOMMUNITIES.ORG/ID/METROPOLITAN-DISTRICT-COUNCIL/WALSALL,31/12/2018,CHILDRENS SERVICES,WEST MID TRAVEL,08/10/2018,H59620181010LGMMVXKIP-1,100.00,SAFEGUARDING & FAMILY SUPPORT-OFFICER/STAFF-PUBLIC TRANSPORT,BUS LINES,GPC
WALSALL COUNCIL,HTTP://OPENDATACOMMUNITIES.ORG/ID/METROPOLITAN-DISTRICT-COUNCIL/WALSALL,31/12/2018,CHILDRENS SERVICES,WEST MID TRAVEL,08/10/2018,H59620181010LGMMVXKIP-2,6.25,SAFEGUARDING & FAMILY SUPPORT-OFFICER/STAFF-PUBLIC TRANSPORT,BUS LINES,GPC
WALSALL COUNCIL,HTTP://OPENDATACOMMUNITIES.ORG/ID/METROPOLITAN-DISTRICT-COUNCIL/WALSALL,31/12/2018,CHILDRENS SERVICES,PREMIER INN 44536760,08/10/2018,H59620181011QVBSUIGOM-1,61.00,SAFEGUARDING & FAMILY SUPPORT-HOTEL ACCOMMODATION-EMPLOYEES,"EATING PLACES, RESTAURANTS",GPC
WALSALL COUNCIL,HTTP://OPENDATACOMMUNITIES.ORG/ID/METROPOLITAN-DISTRICT-COUNCIL/WALSALL,31/12/2018,CHILDRENS SERVICES,COMBINED COURT,08/10/2018,H59620181010IUXTVJLLP-1,170.00,ADOPTION TEAM-MISC FEES AND EXPENSES,FINES,GPC
WALSALL COUNCIL,HTTP://OPENDATACOMMUNITIES.ORG/ID/METROPOLITAN-DISTRICT-COUNCIL/WALSALL,31/12/2018,CHILDRENS SERVICES,TRAINLINE,08/10/2018,H59620181010SOIQDMKVL-1,185.00,FAMILY PLACEMENTS-OFFICER/STAFF-PUBLIC TRANSPORT,PASSENGER RAILWAYS,GPC
WALSALL COUNCIL,HTTP://OPENDATACOMMUNITIES.ORG/ID/METROPOLITAN-DISTRICT-COUNCIL/WALSALL,31/12/2018,CHILDRENS SERVICES,STAFFORDSHIRE COUNTY C,08/10/2018,H59620181010DZYYPXETR-1,12.00,LOOKED AFTER CHILDRENS SOCIAL -MISC FEES AND EXPENSES,GOVERNMENT SERVICES,GPC
WALSALL COUNCIL,HTTP://OPENDATACOMMUNITIES.ORG/ID/METROPOLITAN-DISTRICT-COUNCIL/WALSALL,31/12/2018,CHILDRENS SERVICES,GRO HM PASSPORT OFFICE,08/10/2018,H59620181010UPLMZNIJO-1,9.25,LOOKED AFTER CHILDRENS SOCIAL -MISC FEES AND EXPENSES,GOVERNMENT SERVICES,GPC
WALSALL COUNCIL,HTTP://OPENDATACOMMUNITIES.ORG/ID/METROPOLITAN-DISTRICT-COUNCIL/WALSALL,31/12/2018,CHILDRENS SERVICES,W M MORRISONS.COM,08/10/2018,H59620181010GTCDQAQXR-1,30.48,57 LICHFIELD ROAD-FOOD AND BEVERAGES-PROVISIONS,GROCERY STORES AND SUPERMARKETS,GPC
WALSALL COUNCIL,HTTP://OPENDATACOMMUNITIES.ORG/ID/METROPOLITAN-DISTRICT-COUNCIL/WALSALL,31/12/2018,CHILDRENS SERVICES,W M MORRISONS.COM,08/10/2018,H59620181010GTCDQAQXR-2,133.75,57 LICHFIELD ROAD-FOOD AND BEVERAGES-PROVISIONS,GROCERY STORES AND SUPERMARKETS,GPC
WALSALL COUNCIL,HTTP://OPENDATACOMMUNITIES.ORG/ID/METROPOLITAN-DISTRICT-COUNCIL/WALSALL,31/12/2018,CHILDRENS SERVICES,"CENTER PARCS, INHOUSE",08/10/2018,H59620181010HJCRRNEXV-1,549.00,57 LICHFIELD ROAD-RESIDENTS PERSONAL EXPENSES-AL,"HOTELS, MOTELS, RESORTS",GPC
WALSALL COUNCIL,HTTP://OPENDATACOMMUNITIES.ORG/ID/METROPOLITAN-DISTRICT-COUNCIL/WALSALL,31/12/2018,CHILDRENS SERVICES,COMFORT BEDS AND F,08/10/2018,H59620181010LBDUFXTOM-1,225.00,57 LICHFIELD ROAD-RESIDENTS PERSONAL EXPENSES-AL,"EQUIPMENT, FURNITURE, AND HOME FURNISHINGS STORES ",GPC
WALSALL COUNCIL,HTTP://OPENDATACOMMUNITIES.ORG/ID/METROPOLITAN-DISTRICT-COUNCIL/WALSALL,31/12/2018,CHILDRENS SERVICES,"CENTER PARCS, INHOUSE",08/10/2018,H59620181010PSMXCKNCI-1,25.00,57 LICHFIELD ROAD-RESIDENTS PERSONAL EXPENSES-AL,"HOTELS, MOTELS, RESORTS",GPC
WALSALL COUNCIL,HTTP://OPENDATACOMMUNITIES.ORG/ID/METROPOLITAN-DISTRICT-COUNCIL/WALSALL,31/12/2018,CHILDRENS SERVICES,BANNER GROUP LTD,08/10/2018,H59620181010DQRIMSOPB-1,39.36,SPINDLETREE-STATIONERY & GENERAL SUPPLIES-,"OFFICE, SCHOOL SUPPLY, AND STATIONERY STORES",GPC
WALSALL COUNCIL,HTTP://OPENDATACOMMUNITIES.ORG/ID/METROPOLITAN-DISTRICT-COUNCIL/WALSALL,31/12/2018,CHILDRENS SERVICES,W M MORRISONS.COM,08/10/2018,H59620181010FHFMIDXCK-1,16.20,REDRUTH ROAD-FOOD AND BEVERAGES-PROVISIONS,GROCERY STORES AND SUPERMARKETS,GPC
WALSALL COUNCIL,HTTP://OPENDATACOMMUNITIES.ORG/ID/METROPOLITAN-DISTRICT-COUNCIL/WALSALL,31/12/2018,CHILDRENS SERVICES,W M MORRISONS.COM,08/10/2018,H59620181010FHFMIDXCK-2,129.16,REDRUTH ROAD-FOOD AND BEVERAGES-PROVISIONS,GROCERY STORES AND SUPERMARKETS,GPC
WALSALL COUNCIL,HTTP://OPENDATACOMMUNITIES.ORG/ID/METROPOLITAN-DISTRICT-COUNCIL/WALSALL,31/12/2018,CHILDRENS SERVICES,AMZN MKTP UK,08/10/2018,H59620181010WVUFVXJQD-1,9.04,REDRUTH ROAD-RESIDENTS PERSONAL EXPENSES-AL,BOOK STORES,GPC
WALSALL COUNCIL,HTTP://OPENDATACOMMUNITIES.ORG/ID/METROPOLITAN-DISTRICT-COUNCIL/WALSALL,31/12/2018,ECONOMY & ENVIRONMENT,BANNER GROUP LTD,08/10/2018,H59620181010DWZJJYXLO-1,2.82,CENTRALISED STATIONARY-STATIONERY & GENERAL SUPPLIES-,"OFFICE, SCHOOL SUPPLY, AND STATIONERY STORES",GPC
WALSALL COUNCIL,HTTP://OPENDATACOMMUNITIES.ORG/ID/METROPOLITAN-DISTRICT-COUNCIL/WALSALL,31/12/2018,ECONOMY & ENVIRONMENT,REEDMIDEM.COM,08/10/2018,H59620181010ABFRSZEPG-1,717.60,DEVELOPMENT TEAM-EXTERNAL TRAINING,"CONSULTING, MANAGEMENT, AND PR SERVICES",GPC
WALSALL COUNCIL,HTTP://OPENDATACOMMUNITIES.ORG/ID/METROPOLITAN-DISTRICT-COUNCIL/WALSALL,31/12/2018,ECONOMY & ENVIRONMENT,L & S ENGINEERS LTD,08/10/2018,H59620181010LKGCXBHHZ-1,11.38,INFRASTRUCTURE MAINTENANCE-GENERAL MATERIALS,HARDWARE STORES,GPC
WALSALL COUNCIL,HTTP://OPENDATACOMMUNITIES.ORG/ID/METROPOLITAN-DISTRICT-COUNCIL/WALSALL,31/12/2018,ECONOMY & ENVIRONMENT,BOC GASES,08/10/2018,H59620181011YSFVMQBAO-1,27.60,INFRASTRUCTURE MAINTENANCE-CLOTHING & LAUNDRY,HOUSEHOLD APPLIANCE STORES,GPC
WALSALL COUNCIL,HTTP://OPENDATACOMMUNITIES.ORG/ID/METROPOLITAN-DISTRICT-COUNCIL/WALSALL,31/12/2018,RESOURCES & TRANSFORMATION,BLAKEMORE FOODSERVICE,08/10/2018,H59620181010RQSVKHXJB-1,237.74,CA KINGSHILL SCHOOL-FROZEN FOODS-PROVISIONS,CATERERS,GPC
WALSALL COUNCIL,HTTP://OPENDATACOMMUNITIES.ORG/ID/METROPOLITAN-DISTRICT-COUNCIL/WALSALL,31/12/2018,RESOURCES & TRANSFORMATION,BLAKEMORE FOODSERVICE,08/10/2018,H59620181010JSBPYQXBD-1,153.17,CA JANE LANE SPECIAL SCHOOL-FROZEN FOODS-PROVISIONS,CATERERS,GPC
WALSALL COUNCIL,HTTP://OPENDATACOMMUNITIES.ORG/ID/METROPOLITAN-DISTRICT-COUNCIL/WALSALL,31/12/2018,RESOURCES & TRANSFORMATION,BLAKEMORE FOODSERVICE,08/10/2018,H59620181010JSBPYQXBD-2,8.33,CA JANE LANE SPECIAL SCHOOL-FROZEN FOODS-PROVISIONS,CATERERS,GPC
WALSALL COUNCIL,HTTP://OPENDATACOMMUNITIES.ORG/ID/METROPOLITAN-DISTRICT-COUNCIL/WALSALL,31/12/2018,RESOURCES & TRANSFORMATION,BLAKEMORE FOODSERVICE,08/10/2018,H59620181010RQINFFSPL-1,6.52,CA JANE LANE SPECIAL SCHOOL-DRY FOODS-PROVISIONS,CATERERS,GPC
WALSALL COUNCIL,HTTP://OPENDATACOMMUNITIES.ORG/ID/METROPOLITAN-DISTRICT-COUNCIL/WALSALL,31/12/2018,RESOURCES & TRANSFORMATION,BLAKEMORE FOODSERVICE,08/10/2018,H59620181010YEJLTQOIH-1,137.96,CA BEACON PRIMARY SCHOOL-FROZEN FOODS-PROVISIONS,CATERERS,GPC
WALSALL COUNCIL,HTTP://OPENDATACOMMUNITIES.ORG/ID/METROPOLITAN-DISTRICT-COUNCIL/WALSALL,31/12/2018,RESOURCES & TRANSFORMATION,BLAKEMORE FOODSERVICE,08/10/2018,H59620181010YEJLTQOIH-2,16.66,CA BEACON PRIMARY SCHOOL-FROZEN FOODS-PROVISIONS,CATERERS,GPC
WALSALL COUNCIL,HTTP://OPENDATACOMMUNITIES.ORG/ID/METROPOLITAN-DISTRICT-COUNCIL/WALSALL,31/12/2018,RESOURCES & TRANSFORMATION,BLAKEMORE FOODSERVICE,08/10/2018,H59620181010AQMIXOCEZ-1,154.69,CA BUSILL JONES PRIMARY SCHOOL-FROZEN FOODS-PROVISIONS,CATERERS,GPC
WALSALL COUNCIL,HTTP://OPENDATACOMMUNITIES.ORG/ID/METROPOLITAN-DISTRICT-COUNCIL/WALSALL,31/12/2018,RESOURCES & TRANSFORMATION,BLAKEMORE FOODSERVICE,08/10/2018,H59620181010VSWMXLSFP-1,82.59,CA CASTLEFORT JMI SCHOOL-DRY FOODS-PROVISIONS,CATERERS,GPC
WALSALL COUNCIL,HTTP://OPENDATACOMMUNITIES.ORG/ID/METROPOLITAN-DISTRICT-COUNCIL/WALSALL,31/12/2018,RESOURCES & TRANSFORMATION,BLAKEMORE FOODSERVICE,08/10/2018,H59620181010INHKDRWVT-1,319.35,CA COOPER JORDAN CE PRIMARY SC-FROZEN FOODS-PROVISIONS,CATERERS,GPC
WALSALL COUNCIL,HTTP://OPENDATACOMMUNITIES.ORG/ID/METROPOLITAN-DISTRICT-COUNCIL/WALSALL,31/12/2018,RESOURCES & TRANSFORMATION,BLAKEMORE FOODSERVICE,08/10/2018,H59620181010INHKDRWVT-2,92.16,CA COOPER JORDAN CE PRIMARY SC-FROZEN FOODS-PROVISIONS,CATERERS,GPC
WALSALL COUNCIL,HTTP://OPENDATACOMMUNITIES.ORG/ID/METROPOLITAN-DISTRICT-COUNCIL/WALSALL,31/12/2018,RESOURCES & TRANSFORMATION,BLAKEMORE FOODSERVICE,08/10/2018,H59620181010DLFNYKCQB-1,317.17,CA CROFT COMMUNITY PRIMARY SCH-DRY FOODS-PROVISIONS,CATERERS,GPC
WALSALL COUNCIL,HTTP://OPENDATACOMMUNITIES.ORG/ID/METROPOLITAN-DISTRICT-COUNCIL/WALSALL,31/12/2018,RESOURCES & TRANSFORMATION,BLAKEMORE FOODSERVICE,08/10/2018,H59620181010GUSGVYYRH-1,-3.67,CA CROFT COMMUNITY PRIMARY SCH-DRY FOODS-PROVISIONS,CATERERS,GPC
WALSALL COUNCIL,HTTP://OPENDATACOMMUNITIES.ORG/ID/METROPOLITAN-DISTRICT-COUNCIL/WALSALL,31/12/2018,RESOURCES & TRANSFORMATION,BLAKEMORE FOODSERVICE,08/10/2018,H59620181010IRFZPUJIC-1,221.63,CA CROFT COMMUNITY PRIMARY SCH-FROZEN FOODS-PROVISIONS,CATERERS,GPC
WALSALL COUNCIL,HTTP://OPENDATACOMMUNITIES.ORG/ID/METROPOLITAN-DISTRICT-COUNCIL/WALSALL,31/12/2018,RESOURCES & TRANSFORMATION,BLAKEMORE FOODSERVICE,08/10/2018,H59620181010IRFZPUJIC-2,16.66,CA CROFT COMMUNITY PRIMARY SCH-FROZEN FOODS-PROVISIONS,CATERERS,GPC
WALSALL COUNCIL,HTTP://OPENDATACOMMUNITIES.ORG/ID/METROPOLITAN-DISTRICT-COUNCIL/WALSALL,31/12/2018,RESOURCES & TRANSFORMATION,BLAKEMORE FOODSERVICE,08/10/2018,H59620181010NIJEHZODA-1,-18.92,CA BARCROFT D/C-DRY FOODS-PROVISIONS,CATERERS,GPC
WALSALL COUNCIL,HTTP://OPENDATACOMMUNITIES.ORG/ID/METROPOLITAN-DISTRICT-COUNCIL/WALSALL,31/12/2018,RESOURCES & TRANSFORMATION,BLAKEMORE FOODSERVICE,08/10/2018,H59620181010ZCDSJMLFN-1,269.47,CA BARCROFT D/C-FROZEN FOODS-PROVISIONS,CATERERS,GPC
WALSALL COUNCIL,HTTP://OPENDATACOMMUNITIES.ORG/ID/METROPOLITAN-DISTRICT-COUNCIL/WALSALL,31/12/2018,RESOURCES & TRANSFORMATION,BLAKEMORE FOODSERVICE,08/10/2018,H59620181010ZCDSJMLFN-2,16.66,CA BARCROFT D/C-FROZEN FOODS-PROVISIONS,CATERERS,GPC
WALSALL COUNCIL,HTTP://OPENDATACOMMUNITIES.ORG/ID/METROPOLITAN-DISTRICT-COUNCIL/WALSALL,31/12/2018,RESOURCES & TRANSFORMATION,BLAKEMORE FOODSERVICE,08/10/2018,H59620181010SQPQLYMUJ-1,75.75,CA MOORCROFT WOOD-FROZEN FOODS-PROVISIONS,CATERERS,GPC
WALSALL COUNCIL,HTTP://OPENDATACOMMUNITIES.ORG/ID/METROPOLITAN-DISTRICT-COUNCIL/WALSALL,31/12/2018,RESOURCES & TRANSFORMATION,BLAKEMORE FOODSERVICE,08/10/2018,H59620181010FJKHZJLKC-1,-6.37,CA LEIGHSWOOD PRIMARY SCHOOL-DRY FOODS-PROVISIONS,CATERERS,GPC
WALSALL COUNCIL,HTTP://OPENDATACOMMUNITIES.ORG/ID/METROPOLITAN-DISTRICT-COUNCIL/WALSALL,31/12/2018,RESOURCES & TRANSFORMATION,BLAKEMORE FOODSERVICE,08/10/2018,H59620181010MCACYOJUP-1,12.48,CA LEIGHSWOOD PRIMARY SCHOOL-DRY FOODS-PROVISIONS,CATERERS,GPC
WALSALL COUNCIL,HTTP://OPENDATACOMMUNITIES.ORG/ID/METROPOLITAN-DISTRICT-COUNCIL/WALSALL,31/12/2018,RESOURCES & TRANSFORMATION,BLAKEMORE FOODSERVICE,08/10/2018,H59620181010PPMXPHNES-1,208.01,CA LEIGHSWOOD PRIMARY SCHOOL-DRY FOODS-PROVISIONS,CATERERS,GPC
WALSALL COUNCIL,HTTP://OPENDATACOMMUNITIES.ORG/ID/METROPOLITAN-DISTRICT-COUNCIL/WALSALL,31/12/2018,RESOURCES & TRANSFORMATION,BLAKEMORE FOODSERVICE,08/10/2018,H59620181010PPMXPHNES-2,149.76,CA LEIGHSWOOD PRIMARY SCHOOL-DRY FOODS-PROVISIONS,CATERERS,GPC
WALSALL COUNCIL,HTTP://OPENDATACOMMUNITIES.ORG/ID/METROPOLITAN-DISTRICT-COUNCIL/WALSALL,31/12/2018,RESOURCES & TRANSFORMATION,BLAKEMORE FOODSERVICE,08/10/2018,H59620181010RQLTDKYED-1,7.36,CA LEIGHSWOOD PRIMARY SCHOOL-FROZEN FOODS-PROVISIONS,CATERERS,GPC
WALSALL COUNCIL,HTTP://OPENDATACOMMUNITIES.ORG/ID/METROPOLITAN-DISTRICT-COUNCIL/WALSALL,31/12/2018,RESOURCES & TRANSFORMATION,BLAKEMORE FOODSERVICE,08/10/2018,H59620181010VIDRMJPDV-1,78.12,CA LEIGHSWOOD PRIMARY SCHOOL-FROZEN FOODS-PROVISIONS,CATERERS,GPC
WALSALL COUNCIL,HTTP://OPENDATACOMMUNITIES.ORG/ID/METROPOLITAN-DISTRICT-COUNCIL/WALSALL,31/12/2018,RESOURCES & TRANSFORMATION,BLAKEMORE FOODSERVICE,08/10/2018,H59620181010OOBJJWNBQ-1,237.87,CA LINDENS PRIMARY SCHOOL-DRY FOODS-PROVISIONS,CATERERS,GPC
WALSALL COUNCIL,HTTP://OPENDATACOMMUNITIES.ORG/ID/METROPOLITAN-DISTRICT-COUNCIL/WALSALL,31/12/2018,RESOURCES & TRANSFORMATION,BLAKEMORE FOODSERVICE,08/10/2018,H59620181010OOBJJWNBQ-2,86.40,CA LINDENS PRIMARY SCHOOL-DRY FOODS-PROVISIONS,CATERERS,GPC
WALSALL COUNCIL,HTTP://OPENDATACOMMUNITIES.ORG/ID/METROPOLITAN-DISTRICT-COUNCIL/WALSALL,31/12/2018,RESOURCES & TRANSFORMATION,BLAKEMORE FOODSERVICE,08/10/2018,H59620181010SCNWRDMKP-1,214.37,CA RADLEYS PRIMARY SCHOOL-FROZEN FOODS-PROVISIONS,CATERERS,GPC
WALSALL COUNCIL,HTTP://OPENDATACOMMUNITIES.ORG/ID/METROPOLITAN-DISTRICT-COUNCIL/WALSALL,31/12/2018,RESOURCES & TRANSFORMATION,BLAKEMORE FOODSERVICE,08/10/2018,H59620181010SCNWRDMKP-2,33.31,CA RADLEYS PRIMARY SCHOOL-FROZEN FOODS-PROVISIONS,CATERERS,GPC
WALSALL COUNCIL,HTTP://OPENDATACOMMUNITIES.ORG/ID/METROPOLITAN-DISTRICT-COUNCIL/WALSALL,31/12/2018,RESOURCES & TRANSFORMATION,BLAKEMORE FOODSERVICE,08/10/2018,H59620181010YYDTGNBIQ-1,310.45,CA RADLEYS PRIMARY SCHOOL-DRY FOODS-PROVISIONS,CATERERS,GPC
WALSALL COUNCIL,HTTP://OPENDATACOMMUNITIES.ORG/ID/METROPOLITAN-DISTRICT-COUNCIL/WALSALL,31/12/2018,RESOURCES & TRANSFORMATION,BLAKEMORE FOODSERVICE,08/10/2018,H59620181010PVADMRCGO-1,166.81,CA ST GILES C.E. PRIMARY SCHOO-CATERING,CATERERS,GPC
WALSALL COUNCIL,HTTP://OPENDATACOMMUNITIES.ORG/ID/METROPOLITAN-DISTRICT-COUNCIL/WALSALL,31/12/2018,RESOURCES & TRANSFORMATION,BLAKEMORE FOODSERVICE,08/10/2018,H59620181010PVADMRCGO-2,2.81,CA ST GILES C.E. PRIMARY SCHOO-CLEANING MATERIALS,CATERERS,GPC
WALSALL COUNCIL,HTTP://OPENDATACOMMUNITIES.ORG/ID/METROPOLITAN-DISTRICT-COUNCIL/WALSALL,31/12/2018,RESOURCES & TRANSFORMATION,BLAKEMORE FOODSERVICE,08/10/2018,H59620181010IOTYWYJJY-1,287.49,CA ST JOHNS C.E. PRIMARY SCHOO-FROZEN FOODS-PROVISIONS,CATERERS,GPC
WALSALL COUNCIL,HTTP://OPENDATACOMMUNITIES.ORG/ID/METROPOLITAN-DISTRICT-COUNCIL/WALSALL,31/12/2018,RESOURCES & TRANSFORMATION,BLAKEMORE FOODSERVICE,08/10/2018,H59620181010PJIOHBZDT-1,401.67,CA ST JOHNS C.E. PRIMARY SCHOO-DRY FOODS-PROVISIONS,CATERERS,GPC
WALSALL COUNCIL,HTTP://OPENDATACOMMUNITIES.ORG/ID/METROPOLITAN-DISTRICT-COUNCIL/WALSALL,31/12/2018,RESOURCES & TRANSFORMATION,BLAKEMORE FOODSERVICE,08/10/2018,H59620181010PJIOHBZDT-2,45.25,CA ST JOHNS C.E. PRIMARY SCHOO-DRY FOODS-PROVISIONS,CATERERS,GPC
WALSALL COUNCIL,HTTP://OPENDATACOMMUNITIES.ORG/ID/METROPOLITAN-DISTRICT-COUNCIL/WALSALL,31/12/2018,RESOURCES & TRANSFORMATION,BLAKEMORE FOODSERVICE,08/10/2018,H59620181010ADYVWIJPK-1,6.24,CA ST MICHAELS C.E. PRIMARY SC-DRY FOODS-PROVISIONS,CATERERS,GPC
WALSALL COUNCIL,HTTP://OPENDATACOMMUNITIES.ORG/ID/METROPOLITAN-DISTRICT-COUNCIL/WALSALL,31/12/2018,RESOURCES & TRANSFORMATION,BLAKEMORE FOODSERVICE,08/10/2018,H59620181010FIVIVURYT-1,19.92,CA ST MICHAELS C.E. PRIMARY SC-DRY FOODS-PROVISIONS,CATERERS,GPC
WALSALL COUNCIL,HTTP://OPENDATACOMMUNITIES.ORG/ID/METROPOLITAN-DISTRICT-COUNCIL/WALSALL,31/12/2018,RESOURCES & TRANSFORMATION,BLAKEMORE FOODSERVICE,08/10/2018,H59620181010ITYXCCIWG-1,271.61,CA ST MICHAELS C.E. PRIMARY SC-DRY FOODS-PROVISIONS,CATERERS,GPC
WALSALL COUNCIL,HTTP://OPENDATACOMMUNITIES.ORG/ID/METROPOLITAN-DISTRICT-COUNCIL/WALSALL,31/12/2018,RESOURCES & TRANSFORMATION,BLAKEMORE FOODSERVICE,08/10/2018,H59620181010ITYXCCIWG-2,164.09,CA ST MICHAELS C.E. PRIMARY SC-DRY FOODS-PROVISIONS,CATERERS,GPC
WALSALL COUNCIL,HTTP://OPENDATACOMMUNITIES.ORG/ID/METROPOLITAN-DISTRICT-COUNCIL/WALSALL,31/12/2018,RESOURCES & TRANSFORMATION,BLAKEMORE FOODSERVICE,08/10/2018,H59620181010LEKGJTSJH-1,17.88,CA ST MICHAELS C.E. PRIMARY SC-DRY FOODS-PROVISIONS,CATERERS,GPC
WALSALL COUNCIL,HTTP://OPENDATACOMMUNITIES.ORG/ID/METROPOLITAN-DISTRICT-COUNCIL/WALSALL,31/12/2018,RESOURCES & TRANSFORMATION,BLAKEMORE FOODSERVICE,08/10/2018,H59620181010MTEWIFVLY-1,10.99,CA WATLING STREET PRIMARY SCHO-FROZEN FOODS-PROVISIONS,CATERERS,GPC
WALSALL COUNCIL,HTTP://OPENDATACOMMUNITIES.ORG/ID/METROPOLITAN-DISTRICT-COUNCIL/WALSALL,31/12/2018,RESOURCES & TRANSFORMATION,BLAKEMORE FOODSERVICE,08/10/2018,H59620181010AACGQEEVE-1,5.66,CA ELMWOOD SPECIAL SCHOOL-DRY FOODS-PROVISIONS,CATERERS,GPC
WALSALL COUNCIL,HTTP://OPENDATACOMMUNITIES.ORG/ID/METROPOLITAN-DISTRICT-COUNCIL/WALSALL,31/12/2018,RESOURCES & TRANSFORMATION,BLAKEMORE FOODSERVICE,08/10/2018,H59620181010JVXTYGYKI-1,4.74,CA ELMWOOD SPECIAL SCHOOL-DRY FOODS-PROVISIONS,CATERERS,GPC
WALSALL COUNCIL,HTTP://OPENDATACOMMUNITIES.ORG/ID/METROPOLITAN-DISTRICT-COUNCIL/WALSALL,31/12/2018,ECONOMY & ENVIRONMENT,ALLIANCE DISPOSABLES,08/10/2018,H59620181010UOIWYLRDO-1,93.13,WALSALL TOWN HALL-MISCELLANEOUS SUPPLIES,CATERERS,GPC
WALSALL COUNCIL,HTTP://OPENDATACOMMUNITIES.ORG/ID/METROPOLITAN-DISTRICT-COUNCIL/WALSALL,31/12/2018,ECONOMY & ENVIRONMENT,WWW.STA.CO.UK,08/10/2018,H59620181010KEYEOSOCJ-1,8.75,DARLASTON LEISURE CENTRE-FEES & LICENCES-SERVICES,OTHER RECREATION SERVICES,GPC
WALSALL COUNCIL,HTTP://OPENDATACOMMUNITIES.ORG/ID/METROPOLITAN-DISTRICT-COUNCIL/WALSALL,31/12/2018,ECONOMY & ENVIRONMENT,WWW.STA.CO.UK,08/10/2018,H59620181010KEYEOSOCJ-2,8.75,OAK PARK-FEES & LICENCES-SERVICES,OTHER RECREATION SERVICES,GPC
WALSALL COUNCIL,HTTP://OPENDATACOMMUNITIES.ORG/ID/METROPOLITAN-DISTRICT-COUNCIL/WALSALL,31/12/2018,ECONOMY & ENVIRONMENT,AMZN MKTP UK,08/10/2018,H59620181010GTZYLZZKG-1,32.97,BLOXWICH LEISURE CENTRE-FOOD AND BEVERAGES-PROVISIONS,BOOK STORES,GPC
WALSALL COUNCIL,HTTP://OPENDATACOMMUNITIES.ORG/ID/METROPOLITAN-DISTRICT-COUNCIL/WALSALL,31/12/2018,ECONOMY & ENVIRONMENT,AMZN MKTP UK,08/10/2018,H59620181010KBKPGEEMF-1,1.69,BLOXWICH LEISURE CENTRE-FOOD AND BEVERAGES-PROVISIONS,BOOK STORES,GPC
WALSALL COUNCIL,HTTP://OPENDATACOMMUNITIES.ORG/ID/METROPOLITAN-DISTRICT-COUNCIL/WALSALL,31/12/2018,ECONOMY & ENVIRONMENT,WWW.STA.CO.UK,08/10/2018,H59620181010KEYEOSOCJ-3,8.75,BLOXWICH LEISURE CENTRE-FEES & LICENCES-SERVICES,OTHER RECREATION SERVICES,GPC
WALSALL COUNCIL,HTTP://OPENDATACOMMUNITIES.ORG/ID/METROPOLITAN-DISTRICT-COUNCIL/WALSALL,31/12/2018,ECONOMY & ENVIRONMENT,AMZN MKTP UK,08/10/2018,H59620181010PRYWDOQBJ-1,11.39,BLOXWICH LEISURE CENTRE-FOOD AND BEVERAGES-PROVISIONS,BOOK STORES,GPC
WALSALL COUNCIL,HTTP://OPENDATACOMMUNITIES.ORG/ID/METROPOLITAN-DISTRICT-COUNCIL/WALSALL,31/12/2018,ECONOMY & ENVIRONMENT,WWW.STA.CO.UK,08/10/2018,H59620181010KEYEOSOCJ-4,8.75,WALSALL GALA CENTRE-FEES & LICENCES-SERVICES,OTHER RECREATION SERVICES,GPC
WALSALL COUNCIL,HTTP://OPENDATACOMMUNITIES.ORG/ID/METROPOLITAN-DISTRICT-COUNCIL/WALSALL,31/12/2018,ECONOMY & ENVIRONMENT,AMZN MKTP UK,08/10/2018,H59620181010WCSIXZMJN-1,2.99,LIBRARY OPERATIONS CENTRAL-STATIONERY & GENERAL SUPPLIES-,BOOK STORES,GPC
WALSALL COUNCIL,HTTP://OPENDATACOMMUNITIES.ORG/ID/METROPOLITAN-DISTRICT-COUNCIL/WALSALL,31/12/2018,ECONOMY & ENVIRONMENT,AMZN MKTP UK,08/10/2018,H59620181010LBYHEIABH-1,1.98,BLOXWICH LIBRARY-STATIONERY & GENERAL SUPPLIES-,BOOK STORES,GPC
WALSALL COUNCIL,HTTP://OPENDATACOMMUNITIES.ORG/ID/METROPOLITAN-DISTRICT-COUNCIL/WALSALL,31/12/2018,ECONOMY & ENVIRONMENT,ASDA GROCERIES ONLINE,08/10/2018,H59620181010ORVZVGXTE-1,42.54,NEW ART GALLERY VENUE INCOME-BEVERAGES-PROVISIONS,GROCERY STORES AND SUPERMARKETS,GPC
WALSALL COUNCIL,HTTP://OPENDATACOMMUNITIES.ORG/ID/METROPOLITAN-DISTRICT-COUNCIL/WALSALL,31/12/2018,ECONOMY & ENVIRONMENT,COSTA COFFEE WALSALL 1,08/10/2018,H59620181010DOJVOBYQQ-1,18.71,EXHIBITIONS - SPECIAL PROJECTS-BEVERAGES-PROVISIONS,QUICK PAYMENT SERVICE-FAST-FOOD RESTAURANTS,GPC
WALSALL COUNCIL,HTTP://OPENDATACOMMUNITIES.ORG/ID/METROPOLITAN-DISTRICT-COUNCIL/WALSALL,31/12/2018,ECONOMY & ENVIRONMENT,ASDA GROCERIES ONLINE,08/10/2018,H59620181010ORVZVGXTE-2,52.18,NAG - PREVIEW EXPENSES-CATERING,GROCERY STORES AND SUPERMARKETS,GPC
WALSALL COUNCIL,HTTP://OPENDATACOMMUNITIES.ORG/ID/METROPOLITAN-DISTRICT-COUNCIL/WALSALL,31/12/2018,ECONOMY & ENVIRONMENT,ASDA GROCERIES ONLINE,08/10/2018,H59620181010ORVZVGXTE-3,4.00,NAG - PREVIEW EXPENSES-POSTAGES AND COURIER SERVICES,GROCERY STORES AND SUPERMARKETS,GPC
WALSALL COUNCIL,HTTP://OPENDATACOMMUNITIES.ORG/ID/METROPOLITAN-DISTRICT-COUNCIL/WALSALL,31/12/2018,ECONOMY & ENVIRONMENT,TOOLSTATION LTD,08/10/2018,H59620181010HFOUJXQJY-1,25.98,TECHNICAL/ART HANDLING-LOOSE TOOLS & CONSUMABLES,HARDWARE STORES,GPC
WALSALL COUNCIL,HTTP://OPENDATACOMMUNITIES.ORG/ID/METROPOLITAN-DISTRICT-COUNCIL/WALSALL,31/12/2018,ECONOMY & ENVIRONMENT,HOLE IN THE WALL,08/10/2018,H59620181010VVTKTOAZI-1,19.48,HOMELESSNESS-FURNITURE & EQUIPMENT,"FURNITURE-REUPHOLSTERY AND REPAIR, REFINISHING",GPC
WALSALL COUNCIL,HTTP://OPENDATACOMMUNITIES.ORG/ID/METROPOLITAN-DISTRICT-COUNCIL/WALSALL,31/12/2018,RESOURCES & TRANSFORMATION,BANNER GROUP LTD,08/10/2018,H59620181010DCMMYDORN-1,13.84,AREA PARTNERSHIPS-GENERAL EXPENSES-OFFICE EXP,"OFFICE, SCHOOL SUPPLY, AND STATIONERY STORES",GPC
WALSALL COUNCIL,HTTP://OPENDATACOMMUNITIES.ORG/ID/METROPOLITAN-DISTRICT-COUNCIL/WALSALL,31/12/2018,ADULT SOCIAL CARE,HMCOURTS-SERVICE.G,08/10/2018,H59620181010SVLYRPHSG-1,75.00,MENTAL HEALTH OUT-OF-HOURS SER-LEGAL FEES-PRIV CONTRACTOR FEE,FINES,GPC
WALSALL COUNCIL,HTTP://OPENDATACOMMUNITIES.ORG/ID/METROPOLITAN-DISTRICT-COUNCIL/WALSALL,31/12/2018,RESOURCES & TRANSFORMATION,PAYPAL *TRAINLINE,08/10/2018,H59620181010PBPHQSHWN-1,20.70,LAW LIBRARY-OTHER-TRAVEL ALLOWANCES,OTHER TRANSPORTATION SERVICES,GPC
WALSALL COUNCIL,HTTP://OPENDATACOMMUNITIES.ORG/ID/METROPOLITAN-DISTRICT-COUNCIL/WALSALL,31/12/2018,RESOURCES & TRANSFORMATION,WWW.SCC.COM,08/10/2018,H59620181016ROSOIDUUC-1,324.45,RECHARGEABLE EQUIPMENT-COMPUTER EQUIPMENT AND SUPPLIE,"COMPUTERS, COMPUTER PERIPHERAL EQUIPMENT, SOFTWARE",GPC
WALSALL COUNCIL,HTTP://OPENDATACOMMUNITIES.ORG/ID/METROPOLITAN-DISTRICT-COUNCIL/WALSALL,31/12/2018,RESOURCES & TRANSFORMATION,WWW.SCC.COM,08/10/2018,H59620181018MFUEUCZPA-1,27.10,RECHARGEABLE EQUIPMENT-COMPUTER EQUIPMENT AND SUPPLIE,"COMPUTERS, COMPUTER PERIPHERAL EQUIPMENT, SOFTWARE",GPC
WALSALL COUNCIL,HTTP://OPENDATACOMMUNITIES.ORG/ID/METROPOLITAN-DISTRICT-COUNCIL/WALSALL,31/12/2018,RESOURCES & TRANSFORMATION,WILKO RETAIL LIMIT,08/10/2018,H59620181010GWKWHOERI-1,55.65,WALSALL CRISIS SUPPORT SCHEME-FURNITURE & EQUIPMENT,HOUSEHOLD APPLIANCE STORES,GPC
WALSALL COUNCIL,HTTP://OPENDATACOMMUNITIES.ORG/ID/METROPOLITAN-DISTRICT-COUNCIL/WALSALL,31/12/2018,RESOURCES & TRANSFORMATION,TESCO STORES 6161,08/10/2018,H59620181010YXFQBZIGY-1,20.00,WALSALL CRISIS SUPPORT SCHEME-CRISIS SUPPORT PAYMENTS,GROCERY STORES AND SUPERMARKETS,GPC
WALSALL COUNCIL,HTTP://OPENDATACOMMUNITIES.ORG/ID/METROPOLITAN-DISTRICT-COUNCIL/WALSALL,31/12/2018,RESOURCES & TRANSFORMATION,NCS*CIMA VUE EXAM,08/10/2018,H59620181010LJUOPNJXK-1,240.00,FINANCE TRAINING-EXTERNAL TRAINING,OTHER SCHOOLS AND EDUCATIONAL SERVICES,GPC
WALSALL COUNCIL,HTTP://OPENDATACOMMUNITIES.ORG/ID/METROPOLITAN-DISTRICT-COUNCIL/WALSALL,31/12/2018,CHILDRENS SERVICES-SCHOOLS,AMZN MKTP UK,09/10/2018,H59620181011GRMMRHUDK-1,6.00,PHYSICAL DEVELOPMENT-GENERAL MATERIALS,BOOK STORES,GPC
WALSALL COUNCIL,HTTP://OPENDATACOMMUNITIES.ORG/ID/METROPOLITAN-DISTRICT-COUNCIL/WALSALL,31/12/2018,CHILDRENS SERVICES-SCHOOLS,AMZN MKTP UK AMAZON.CO.UK,09/10/2018,H59620181011VQSIUIFFN-1,23.52,PHYSICAL DEVELOPMENT-GENERAL MATERIALS,BOOK STORES,GPC
WALSALL COUNCIL,HTTP://OPENDATACOMMUNITIES.ORG/ID/METROPOLITAN-DISTRICT-COUNCIL/WALSALL,31/12/2018,CHILDRENS SERVICES-SCHOOLS,AMZN MKTP UK,09/10/2018,H59620181011VXQNIXMYC-1,17.33,PHYSICAL DEVELOPMENT-GENERAL MATERIALS,BOOK STORES,GPC
WALSALL COUNCIL,HTTP://OPENDATACOMMUNITIES.ORG/ID/METROPOLITAN-DISTRICT-COUNCIL/WALSALL,31/12/2018,CHILDRENS SERVICES-SCHOOLS,AMZN MKTP UK,09/10/2018,H59620181011WJNHUPGMG-1,22.00,PHYSICAL DEVELOPMENT-GENERAL MATERIALS,BOOK STORES,GPC
WALSALL COUNCIL,HTTP://OPENDATACOMMUNITIES.ORG/ID/METROPOLITAN-DISTRICT-COUNCIL/WALSALL,31/12/2018,CHILDRENS SERVICES-SCHOOLS,AMZN MKTP UK,09/10/2018,H59620181011WJNHUPGMG-2,13.98,PHYSICAL DEVELOPMENT-GENERAL MATERIALS,BOOK STORES,GPC
WALSALL COUNCIL,HTTP://OPENDATACOMMUNITIES.ORG/ID/METROPOLITAN-DISTRICT-COUNCIL/WALSALL,31/12/2018,CHILDRENS SERVICES-SCHOOLS,AMZN MKTP UK AMAZON.CO.UK,09/10/2018,H59620181011WQWJOFGTC-1,23.16,PHYSICAL DEVELOPMENT-GENERAL MATERIALS,BOOK STORES,GPC
WALSALL COUNCIL,HTTP://OPENDATACOMMUNITIES.ORG/ID/METROPOLITAN-DISTRICT-COUNCIL/WALSALL,31/12/2018,CHILDRENS SERVICES-SCHOOLS,AMZN MKTP UK,09/10/2018,H59620181011CBDMNQORN-1,7.58,ADMINISTRATIVE SUPPLIES-MEDICAL REQUISITES-MATERIALS,BOOK STORES,GPC
WALSALL COUNCIL,HTTP://OPENDATACOMMUNITIES.ORG/ID/METROPOLITAN-DISTRICT-COUNCIL/WALSALL,31/12/2018,CHILDRENS SERVICES-SCHOOLS,AMZN MKTP UK,09/10/2018,H59620181011RUHDJXBEZ-1,0.39,ICT LEARNING RESOURCES-GENERAL MATERIALS,BOOK STORES,GPC
WALSALL COUNCIL,HTTP://OPENDATACOMMUNITIES.ORG/ID/METROPOLITAN-DISTRICT-COUNCIL/WALSALL,31/12/2018,CHILDRENS SERVICES-SCHOOLS,AMZN MKTP UK,09/10/2018,H59620181011LQDMUQYJR-1,29.20,E19-GENERAL MATERIALS,BOOK STORES,GPC
WALSALL COUNCIL,HTTP://OPENDATACOMMUNITIES.ORG/ID/METROPOLITAN-DISTRICT-COUNCIL/WALSALL,31/12/2018,CHILDRENS SERVICES-SCHOOLS,AMAZON.CO.UK AMAZON.CO.UK,09/10/2018,H59620181012JVOKXQEDW-1,27.84,E19-LIBRARY BOOKS,MISCELLANEOUS AND SPECIALTY RETAIL STORES,GPC
WALSALL COUNCIL,HTTP://OPENDATACOMMUNITIES.ORG/ID/METROPOLITAN-DISTRICT-COUNCIL/WALSALL,31/12/2018,CHILDRENS SERVICES-SCHOOLS,POST OFFICE COUNTER,09/10/2018,H59620181011QNBPZLLJL-1,14.82,ADMINISTRATIVE SUPPLIES-POSTAGES AND COURIER SERVICES,POSTAL SERVICES - GOVERNMENT ONLY,GPC
WALSALL COUNCIL,HTTP://OPENDATACOMMUNITIES.ORG/ID/METROPOLITAN-DISTRICT-COUNCIL/WALSALL,31/12/2018,CHILDRENS SERVICES,WWW.APLPACKAGING.CO.UK,09/10/2018,H59620181011TWCWGIUYV-1,68.27,VIRTUAL SCHOOL - CENTRAL PUPIL-MISCELLANEOUS SUPPLIES,HARDWARE EQUIPMENT AND SUPPLIES,GPC
WALSALL COUNCIL,HTTP://OPENDATACOMMUNITIES.ORG/ID/METROPOLITAN-DISTRICT-COUNCIL/WALSALL,31/12/2018,CHILDRENS SERVICES,TESCO STORE 3351,09/10/2018,H59620181011BXRQCDTIH-1,3.10,LOCALITY FAMILY SUPPORT-CENTRA-FOOD AND BEVERAGES-PROVISIONS,GROCERY STORES AND SUPERMARKETS,GPC
WALSALL COUNCIL,HTTP://OPENDATACOMMUNITIES.ORG/ID/METROPOLITAN-DISTRICT-COUNCIL/WALSALL,31/12/2018,CHILDRENS SERVICES,TESCO STORE 3351,09/10/2018,H59620181011BXRQCDTIH-2,5.60,LOCALITY FAMILY SUPPORT-CENTRA-FOOD AND BEVERAGES-PROVISIONS,GROCERY STORES AND SUPERMARKETS,GPC
WALSALL COUNCIL,HTTP://OPENDATACOMMUNITIES.ORG/ID/METROPOLITAN-DISTRICT-COUNCIL/WALSALL,31/12/2018,CHILDRENS SERVICES,B&M RETAIL LTD,09/10/2018,H59620181011OEFNRYOEX-1,12.06,LOCALITY FAMILY SUPPORT-CENTRA-FURNITURE & EQUIPMENT,DISCOUNT STORES,GPC
WALSALL COUNCIL,HTTP://OPENDATACOMMUNITIES.ORG/ID/METROPOLITAN-DISTRICT-COUNCIL/WALSALL,31/12/2018,CHILDRENS SERVICES,WILKO RETAIL LIMIT,09/10/2018,H59620181011PIXXBSSMP-1,3.00,LOCALITY FAMILY SUPPORT-CENTRA-FURNITURE & EQUIPMENT,HOUSEHOLD APPLIANCE STORES,GPC
WALSALL COUNCIL,HTTP://OPENDATACOMMUNITIES.ORG/ID/METROPOLITAN-DISTRICT-COUNCIL/WALSALL,31/12/2018,CHILDRENS SERVICES,HTTP://WWW.DERBYSHIRE.,09/10/2018,H59620181011TLPCVGYKQ-1,25.00,EDUCATION BUSINESS PARTNERSHIP-MISCELLANEOUS SUPPLIES,GOVERNMENT SERVICES,GPC
WALSALL COUNCIL,HTTP://OPENDATACOMMUNITIES.ORG/ID/METROPOLITAN-DISTRICT-COUNCIL/WALSALL,31/12/2018,CHILDRENS SERVICES,TRAINLINE,09/10/2018,H59620181011AFPTBNGWQ-1,124.10,SAFEGUARDING & FAMILY SUPPORT-OFFICER/STAFF-PUBLIC TRANSPORT,PASSENGER RAILWAYS,GPC
WALSALL COUNCIL,HTTP://OPENDATACOMMUNITIES.ORG/ID/METROPOLITAN-DISTRICT-COUNCIL/WALSALL,31/12/2018,CHILDRENS SERVICES,TRAINLINE,09/10/2018,H59620181011BHKWWTHFH-1,103.84,SAFEGUARDING & FAMILY SUPPORT-OFFICER/STAFF-PUBLIC TRANSPORT,PASSENGER RAILWAYS,GPC
WALSALL COUNCIL,HTTP://OPENDATACOMMUNITIES.ORG/ID/METROPOLITAN-DISTRICT-COUNCIL/WALSALL,31/12/2018,CHILDRENS SERVICES,TRAVEL WEST MIDLAN,09/10/2018,H59620181011GSQLQVJQJ-1,16.20,LOOKED AFTER CHILDRENS SOCIAL -SUPPORT UNDER SECTION 23 OF TH,BUS LINES,GPC
WALSALL COUNCIL,HTTP://OPENDATACOMMUNITIES.ORG/ID/METROPOLITAN-DISTRICT-COUNCIL/WALSALL,31/12/2018,CHILDRENS SERVICES,BCC REGISTER OFFIC,09/10/2018,H59620181011KKUOCPGRC-1,18.50,LOOKED AFTER CHILDRENS SOCIAL -MISC FEES AND EXPENSES,GOVERNMENT SERVICES,GPC
WALSALL COUNCIL,HTTP://OPENDATACOMMUNITIES.ORG/ID/METROPOLITAN-DISTRICT-COUNCIL/WALSALL,31/12/2018,CHILDRENS SERVICES,REGISTRATION SERVICES,09/10/2018,H59620181011XVCTJVVHR-1,10.00,LOOKED AFTER CHILDRENS SOCIAL -MISC FEES AND EXPENSES,OTHER RECREATION SERVICES,GPC
WALSALL COUNCIL,HTTP://OPENDATACOMMUNITIES.ORG/ID/METROPOLITAN-DISTRICT-COUNCIL/WALSALL,31/12/2018,CHILDRENS SERVICES,WALSALL STN T/O,09/10/2018,H59620181012ECRGFNNSU-1,134.40,LOOKED AFTER CHILDRENS SOCIAL -SUPPORT UNDER SECTION 23 OF TH,PASSENGER RAILWAYS,GPC
WALSALL COUNCIL,HTTP://OPENDATACOMMUNITIES.ORG/ID/METROPOLITAN-DISTRICT-COUNCIL/WALSALL,31/12/2018,CHILDRENS SERVICES,WALSALL STN T/O,09/10/2018,H59620181012KPBTIGYDN-1,46.80,LOOKED AFTER CHILDRENS SOCIAL -OFFICER/STAFF-PUBLIC TRANSPORT,PASSENGER RAILWAYS,GPC
WALSALL COUNCIL,HTTP://OPENDATACOMMUNITIES.ORG/ID/METROPOLITAN-DISTRICT-COUNCIL/WALSALL,31/12/2018,CHILDRENS SERVICES,PREMIER INN 44533710,09/10/2018,H59620181012NZTEJGHWN-1,87.50,LOOKED AFTER CHILDRENS SOCIAL -SUPPORT UNDER SECTION 23 OF TH,PREMIER INN,GPC
WALSALL COUNCIL,HTTP://OPENDATACOMMUNITIES.ORG/ID/METROPOLITAN-DISTRICT-COUNCIL/WALSALL,31/12/2018,CHILDRENS SERVICES,PREMIER INN 44533710,09/10/2018,H59620181012RHYSTKFYP-1,78.00,LOOKED AFTER CHILDRENS SOCIAL -SUPPORT UNDER SECTION 23 OF TH,PREMIER INN,GPC
WALSALL COUNCIL,HTTP://OPENDATACOMMUNITIES.ORG/ID/METROPOLITAN-DISTRICT-COUNCIL/WALSALL,31/12/2018,CHILDRENS SERVICES,B&M RETAIL LTD,09/10/2018,H59620181011LAMYWZHLP-1,1.24,"43A HILTON ROAD, WILLENHALL-FOOD AND BEVERAGES-PROVISIONS",DISCOUNT STORES,GPC
WALSALL COUNCIL,HTTP://OPENDATACOMMUNITIES.ORG/ID/METROPOLITAN-DISTRICT-COUNCIL/WALSALL,31/12/2018,CHILDRENS SERVICES,B&M RETAIL LTD,09/10/2018,H59620181011LAMYWZHLP-2,43.59,"43A HILTON ROAD, WILLENHALL-FOOD AND BEVERAGES-PROVISIONS",DISCOUNT STORES,GPC
WALSALL COUNCIL,HTTP://OPENDATACOMMUNITIES.ORG/ID/METROPOLITAN-DISTRICT-COUNCIL/WALSALL,31/12/2018,CHILDRENS SERVICES,B&M RETAIL LTD,09/10/2018,H59620181011QMXXPFLIQ-1,40.96,"43A HILTON ROAD, WILLENHALL-RESIDENTS PERSONAL EXPENSES-AL",DISCOUNT STORES,GPC
WALSALL COUNCIL,HTTP://OPENDATACOMMUNITIES.ORG/ID/METROPOLITAN-DISTRICT-COUNCIL/WALSALL,31/12/2018,CHILDRENS SERVICES,WM MORRISONS STORE,09/10/2018,H59620181011UGDJFAGWS-1,27.74,"43A HILTON ROAD, WILLENHALL-FOOD AND BEVERAGES-PROVISIONS",GROCERY STORES AND SUPERMARKETS,GPC
WALSALL COUNCIL,HTTP://OPENDATACOMMUNITIES.ORG/ID/METROPOLITAN-DISTRICT-COUNCIL/WALSALL,31/12/2018,CHILDRENS SERVICES,WM MORRISONS STORE,09/10/2018,H59620181011UGDJFAGWS-2,39.57,"43A HILTON ROAD, WILLENHALL-FOOD AND BEVERAGES-PROVISIONS",GROCERY STORES AND SUPERMARKETS,GPC
WALSALL COUNCIL,HTTP://OPENDATACOMMUNITIES.ORG/ID/METROPOLITAN-DISTRICT-COUNCIL/WALSALL,31/12/2018,CHILDRENS SERVICES,BRITISH RED CROSS,09/10/2018,H59620181011DDLDXPHRA-1,151.20,CHILDRENS RESIDENTIAL SVCS-EXTERNAL TRAINING,"ORGANIZATIONS, CHARITABLE AND SOCIAL SERVICE",GPC
WALSALL COUNCIL,HTTP://OPENDATACOMMUNITIES.ORG/ID/METROPOLITAN-DISTRICT-COUNCIL/WALSALL,31/12/2018,CHILDRENS SERVICES,AMZN MKTP UK,09/10/2018,H59620181011RVBWEXWIB-1,6.40,REDRUTH ROAD-RESIDENTS PERSONAL EXPENSES-AL,BOOK STORES,GPC
WALSALL COUNCIL,HTTP://OPENDATACOMMUNITIES.ORG/ID/METROPOLITAN-DISTRICT-COUNCIL/WALSALL,31/12/2018,CHILDRENS SERVICES,WWW.PARTYPACKS.CO.UK,09/10/2018,H59620181013FDXIIVLCQ-1,18.95,REDRUTH ROAD-RESIDENTS PERSONAL EXPENSES-AL,MISCELLANEOUS GENERAL MERCHANDISE,GPC
WALSALL COUNCIL,HTTP://OPENDATACOMMUNITIES.ORG/ID/METROPOLITAN-DISTRICT-COUNCIL/WALSALL,31/12/2018,CHILDRENS SERVICES,TRAINLINE,09/10/2018,H59620181011XMHUDXYGI-1,186.62,PERFORMANCE & OUTCOMES TEAM (C-OTHER-TRAVEL ALLOWANCES,PASSENGER RAILWAYS,GPC
WALSALL COUNCIL,HTTP://OPENDATACOMMUNITIES.ORG/ID/METROPOLITAN-DISTRICT-COUNCIL/WALSALL,31/12/2018,CHILDRENS SERVICES,ASIAN APPRENTICESHIP A,09/10/2018,H59620181011OBNOGNFQE-1,70.00,SCHOOL IMPROVEMENT - VIRTUAL S-MISC FEES AND EXPENSES,"THEATRICAL PRODUCERS, TIC",GPC
WALSALL COUNCIL,HTTP://OPENDATACOMMUNITIES.ORG/ID/METROPOLITAN-DISTRICT-COUNCIL/WALSALL,31/12/2018,RESOURCES & TRANSFORMATION,JOHAL CONV STORE 71872,09/10/2018,H59620181011CGSYPSVFU-1,20.00,TENANCY SERVICE-ELECTRICITY-ENERGY COSTS,GROCERY STORES AND SUPERMARKETS,GPC
WALSALL COUNCIL,HTTP://OPENDATACOMMUNITIES.ORG/ID/METROPOLITAN-DISTRICT-COUNCIL/WALSALL,31/12/2018,RESOURCES & TRANSFORMATION,JOHAL CONV STORE 71872,09/10/2018,H59620181011OATJCDOFK-1,20.00,TENANCY SERVICE-ELECTRICITY-ENERGY COSTS,GROCERY STORES AND SUPERMARKETS,GPC
WALSALL COUNCIL,HTTP://OPENDATACOMMUNITIES.ORG/ID/METROPOLITAN-DISTRICT-COUNCIL/WALSALL,31/12/2018,RESOURCES & TRANSFORMATION,UTILITA ENERGY LIMITED,09/10/2018,H59620181012OHBDMSHQD-1,40.00,TENANCY SERVICE-ELECTRICITY-ENERGY COSTS,"UTILITIES - ELECTRIC, GAS, SANITARY & WATER",GPC
WALSALL COUNCIL,HTTP://OPENDATACOMMUNITIES.ORG/ID/METROPOLITAN-DISTRICT-COUNCIL/WALSALL,31/12/2018,RESOURCES & TRANSFORMATION,UTILITA ENERGY LIMITED,09/10/2018,H59620181012TUTCPUWMD-1,50.00,TENANCY SERVICE-ELECTRICITY-ENERGY COSTS,"UTILITIES - ELECTRIC, GAS, SANITARY & WATER",GPC
WALSALL COUNCIL,HTTP://OPENDATACOMMUNITIES.ORG/ID/METROPOLITAN-DISTRICT-COUNCIL/WALSALL,31/12/2018,ECONOMY & ENVIRONMENT,B & Q 1193,09/10/2018,H59620181011DJBEGOXBK-1,66.00,DEPOT-GENERAL MATERIALS,LUMBER & BUILDING MATERIALS STORES,GPC
WALSALL COUNCIL,HTTP://OPENDATACOMMUNITIES.ORG/ID/METROPOLITAN-DISTRICT-COUNCIL/WALSALL,31/12/2018,ECONOMY & ENVIRONMENT,AMZN MKTP UK,09/10/2018,H59620181011GGSBPDMEL-1,18.79,FLEET-GENERAL MATERIALS,BOOK STORES,GPC
WALSALL COUNCIL,HTTP://OPENDATACOMMUNITIES.ORG/ID/METROPOLITAN-DISTRICT-COUNCIL/WALSALL,31/12/2018,ECONOMY & ENVIRONMENT,VIGO PRESSES LIMITED,09/10/2018,H59620181011MPHWVXWMS-1,150.00,"ARBORETUM HLF-REPAIRS,ALTERATIONS & MAINTENA",HOME SUPPLY WAREHOUSE STORES,GPC
WALSALL COUNCIL,HTTP://OPENDATACOMMUNITIES.ORG/ID/METROPOLITAN-DISTRICT-COUNCIL/WALSALL,31/12/2018,ECONOMY & ENVIRONMENT,ASPEX UK LIMITED,09/10/2018,H59620181011TIWBHLZJU-1,224.34,ARBORETUM VISITOR CENTRE-GENERAL MATERIALS,LUMBER & BUILDING MATERIALS STORES,GPC
WALSALL COUNCIL,HTTP://OPENDATACOMMUNITIES.ORG/ID/METROPOLITAN-DISTRICT-COUNCIL/WALSALL,31/12/2018,ECONOMY & ENVIRONMENT,WILKO RETAIL LIMIT,09/10/2018,H59620181011ILGBBMJXE-1,28.00,POLLUTION DIVISION-OTHER EQUIPMENT/ADDITIONAL SER,HOUSEHOLD APPLIANCE STORES,GPC
WALSALL COUNCIL,HTTP://OPENDATACOMMUNITIES.ORG/ID/METROPOLITAN-DISTRICT-COUNCIL/WALSALL,31/12/2018,ECONOMY & ENVIRONMENT,CADENT GAS LIMITED,09/10/2018,H59620181011IXRZIRSED-1,18667.20,CFR 1147 NETWORK RAIL SCHEME --SITE WORKS MAIN CONTRACTORS,HOUSEHOLD APPLIANCE STORES,GPC
WALSALL COUNCIL,HTTP://OPENDATACOMMUNITIES.ORG/ID/METROPOLITAN-DISTRICT-COUNCIL/WALSALL,31/12/2018,RESOURCES & TRANSFORMATION,ARTHUR BRETT CATER,09/10/2018,H59620181011RETPMPHFP-1,53.00,CA KINGSHILL SCHOOL-FOOD AND BEVERAGES-PROVISIONS,MISCELLANEOUS FOOD STORES & CONVENIENCE STORES,GPC
WALSALL COUNCIL,HTTP://OPENDATACOMMUNITIES.ORG/ID/METROPOLITAN-DISTRICT-COUNCIL/WALSALL,31/12/2018,RESOURCES & TRANSFORMATION,ARTHUR BRETT CATER,09/10/2018,H59620181011JXEKRYUBC-1,67.50,CA JANE LANE SPECIAL SCHOOL-FRUIT & VEGETABLES OTHER-PROVI,MISCELLANEOUS FOOD STORES & CONVENIENCE STORES,GPC
WALSALL COUNCIL,HTTP://OPENDATACOMMUNITIES.ORG/ID/METROPOLITAN-DISTRICT-COUNCIL/WALSALL,31/12/2018,RESOURCES & TRANSFORMATION,ARTHUR BRETT CATER,09/10/2018,H59620181011SSJUPLKMB-1,27.72,CA OAKWOOD SPECIAL SCHOOL-FRUIT & VEGETABLES OTHER-PROVI,MISCELLANEOUS FOOD STORES & CONVENIENCE STORES,GPC
WALSALL COUNCIL,HTTP://OPENDATACOMMUNITIES.ORG/ID/METROPOLITAN-DISTRICT-COUNCIL/WALSALL,31/12/2018,RESOURCES & TRANSFORMATION,ARTHUR BRETT CATER,09/10/2018,H59620181011NNGGLSWQE-1,32.08,CA OLD HALL SPECIAL SCHOOL-FRUIT & VEGETABLES OTHER-PROVI,MISCELLANEOUS FOOD STORES & CONVENIENCE STORES,GPC
WALSALL COUNCIL,HTTP://OPENDATACOMMUNITIES.ORG/ID/METROPOLITAN-DISTRICT-COUNCIL/WALSALL,31/12/2018,RESOURCES & TRANSFORMATION,ARTHUR BRETT CATER,09/10/2018,H59620181011JUNQIRDBH-1,40.44,CA ABBEY PRIMARY SCHOOL-FRUIT & VEGETABLES OTHER-PROVI,MISCELLANEOUS FOOD STORES & CONVENIENCE STORES,GPC
WALSALL COUNCIL,HTTP://OPENDATACOMMUNITIES.ORG/ID/METROPOLITAN-DISTRICT-COUNCIL/WALSALL,31/12/2018,RESOURCES & TRANSFORMATION,ARTHUR BRETT CATER,09/10/2018,H59620181011AUYPJFFIO-1,25.80,CA BEACON PRIMARY SCHOOL-FRUIT & VEGETABLES OTHER-PROVI,MISCELLANEOUS FOOD STORES & CONVENIENCE STORES,GPC
WALSALL COUNCIL,HTTP://OPENDATACOMMUNITIES.ORG/ID/METROPOLITAN-DISTRICT-COUNCIL/WALSALL,31/12/2018,RESOURCES & TRANSFORMATION,ARTHUR BRETT CATER,09/10/2018,H59620181011BNTHAUSFD-1,57.74,CA BEACON PRIMARY SCHOOL-FRUIT & VEGETABLES OTHER-PROVI,MISCELLANEOUS FOOD STORES & CONVENIENCE STORES,GPC
WALSALL COUNCIL,HTTP://OPENDATACOMMUNITIES.ORG/ID/METROPOLITAN-DISTRICT-COUNCIL/WALSALL,31/12/2018,RESOURCES & TRANSFORMATION,ARTHUR BRETT CATER,09/10/2018,H59620181011NGGGHALTE-1,131.88,CA BIRCHILLS CE PRIMARY COMMUN-FOOD AND BEVERAGES-PROVISIONS,MISCELLANEOUS FOOD STORES & CONVENIENCE STORES,GPC
WALSALL COUNCIL,HTTP://OPENDATACOMMUNITIES.ORG/ID/METROPOLITAN-DISTRICT-COUNCIL/WALSALL,31/12/2018,RESOURCES & TRANSFORMATION,ARTHUR BRETT CATER,09/10/2018,H59620181011UFGNTYTWJ-1,40.04,CA BLOXWICH C.E. JMI PRIMARY S-FRUIT & VEGETABLES OTHER-PROVI,MISCELLANEOUS FOOD STORES & CONVENIENCE STORES,GPC
WALSALL COUNCIL,HTTP://OPENDATACOMMUNITIES.ORG/ID/METROPOLITAN-DISTRICT-COUNCIL/WALSALL,31/12/2018,RESOURCES & TRANSFORMATION,ARTHUR BRETT CATER,09/10/2018,H59620181011LBNXRLFSQ-1,73.49,CA BROWNHILLS WEST PRIMARY SCH-FRUIT & VEGETABLES OTHER-PROVI,MISCELLANEOUS FOOD STORES & CONVENIENCE STORES,GPC
WALSALL COUNCIL,HTTP://OPENDATACOMMUNITIES.ORG/ID/METROPOLITAN-DISTRICT-COUNCIL/WALSALL,31/12/2018,RESOURCES & TRANSFORMATION,ARTHUR BRETT CATER,09/10/2018,H59620181011QPBNPGZSB-1,20.85,CA BUSILL JONES PRIMARY SCHOOL-FRUIT & VEGETABLES OTHER-PROVI,MISCELLANEOUS FOOD STORES & CONVENIENCE STORES,GPC
WALSALL COUNCIL,HTTP://OPENDATACOMMUNITIES.ORG/ID/METROPOLITAN-DISTRICT-COUNCIL/WALSALL,31/12/2018,RESOURCES & TRANSFORMATION,ARTHUR BRETT CATER,09/10/2018,H59620181011SOXQNSVCU-1,81.01,CA BUSILL JONES PRIMARY SCHOOL-FRUIT & VEGETABLES OTHER-PROVI,MISCELLANEOUS FOOD STORES & CONVENIENCE STORES,GPC
WALSALL COUNCIL,HTTP://OPENDATACOMMUNITIES.ORG/ID/METROPOLITAN-DISTRICT-COUNCIL/WALSALL,31/12/2018,RESOURCES & TRANSFORMATION,ARTHUR BRETT CATER,09/10/2018,H59620181011NJOBTCGEK-1,41.19,CA CASTLEFORT JMI SCHOOL-FRUIT & VEGETABLES OTHER-PROVI,MISCELLANEOUS FOOD STORES & CONVENIENCE STORES,GPC
WALSALL COUNCIL,HTTP://OPENDATACOMMUNITIES.ORG/ID/METROPOLITAN-DISTRICT-COUNCIL/WALSALL,31/12/2018,RESOURCES & TRANSFORMATION,CHICKEN JOES LTD,09/10/2018,H59620181011PTKXSTOYG-1,33.57,CA CASTLEFORT JMI SCHOOL-FROZEN FOODS-PROVISIONS,CATERERS,GPC
WALSALL COUNCIL,HTTP://OPENDATACOMMUNITIES.ORG/ID/METROPOLITAN-DISTRICT-COUNCIL/WALSALL,31/12/2018,RESOURCES & TRANSFORMATION,CHICKEN JOES LTD,09/10/2018,H59620181011PMREJIDBR-1,36.48,CA COOPER JORDAN CE PRIMARY SC-FROZEN FOODS-PROVISIONS,CATERERS,GPC
WALSALL COUNCIL,HTTP://OPENDATACOMMUNITIES.ORG/ID/METROPOLITAN-DISTRICT-COUNCIL/WALSALL,31/12/2018,RESOURCES & TRANSFORMATION,ARTHUR BRETT CATER,09/10/2018,H59620181011XSLSYMTFD-1,88.27,CA CROFT COMMUNITY PRIMARY SCH-FRUIT & VEGETABLES OTHER-PROVI,MISCELLANEOUS FOOD STORES & CONVENIENCE STORES,GPC
WALSALL COUNCIL,HTTP://OPENDATACOMMUNITIES.ORG/ID/METROPOLITAN-DISTRICT-COUNCIL/WALSALL,31/12/2018,RESOURCES & TRANSFORMATION,ARTHUR BRETT CATER,09/10/2018,H59620181011XFQJXYPLH-1,92.11,CA ELMORE GREEN PRIMARY SCHOOL-FRUIT & VEGETABLES OTHER-PROVI,MISCELLANEOUS FOOD STORES & CONVENIENCE STORES,GPC
WALSALL COUNCIL,HTTP://OPENDATACOMMUNITIES.ORG/ID/METROPOLITAN-DISTRICT-COUNCIL/WALSALL,31/12/2018,RESOURCES & TRANSFORMATION,CHICKEN JOES LTD,09/10/2018,H59620181011DIMCULAHT-1,56.55,CA BARCROFT D/C-FROZEN FOODS-PROVISIONS,CATERERS,GPC
WALSALL COUNCIL,HTTP://OPENDATACOMMUNITIES.ORG/ID/METROPOLITAN-DISTRICT-COUNCIL/WALSALL,31/12/2018,RESOURCES & TRANSFORMATION,ARTHUR BRETT CATER,09/10/2018,H59620181011ZESXKESHS-1,80.46,CA BARCROFT D/C-FRUIT & VEGETABLES OTHER-PROVI,MISCELLANEOUS FOOD STORES & CONVENIENCE STORES,GPC
WALSALL COUNCIL,HTTP://OPENDATACOMMUNITIES.ORG/ID/METROPOLITAN-DISTRICT-COUNCIL/WALSALL,31/12/2018,RESOURCES & TRANSFORMATION,ARTHUR BRETT CATER,09/10/2018,H59620181011MZKUJBRNW-1,65.21,CA MOORCROFT WOOD-FRUIT & VEGETABLES OTHER-PROVI,MISCELLANEOUS FOOD STORES & CONVENIENCE STORES,GPC
WALSALL COUNCIL,HTTP://OPENDATACOMMUNITIES.ORG/ID/METROPOLITAN-DISTRICT-COUNCIL/WALSALL,31/12/2018,RESOURCES & TRANSFORMATION,ARTHUR BRETT CATER,09/10/2018,H59620181011JVNDGJSMR-1,36.10,CA LEAMORE PRIMARY SCHOOL-FRUIT & VEGETABLES OTHER-PROVI,MISCELLANEOUS FOOD STORES & CONVENIENCE STORES,GPC
WALSALL COUNCIL,HTTP://OPENDATACOMMUNITIES.ORG/ID/METROPOLITAN-DISTRICT-COUNCIL/WALSALL,31/12/2018,RESOURCES & TRANSFORMATION,CHICKEN JOES LTD,09/10/2018,H59620181011TDRVDADNH-1,49.39,CA LEIGHSWOOD PRIMARY SCHOOL-FROZEN FOODS-PROVISIONS,CATERERS,GPC
WALSALL COUNCIL,HTTP://OPENDATACOMMUNITIES.ORG/ID/METROPOLITAN-DISTRICT-COUNCIL/WALSALL,31/12/2018,RESOURCES & TRANSFORMATION,CHICKEN JOES LTD,09/10/2018,H59620181011JXBOEYWPS-1,56.58,CA LINDENS PRIMARY SCHOOL-FROZEN FOODS-PROVISIONS,CATERERS,GPC
WALSALL COUNCIL,HTTP://OPENDATACOMMUNITIES.ORG/ID/METROPOLITAN-DISTRICT-COUNCIL/WALSALL,31/12/2018,RESOURCES & TRANSFORMATION,ARTHUR BRETT CATER,09/10/2018,H59620181011QQQGDTTKV-1,83.33,CA LINDENS PRIMARY SCHOOL-FRUIT & VEGETABLES OTHER-PROVI,MISCELLANEOUS FOOD STORES & CONVENIENCE STORES,GPC
WALSALL COUNCIL,HTTP://OPENDATACOMMUNITIES.ORG/ID/METROPOLITAN-DISTRICT-COUNCIL/WALSALL,31/12/2018,RESOURCES & TRANSFORMATION,ARTHUR BRETT CATER,09/10/2018,H59620181011OQOOXFKVJ-1,40.80,CA LITTLE BLOXWICH CE PRIMARY -FRUIT & VEGETABLES OTHER-PROVI,MISCELLANEOUS FOOD STORES & CONVENIENCE STORES,GPC
WALSALL COUNCIL,HTTP://OPENDATACOMMUNITIES.ORG/ID/METROPOLITAN-DISTRICT-COUNCIL/WALSALL,31/12/2018,RESOURCES & TRANSFORMATION,TESCO STORES 6161,09/10/2018,H59620181011GSNICLANA-1,0.20,TOWN HALL RESTAURANT BISTRO-STATIONERY & GENERAL SUPPLIES-,GROCERY STORES AND SUPERMARKETS,GPC
WALSALL COUNCIL,HTTP://OPENDATACOMMUNITIES.ORG/ID/METROPOLITAN-DISTRICT-COUNCIL/WALSALL,31/12/2018,RESOURCES & TRANSFORMATION,TESCO STORES 6161,09/10/2018,H59620181011GSNICLANA-2,6.09,TOWN HALL RESTAURANT BISTRO-FRUIT & VEGETABLES OTHER-PROVI,GROCERY STORES AND SUPERMARKETS,GPC
WALSALL COUNCIL,HTTP://OPENDATACOMMUNITIES.ORG/ID/METROPOLITAN-DISTRICT-COUNCIL/WALSALL,31/12/2018,RESOURCES & TRANSFORMATION,ARTHUR BRETT CATER,09/10/2018,H59620181011AGXEHFYJI-1,52.30,CA MEADOW VIEW JMI PRIMARY SCH-FRUIT & VEGETABLES OTHER-PROVI,MISCELLANEOUS FOOD STORES & CONVENIENCE STORES,GPC
WALSALL COUNCIL,HTTP://OPENDATACOMMUNITIES.ORG/ID/METROPOLITAN-DISTRICT-COUNCIL/WALSALL,31/12/2018,RESOURCES & TRANSFORMATION,CHICKEN JOES LTD,09/10/2018,H59620181011PSXNWNQIF-1,120.10,CA MEADOW VIEW JMI PRIMARY SCH-FRUIT & VEGETABLES OTHER-PROVI,CATERERS,GPC
WALSALL COUNCIL,HTTP://OPENDATACOMMUNITIES.ORG/ID/METROPOLITAN-DISTRICT-COUNCIL/WALSALL,31/12/2018,RESOURCES & TRANSFORMATION,CHICKEN JOES LTD,09/10/2018,H59620181011HFNUUTVFU-1,76.53,CA RADLEYS PRIMARY SCHOOL-FROZEN FOODS-PROVISIONS,CATERERS,GPC
WALSALL COUNCIL,HTTP://OPENDATACOMMUNITIES.ORG/ID/METROPOLITAN-DISTRICT-COUNCIL/WALSALL,31/12/2018,RESOURCES & TRANSFORMATION,ARTHUR BRETT CATER,09/10/2018,H59620181011IDYZTOGES-1,12.90,CA RADLEYS PRIMARY SCHOOL-FRUIT & VEGETABLES OTHER-PROVI,MISCELLANEOUS FOOD STORES & CONVENIENCE STORES,GPC
WALSALL COUNCIL,HTTP://OPENDATACOMMUNITIES.ORG/ID/METROPOLITAN-DISTRICT-COUNCIL/WALSALL,31/12/2018,RESOURCES & TRANSFORMATION,ARTHUR BRETT CATER,09/10/2018,H59620181011RJIBHVFVG-1,85.13,CA RADLEYS PRIMARY SCHOOL-FRUIT & VEGETABLES OTHER-PROVI,MISCELLANEOUS FOOD STORES & CONVENIENCE STORES,GPC
WALSALL COUNCIL,HTTP://OPENDATACOMMUNITIES.ORG/ID/METROPOLITAN-DISTRICT-COUNCIL/WALSALL,31/12/2018,RESOURCES & TRANSFORMATION,ARTHUR BRETT CATER,09/10/2018,H59620181011YVJRDFCOJ-1,32.76,CA ST BERNADETTES CATHOLIC PRI-FOOD AND BEVERAGES-PROVISIONS,MISCELLANEOUS FOOD STORES & CONVENIENCE STORES,GPC
WALSALL COUNCIL,HTTP://OPENDATACOMMUNITIES.ORG/ID/METROPOLITAN-DISTRICT-COUNCIL/WALSALL,31/12/2018,RESOURCES & TRANSFORMATION,ARTHUR BRETT CATER,09/10/2018,H59620181011NOHSYENXP-1,62.88,CA ST GILES C.E. PRIMARY SCHOO-FRUIT & VEGETABLES OTHER-PROVI,MISCELLANEOUS FOOD STORES & CONVENIENCE STORES,GPC
WALSALL COUNCIL,HTTP://OPENDATACOMMUNITIES.ORG/ID/METROPOLITAN-DISTRICT-COUNCIL/WALSALL,31/12/2018,RESOURCES & TRANSFORMATION,CHICKEN JOES LTD,09/10/2018,H59620181011ULHTLOPQE-1,91.46,CA ST GILES C.E. PRIMARY SCHOO-FROZEN FOODS-PROVISIONS,CATERERS,GPC
WALSALL COUNCIL,HTTP://OPENDATACOMMUNITIES.ORG/ID/METROPOLITAN-DISTRICT-COUNCIL/WALSALL,31/12/2018,RESOURCES & TRANSFORMATION,ARTHUR BRETT CATER,09/10/2018,H59620181011HDIKPLVHH-1,180.62,CA ST JOHNS C.E. PRIMARY SCHOO-FRUIT & VEGETABLES OTHER-PROVI,MISCELLANEOUS FOOD STORES & CONVENIENCE STORES,GPC
WALSALL COUNCIL,HTTP://OPENDATACOMMUNITIES.ORG/ID/METROPOLITAN-DISTRICT-COUNCIL/WALSALL,31/12/2018,RESOURCES & TRANSFORMATION,CHICKEN JOES LTD,09/10/2018,H59620181011YXCIJFQRU-1,54.70,CA ST JOHNS C.E. PRIMARY SCHOO-FROZEN FOODS-PROVISIONS,CATERERS,GPC
WALSALL COUNCIL,HTTP://OPENDATACOMMUNITIES.ORG/ID/METROPOLITAN-DISTRICT-COUNCIL/WALSALL,31/12/2018,RESOURCES & TRANSFORMATION,ARTHUR BRETT CATER,09/10/2018,H59620181011SIENYWPRW-1,49.38,CA ST MICHAELS C.E. PRIMARY SC-FRUIT & VEGETABLES OTHER-PROVI,MISCELLANEOUS FOOD STORES & CONVENIENCE STORES,GPC
WALSALL COUNCIL,HTTP://OPENDATACOMMUNITIES.ORG/ID/METROPOLITAN-DISTRICT-COUNCIL/WALSALL,31/12/2018,RESOURCES & TRANSFORMATION,ARTHUR BRETT CATER,09/10/2018,H59620181011BQWKVSJIM-1,35.37,CA WALSALL WOOD PRIMARY SCHOOL-FRUIT & VEGETABLES OTHER-PROVI,MISCELLANEOUS FOOD STORES & CONVENIENCE STORES,GPC
WALSALL COUNCIL,HTTP://OPENDATACOMMUNITIES.ORG/ID/METROPOLITAN-DISTRICT-COUNCIL/WALSALL,31/12/2018,RESOURCES & TRANSFORMATION,ARTHUR BRETT CATER,09/10/2018,H59620181011IOUGXEYXG-1,69.43,CA WATLING STREET PRIMARY SCHO-FRUIT & VEGETABLES OTHER-PROVI,MISCELLANEOUS FOOD STORES & CONVENIENCE STORES,GPC
WALSALL COUNCIL,HTTP://OPENDATACOMMUNITIES.ORG/ID/METROPOLITAN-DISTRICT-COUNCIL/WALSALL,31/12/2018,RESOURCES & TRANSFORMATION,ARTHUR BRETT CATER,09/10/2018,H59620181011IIWMCCETM-1,42.18,CA ELMWOOD SPECIAL SCHOOL-FRUIT & VEGETABLES OTHER-PROVI,MISCELLANEOUS FOOD STORES & CONVENIENCE STORES,GPC
WALSALL COUNCIL,HTTP://OPENDATACOMMUNITIES.ORG/ID/METROPOLITAN-DISTRICT-COUNCIL/WALSALL,31/12/2018,ECONOMY & ENVIRONMENT,ALDRIDGE FISH BAR,09/10/2018,H59620181012UYRFTTDYR-1,45.00,WALSALL OUTDOOR ADVENTURE CENT-FOOD AND BEVERAGES-PROVISIONS,QUICK PAYMENT SERVICE-FAST-FOOD RESTAURANTS,GPC
WALSALL COUNCIL,HTTP://OPENDATACOMMUNITIES.ORG/ID/METROPOLITAN-DISTRICT-COUNCIL/WALSALL,31/12/2018,ECONOMY & ENVIRONMENT,TESCO STORES 6161,09/10/2018,H59620181011WHSXNLPSR-1,6.00,FIT4WORK PROGRAMME-STATIONERY & GENERAL SUPPLIES-,GROCERY STORES AND SUPERMARKETS,GPC
WALSALL COUNCIL,HTTP://OPENDATACOMMUNITIES.ORG/ID/METROPOLITAN-DISTRICT-COUNCIL/WALSALL,31/12/2018,ECONOMY & ENVIRONMENT,AMZN MKTP UK,09/10/2018,H59620181011BSHSSUZKP-1,3.99,BLOXWICH LEISURE CENTRE-FOOD AND BEVERAGES-PROVISIONS,BOOK STORES,GPC
WALSALL COUNCIL,HTTP://OPENDATACOMMUNITIES.ORG/ID/METROPOLITAN-DISTRICT-COUNCIL/WALSALL,31/12/2018,ECONOMY & ENVIRONMENT,AMAZON.CO.UK,09/10/2018,H59620181011DUMKIPLTV-1,9.53,LIBRARY OPERATIONS CENTRAL-STATIONERY & GENERAL SUPPLIES-,OTHER DIRECT MARKETING-OTHER DIRECT MARKETERS,GPC
WALSALL COUNCIL,HTTP://OPENDATACOMMUNITIES.ORG/ID/METROPOLITAN-DISTRICT-COUNCIL/WALSALL,31/12/2018,ECONOMY & ENVIRONMENT,AMZN MKTP UK,09/10/2018,H59620181011ODXNNUNMO-1,8.38,BLOXWICH LIBRARY-STATIONERY & GENERAL SUPPLIES-,BOOK STORES,GPC
WALSALL COUNCIL,HTTP://OPENDATACOMMUNITIES.ORG/ID/METROPOLITAN-DISTRICT-COUNCIL/WALSALL,31/12/2018,ECONOMY & ENVIRONMENT,AMZN MKTP UK,09/10/2018,H59620181011ODXNNUNMO-2,35.98,BLOXWICH LIBRARY-FURNITURE & EQUIPMENT,BOOK STORES,GPC
WALSALL COUNCIL,HTTP://OPENDATACOMMUNITIES.ORG/ID/METROPOLITAN-DISTRICT-COUNCIL/WALSALL,31/12/2018,ECONOMY & ENVIRONMENT,TRAINLINE,09/10/2018,H59620181011BDXLVKVBA-1,40.68,NEW ART GALLERY - ADMIN-OFFICER/STAFF-PUBLIC TRANSPORT,PASSENGER RAILWAYS,GPC
WALSALL COUNCIL,HTTP://OPENDATACOMMUNITIES.ORG/ID/METROPOLITAN-DISTRICT-COUNCIL/WALSALL,31/12/2018,ADULT SOCIAL CARE,DULUX DECORATOR CENTRE,09/10/2018,H59620181011JJMENDRWI-1,74.62,GOSCOTE-GENERAL MATERIALS,"PAINTS, VARNISHES, AND SUPPLIES",GPC
WALSALL COUNCIL,HTTP://OPENDATACOMMUNITIES.ORG/ID/METROPOLITAN-DISTRICT-COUNCIL/WALSALL,31/12/2018,ADULT SOCIAL CARE,SCREWFIX DIRECT,09/10/2018,H59620181011NJYIQFSCW-1,34.99,GOSCOTE-GENERAL MATERIALS,LUMBER & BUILDING MATERIALS STORES,GPC
WALSALL COUNCIL,HTTP://OPENDATACOMMUNITIES.ORG/ID/METROPOLITAN-DISTRICT-COUNCIL/WALSALL,31/12/2018,ADULT SOCIAL CARE,POST OFFICE COUNTER,09/10/2018,H59620181011QIUHAYMWN-1,21.96,GOSCOTE-POSTAGES AND COURIER SERVICES,POSTAL SERVICES - GOVERNMENT ONLY,GPC
WALSALL COUNCIL,HTTP://OPENDATACOMMUNITIES.ORG/ID/METROPOLITAN-DISTRICT-COUNCIL/WALSALL,31/12/2018,RESOURCES & TRANSFORMATION,WWW.SCC.COM,09/10/2018,H59620181011CYCIMFFYF-1,60398.05,RECHARGEABLE EQUIPMENT-COMPUTER EQUIPMENT AND SUPPLIE,"COMPUTERS, COMPUTER PERIPHERAL EQUIPMENT, SOFTWARE",GPC
WALSALL COUNCIL,HTTP://OPENDATACOMMUNITIES.ORG/ID/METROPOLITAN-DISTRICT-COUNCIL/WALSALL,31/12/2018,RESOURCES & TRANSFORMATION,WWW.SCC.COM,09/10/2018,H59620181011WHXXRHVYV-1,120715.20,RECHARGEABLE EQUIPMENT-COMPUTER EQUIPMENT AND SUPPLIE,"COMPUTERS, COMPUTER PERIPHERAL EQUIPMENT, SOFTWARE",GPC
WALSALL COUNCIL,HTTP://OPENDATACOMMUNITIES.ORG/ID/METROPOLITAN-DISTRICT-COUNCIL/WALSALL,31/12/2018,RESOURCES & TRANSFORMATION,DNN CORP,09/10/2018,H59620181011EEXOXULBC-1,383.65,ICT INCOME-COMPUTER EQUIPMENT AND SUPPLIE,DIGITAL GOODS - APPLICATIONS (EXCLUDES GAMES),GPC
WALSALL COUNCIL,HTTP://OPENDATACOMMUNITIES.ORG/ID/METROPOLITAN-DISTRICT-COUNCIL/WALSALL,31/12/2018,RESOURCES & TRANSFORMATION,TRAINLINE,09/10/2018,H59620181011MRFGURCJT-1,21.05,PROGRAMME DELIVERY TEAM-OFFICER/STAFF-PUBLIC TRANSPORT,PASSENGER RAILWAYS,GPC
WALSALL COUNCIL,HTTP://OPENDATACOMMUNITIES.ORG/ID/METROPOLITAN-DISTRICT-COUNCIL/WALSALL,31/12/2018,RESOURCES & TRANSFORMATION,CO-OPERATIVE FOOD,09/10/2018,H59620181011BKCYYTQHA-1,0.80,CORPORATE MANAGEMENT TEAM-FOOD AND BEVERAGES-PROVISIONS,GROCERY STORES AND SUPERMARKETS,GPC
WALSALL COUNCIL,HTTP://OPENDATACOMMUNITIES.ORG/ID/METROPOLITAN-DISTRICT-COUNCIL/WALSALL,31/12/2018,RESOURCES & TRANSFORMATION,O2 UK,09/10/2018,H59620181011NGFLUFMPQ-1,29.98,CORPORATE MANAGEMENT TEAM-COSTS (NOT INTERNAL RECHARGES),TELECOMMUNICATION EQUIPMENT & SALES,GPC
WALSALL COUNCIL,HTTP://OPENDATACOMMUNITIES.ORG/ID/METROPOLITAN-DISTRICT-COUNCIL/WALSALL,31/12/2018,CHILDRENS SERVICES-SCHOOLS,AMZN MKTP UK,10/10/2018,H59620181012AKTRPSHLB-1,7.40,PHYSICAL DEVELOPMENT-GENERAL MATERIALS,BOOK STORES,GPC
WALSALL COUNCIL,HTTP://OPENDATACOMMUNITIES.ORG/ID/METROPOLITAN-DISTRICT-COUNCIL/WALSALL,31/12/2018,CHILDRENS SERVICES-SCHOOLS,AMZN MKTP UK AMAZON.CO.UK,10/10/2018,H59620181012LRGWDFRDX-1,11.06,PHYSICAL DEVELOPMENT-GENERAL MATERIALS,BOOK STORES,GPC
WALSALL COUNCIL,HTTP://OPENDATACOMMUNITIES.ORG/ID/METROPOLITAN-DISTRICT-COUNCIL/WALSALL,31/12/2018,CHILDRENS SERVICES-SCHOOLS,AMZN MKTP UK,10/10/2018,H59620181012MNMDHXKVN-1,14.17,PHYSICAL DEVELOPMENT-GENERAL MATERIALS,BOOK STORES,GPC
WALSALL COUNCIL,HTTP://OPENDATACOMMUNITIES.ORG/ID/METROPOLITAN-DISTRICT-COUNCIL/WALSALL,31/12/2018,CHILDRENS SERVICES-SCHOOLS,AMZN MKTP UK AMAZON.CO.UK,10/10/2018,H59620181012XKRYZRCQI-1,8.58,PHYSICAL DEVELOPMENT-GENERAL MATERIALS,BOOK STORES,GPC
WALSALL COUNCIL,HTTP://OPENDATACOMMUNITIES.ORG/ID/METROPOLITAN-DISTRICT-COUNCIL/WALSALL,31/12/2018,CHILDRENS SERVICES-SCHOOLS,AMZN MKTP UK AMAZON.CO.UK,10/10/2018,H59620181012ZTIGFOYEV-1,6.54,PHYSICAL DEVELOPMENT-GENERAL MATERIALS,BOOK STORES,GPC
